Workbook

Sheet 泰来
A1: 客户 | B1: 广州泰来国际货运代理有限公司
A2: 船舶类型 | B2: (全部)
A3: 驳船名 | B3: (全部)
A5: 行标签 | B5: 求和项:艘次 | C5: 求和项:毛利 | D5: 求和项:毛利1
A6: 1月 | B6: 2 | C6: -597.6244444 | D6: -597.6244444
A7: 2月 | B7: 1 | C7: -2728.151044 | D7: -2728.151044
A8: 3月 | B8: 4 | C8: 41054.69108 | D8: 41054.69108
A9: 4月 | B9: 3 | C9: 17182.81792 | D9: 17182.81792
A10: 5月 | B10: 7 | C10: 34314.70288 | D10: 34314.70288
A11: 6月 | B11: 4 | C11: 21002.28793 | D11: 21002.28793
A12: 7月 | B12: 5 | C12: 35732.286 | D12: 35732.286
A13: 总计 | B13: 26 | C13: 145961.0103 | D13: 145961.0103

Sheet 1.1-7.31
A1: 状态 | B1: 业务单号 | C1: 驳船名 | D1: 船舶类型 | E1: 艘次 | F1: 区域 | G1: 客户 | H1: 货名 | I1: 装货港 | J1: 卸货港 | K1: 接单时间 | L1: 业务完结时间 | M1: 抵装港时间 | N1: 装货完成时间 | O1: 装货使用时间(小时) | P1: 抵卸港时间 | Q1: 卸货完成时间 | R1: 月份 | S1: 卸货重量（吨） | T1: 卸货件数 | U1: 卸货使用时间(小时) | V1: 装货重量（吨） | W1: 装货件数 | X1: 应收费用 （含税） | Y1: 运费税率 | Z1: 应收费用 （不含税） | AA1: 自有船成本 | AB1: 应付费用 | AC1: 利润 | AD1: 毛利 | AE1: 单吨毛利 | AF1: 其他费用 | AG1: 资金利息 | AH1: 毛利1 | AI1: 单吨毛利1 | AJ1: 备注 | AK1: 损溢率 | AL1: 短溢吨 | AM1: 修改人 | AN1: 建单人
A2: 业务完结 | B2: JMD19010002T01 | C2: 新通河3301 | D2: 自有船 | E2: 1 | F2: 江门 | G2: 常熟市港顺货运有限公司 | H2: 纸浆 | I2: 珠海港高栏国码 | J2: 广裕码头 | K2: 2019-01-03 | L2: 2019-01-14 15:20 | M2: 2019-01-09 11:45 | N2: 2019-01-10 21:00 | O2: 33.25 | P2: 2019-01-12 10:15 | Q2: 2019-01-13 12:30 | R2: 1月 | S2: 2051.16 | U2: 26.25 | V2: 2051.16 | X2: 36920.88 | Y2: 10 | Z2: =X2/(100+Y2)*100 -> 33564.43636 | AA2: 24006.09 | AB2: 288.96 | AC2: 36631.92 | AD2: =Z2-AA2-AB2 -> 9269.386364 | AE2: =AD2/S2 -> 4.519094738 | AH2: =AD2-AF2-AG2 -> 9269.386364 | AI2: =AH2/S2 -> 4.519094738 | AK2: 0 | AL2: 0 | AM2: 潘锦洪 | AN2: 潘锦洪
A3: 业务完结 | B3: JMD19010002T01 | C3: 新通河3303 | D3: 自有船 | E3: 1 | F3: 江门 | G3: 常熟市港顺货运有限公司 | H3: 纸浆 | I3: 珠海港高栏国码 | J3: 广裕码头 | K3: 2019-01-03 | L3: 2019-01-14 15:20 | M3: 2019-01-10 16:30 | N3: 2019-01-11 04:00 | O3: 11.5 | P3: 2019-01-12 15:30 | Q3: 2019-01-14 12:45 | R3: 1月 | S3: 1499.899 | U3: 45.25 | V3: 1499.899 | X3: 26998.18 | Y3: 10 | Z3: 24543.8 | AA3: 13014.81222 | AB3: 252.04 | AC3: 26746.14 | AD3: 11276.94778 | AE3: 7.518471429 | AH3: 11276.94778 | AI3: 7.518471429 | AK3: 0 | AL3: 0 | AM3: 潘锦洪 | AN3: 潘锦洪
A4: 业务完结 | B4: JMD19010010T01 | C4: 新通河3303 | D4: 自有船 | E4: 1 | F4: 江门 | G4: 常熟市港顺货运有限公司 | H4: 纸浆 | I4: 珠海港高栏国码 | J4: 新会亚太纸厂 | K4: 2019-01-21 | L4: 2019-01-29 08:57 | M4: 2019-01-22 13:00 | N4: 2019-01-22 21:30 | O4: 8.5 | P4: 2019-01-23 12:45 | Q4: 2019-01-24 03:00 | R4: 1月 | S4: 1507.5 | U4: 14.25 | V4: 1507.5 | X4: 18090 | Y4: 10 | Z4: 16445.45455 | AA4: 13014.81222 | AB4: 52.04 | AC4: 18037.96 | AD4: 3378.602323 | AE4: 2.241195571 | AH4: 3378.602323 | AI4: 2.241195571 | AK4: 0 | AL4: 0 | AM4: 潘锦洪 | AN4: 潘锦洪
A5: 业务完结 | B5: JMD19010010T01 | C5: 新通河3308 | D5: 自有船 | E5: 1 | F5: 江门 | G5: 常熟市港顺货运有限公司 | H5: 纸浆 | I5: 珠海港高栏国码 | J5: 新会亚太纸厂 | K5: 2019-01-21 | L5: 2019-01-29 08:57 | M5: 2019-01-22 13:00 | N5: 2019-01-23 02:00 | O5: 13 | P5: 2019-01-23 17:15 | Q5: 2019-01-24 14:30 | R5: 1月 | S5: 1507.5 | U5: 21.25 | V5: 1507.5 | X5: 18090 | Y5: 10 | Z5: 16445.45455 | AA5: 25549.84165 | AB5: 49.96 | AC5: 18040.04 | AD5: -9154.347103 | AE5: -6.072535392 | AH5: -9154.347103 | AI5: -6.072535392 | AK5: 0 | AL5: 0 | AM5: 潘锦洪 | AN5: 潘锦洪
A6: 业务完结 | B6: JMD19010010T01 | C6: 新通河3301 | D6: 自有船 | E6: 1 | F6: 江门 | G6: 常熟市港顺货运有限公司 | H6: 纸浆 | I6: 珠海港高栏国码 | J6: 新会亚太纸厂 | K6: 2019-01-21 | L6: 2019-01-29 08:57 | M6: 2019-01-24 11:30 | N6: 2019-01-24 23:45 | O6: 12.25 | P6: 2019-01-25 14:00 | Q6: 2019-01-27 11:00 | R6: 1月 | S6: 2502.45 | U6: 45 | V6: 2502.45 | X6: 30029.4 | Y6: 10 | Z6: 27299.45455 | AA6: 24006.09 | AB6: 78.36 | AC6: 29951.04 | AD6: 3215.004545 | AE6: 1.28474277 | AH6: 3215.004545 | AI6: 1.28474277 | AK6: 0 | AL6: 0 | AM6: 潘锦洪 | AN6: 潘锦洪
A7: 业务完结 | B7: JMD19010010T01 | C7: 新通河3308 | D7: 自有船 | E7: 1 | F7: 江门 | G7: 常熟市港顺货运有限公司 | H7: 纸浆 | I7: 珠海港高栏国码 | J7: 新会亚太纸厂 | K7: 2019-01-21 | L7: 2019-01-29 08:57 | M7: 2019-01-24 20:00 | N7: 2019-01-25 03:15 | O7: 7.25 | P7: 2019-01-25 17:00 | Q7: 2019-01-29 07:15 | R7: 1月 | S7: 1517.55 | U7: 86.25 | V7: 1517.55 | X7: 18210.6 | Y7: 10 | Z7: 16555.09091 | AA7: 25549.84165 | AB7: 49.96 | AC7: 18160.64 | AD7: -9044.71074 | AE7: -5.960074291 | AH7: -9044.71074 | AI7: -5.960074291 | AK7: 0 | AL7: 0 | AM7: 潘锦洪 | AN7: 潘锦洪
A8: 业务完结 | B8: JMD19010013T01 | C8: 新通河3301 | D8: 自有船 | E8: 1 | F8: 江门 | G8: 常熟市港顺货运有限公司 | H8: 纸浆 | I8: 珠海港高栏国码 | J8: 新会亚太纸厂 | K8: 2019-01-28 | L8: 2019-02-20 10:11 | M8: 2019-02-09 20:00 | N8: 2019-02-10 15:30 | O8: 19.5 | P8: 2019-02-11 00:15 | Q8: 2019-02-12 07:30 | R8: 2月 | S8: 2503.442 | U8: 31.25 | V8: 2503.442 | W8: 1250 | X8: 30041.3 | Y8: 10 | Z8: 27310.27273 | AA8: 26869.49621 | AB8: 88.96 | AC8: 29952.34 | AD8: 351.8165145 | AE8: 0.1405331198 | AH8: 351.8165145 | AI8: 0.1405331198 | AK8: 0 | AL8: 0 | AM8: 潘锦洪 | AN8: 潘锦洪
A9: 业务完结 | B9: JMD19010013T01 | C9: 新通河3303 | D9: 自有船 | E9: 1 | F9: 江门 | G9: 常熟市港顺货运有限公司 | H9: 纸浆 | I9: 珠海港高栏国码 | J9: 新会亚太纸厂 | K9: 2019-01-28 | L9: 2019-02-20 10:11 | M9: 2019-02-11 00:30 | N9: 2019-02-11 05:30 | O9: 5 | P9: 2019-02-11 18:00 | Q9: 2019-02-14 07:30 | R9: 2月 | S9: 1507.5 | U9: 61.5 | V9: 1507.5 | W9: 750 | X9: 18090 | Y9: 10 | Z9: 16445.45455 | AA9: 24901.87468 | AB9: 52.04 | AC9: 18037.96 | AD9: -8508.460135 | AE9: -5.644086325 | AH9: -8508.460135 | AI9: -5.644086325 | AK9: 0 | AL9: 0 | AM9: 潘锦洪 | AN9: 潘锦洪
A10: 业务完结 | B10: JMD19010013T01 | C10: 粤南方282 | D10: 外包船 | E10: 1 | F10: 江门 | G10: 常熟市港顺货运有限公司 | H10: 纸浆 | I10: 珠海港高栏国码 | J10: 新会亚太纸厂 | K10: 2019-01-28 | L10: 2019-02-20 10:11 | M10: 2019-02-12 21:15 | N10: 2019-02-14 08:30 | O10: 35.25 | P10: 2019-02-14 16:00 | Q10: 2019-02-15 03:00 | R10: 2月 | S10: 1006 | U10: 11 | V10: 1006 | W10: 500 | X10: 12072 | AB10: 11498.58 | AC10: 573.42 | AD10: =AC10 -> 573.42 | AE10: 0.57 | AH10: 573.42 | AI10: 0.57 | AK10: 0 | AL10: 0 | AM10: 潘锦洪 | AN10: 潘锦洪
A11: 业务完结 | B11: JMD19010013T01 | C11: 新通河3308 | D11: 自有船 | E11: 1 | F11: 江门 | G11: 常熟市港顺货运有限公司 | H11: 纸浆 | I11: 珠海港高栏国码 | J11: 新会亚太纸厂 | K11: 2019-01-28 | L11: 2019-02-20 10:11 | M11: 2019-02-13 13:15 | N11: 2019-02-14 15:00 | O11: 25.75 | P11: 2019-02-14 22:15 | Q11: 2019-02-15 16:30 | R11: 2月 | S11: 1509 | U11: 18.25 | V11: 1509 | W11: 750 | X11: 18108 | Y11: 10 | Z11: =X11/(100+Y11)*100 -> 16461.81818 | AA11: 22234.46277 | AB11: 60.56 | AC11: 18047.44 | AD11: =Z11-AA11-AB11 -> -5833.204584 | AE11: -3.8656094 | AH11: -5833.204584 | AI11: -3.8656094 | AK11: 0 | AL11: 0 | AM11: 潘锦洪 | AN11: 潘锦洪
A12: 业务完结 | B12: JMD19010013T01 | C12: 粤南方282 | D12: 外包船 | E12: 1 | F12: 江门 | G12: 常熟市港顺货运有限公司 | H12: 纸浆 | I12: 珠海港高栏国码 | J12: 新会亚太纸厂 | K12: 2019-01-28 | L12: 2019-02-20 10:11 | M12: 2019-02-15 08:30 | N12: 2019-02-15 14:30 | O12: 6 | P12: 2019-02-15 20:45 | Q12: 2019-02-17 06:45 | R12: 2月 | S12: 1006 | U12: 34 | V12: 1006 | W12: 500 | X12: 12072 | AB12: 10995.58 | AC12: 1076.42 | AD12: =AC12 -> 1076.42 | AE12: 1.07 | AH12: 1076.42 | AI12: 1.07 | AK12: 0 | AL12: 0 | AM12: 潘锦洪 | AN12: 潘锦洪
A13: 业务完结 | B13: JMD19010013T01 | C13: 新通河3301 | D13: 自有船 | E13: 1 | F13: 江门 | G13: 常熟市港顺货运有限公司 | H13: 纸浆 | I13: 珠海港高栏国码 | J13: 新会亚太纸厂 | K13: 2019-01-28 | L13: 2019-02-20 10:11 | M13: 2019-02-16 23:45 | N13: 2019-02-17 14:00 | O13: 14.25 | P13: 2019-02-17 21:00 | Q13: 2019-02-20 06:30 | R13: 2月 | S13: 2523.048 | U13: 57.5 | V13: 2523.048 | W13: 1254 | X13: 30276.58 | Y13: 10 | Z13: =X13/(100+Y13)*100 -> 27524.16364 | AA13: 26869.49621 | AB13: 99.56 | AC13: 30177.02 | AD13: =Z13-AA13-AB13 -> 555.1074236 | AE13: 0.2200146107 | AH13: 555.1074236 | AI13: 0.2200146107 | AK13: 0 | AL13: 0 | AM13: 潘锦洪 | AN13: 潘锦洪
A14: 业务完结 | B14: JMD19020009T01 | C14: 桂平宏远6699 | D14: 外包船 | E14: 1 | F14: 江门 | G14: 常熟市港顺货运有限公司 | H14: 纸浆 | I14: 珠海港高栏国码 | J14: 广裕码头 | K14: 2019-02-20 | L14: 2019-02-28 14:15 | M14: 2019-02-21 06:15 | N14: 2019-02-21 17:45 | O14: 11.5 | P14: 2019-02-23 00:30 | Q14: 2019-02-24 16:00 | R14: 2月 | S14: 1702.049 | U14: 39.5 | V14: 1702.049 | W14: 855 | X14: 30636.88 | AB14: 29768.84 | AC14: 868.04 | AD14: =AC14 -> 868.04 | AE14: 0.5099970682 | AH14: 868.04 | AI14: 0.5099970682 | AK14: 0 | AL14: 0 | AM14: 潘锦洪 | AN14: 潘锦洪
A15: 业务完结 | B15: JMD19020009T01 | C15: 新通河3301 | D15: 自有船 | E15: 1 | F15: 江门 | G15: 常熟市港顺货运有限公司 | H15: 纸浆 | I15: 珠海港高栏国码 | J15: 广裕码头 | K15: 2019-02-20 | L15: 2019-02-28 14:15 | M15: 2019-02-23 20:30 | N15: 2019-02-25 00:45 | O15: 28.25 | P15: 2019-02-26 09:45 | Q15: 2019-02-28 16:00 | R15: 2月 | S15: 2331.027 | U15: 54.25 | V15: 2331.027 | W15: 1171 | X15: 41958.49 | Y15: 10 | Z15: =X15/(100+Y15)*100 -> 38144.08182 | AA15: 26869.49621 | AB15: 377.92 | AC15: 41580.57 | AD15: =Z15-AA15-AB15 -> 10896.66561 | AE15: 4.674620073 | AH15: 10896.66561 | AI15: 4.674620073 | AK15: 0 | AL15: 0 | AM15: 潘锦洪 | AN15: 潘锦洪
A16: 业务完结 | B16: JMD19030003T01 | C16: 新通河3303 | D16: 自有船 | E16: 1 | F16: 江门 | G16: 常熟市港顺货运有限公司 | H16: 纸浆 | I16: 珠海港高栏国码 | J16: 新会亚太纸厂 | K16: 2019-03-05 | L16: 2019-03-23 19:39 | M16: 2019-03-08 07:30 | N16: 2019-03-11 20:45 | O16: 85.25 | P16: 2019-03-11 15:00 | Q16: 2019-03-12 04:30 | R16: 3月 | S16: 1500 | U16: 13.5 | V16: 1500 | W16: 750 | X16: 18000 | Y16: 10 | Z16: =X16/(100+Y16)*100 -> 16363.63636 | AA16: 10857.66386 | AB16: 52.04 | AC16: 17947.96 | AD16: =Z16-AA16-AB16 -> 5453.932507 | AE16: 3.635955005 | AH16: 5453.932507 | AI16: 3.635955005 | AJ16: 计划3月8日上午到高栏 | AK16: 0 | AL16: 0 | AM16: 劳锡源 | AN16: 潘锦洪
A17: 业务完结 | B17: JMD19030003T01 | C17: 新通河3303 | D17: 自有船 | E17: 1 | F17: 江门 | G17: 常熟市港顺货运有限公司 | H17: 纸浆 | I17: 珠海港高栏国码 | J17: 新会亚太纸厂 | K17: 2019-03-05 | L17: 2019-03-23 19:39 | M17: 2019-03-12 18:15 | N17: 2019-03-13 02:15 | O17: 8 | P17: 2019-03-13 19:45 | Q17: 2019-03-15 15:30 | R17: 3月 | S17: 1500 | U17: 43.75 | V17: 1500 | W17: 750 | X17: 18000 | Y17: 10 | Z17: =X17/(100+Y17)*100 -> 16363.63636 | AA17: 10857.66386 | AB17: 62.64 | AC17: 17937.36 | AD17: =Z17-AA17-AB17 -> 5443.332507 | AE17: 3.628888338 | AH17: 5443.332507 | AI17: 3.628888338 | AJ17: 船计划3月12日晚上到高栏 | AK17: 0 | AL17: 0 | AM17: 潘锦洪 | AN17: 潘锦洪
A18: 业务完结 | B18: JMD19030003T01 | C18: 桂平宏远7899 | D18: 外包船 | E18: 1 | F18: 江门 | G18: 常熟市港顺货运有限公司 | H18: 纸浆 | I18: 珠海港高栏国码 | J18: 新会亚太纸厂 | K18: 2019-03-05 | L18: 2019-03-23 19:39 | M18: 2019-03-15 00:15 | N18: 2019-03-15 20:00 | O18: 19.75 | P18: 2019-03-16 05:00 | Q18: 2019-03-19 06:30 | R18: 3月 | S18: 1500 | T18: 750 | U18: 73.5 | V18: 1500 | W18: 750 | X18: 18000 | AB18: 16395 | AC18: 1605 | AD18: =AC18 -> 1605 | AE18: 1.07 | AH18: 1605 | AI18: 1.07 | AK18: 0 | AL18: 0 | AM18: 潘锦洪 | AN18: 潘锦洪
A19: 业务完结 | B19: JMD19030003T01 | C19: 新通河3301 | D19: 自有船 | E19: 1 | F19: 江门 | G19: 常熟市港顺货运有限公司 | H19: 纸浆 | I19: 珠海港高栏国码 | J19: 新会亚太纸厂 | K19: 2019-03-05 | L19: 2019-03-23 19:39 | M19: 2019-03-15 18:45 | N19: 2019-03-16 20:00 | O19: 25.25 | P19: 2019-03-17 20:00 | Q19: 2019-03-20 17:30 | R19: 3月 | S19: 2000 | U19: 69.5 | V19: 2000 | W19: 1000 | X19: 24000 | Y19: 10 | Z19: =X19/(100+Y19)*100 -> 21818.18182 | AA19: 30024.13686 | AB19: 78.36 | AC19: 23921.64 | AD19: =Z19-AA19-AB19 -> -8284.315044 | AE19: -4.142157522 | AH19: -8284.315044 | AI19: -4.142157522 | AK19: 0 | AL19: 0 | AM19: 潘锦洪 | AN19: 潘锦洪
A20: 业务完结 | B20: JMD19030003T01 | C20: 新通河3308 | D20: 自有船 | E20: 1 | F20: 江门 | G20: 常熟市港顺货运有限公司 | H20: 纸浆 | I20: 珠海港高栏国码 | J20: 新会亚太纸厂 | K20: 2019-03-05 | L20: 2019-03-23 19:39 | M20: 2019-03-20 04:00 | N20: 2019-03-21 01:30 | O20: 21.5 | P20: 2019-03-21 23:15 | Q20: 2019-03-23 06:45 | R20: 3月 | S20: 1500 | U20: 31.5 | V20: 1500 | W20: 750 | X20: 18000 | Y20: 10 | Z20: 16363.63636 | AA20: 14642.95901 | AB20: 169.96 | AC20: 17830.04 | AD20: 1550.717357 | AE20: 1.033811571 | AH20: 1550.717357 | AI20: 1.033811571 | AJ20: 计划3月20日14点到高栏 | AK20: 0 | AL20: 0 | AM20: 潘锦洪 | AN20: 潘锦洪
A21: 业务完结 | B21: JMD19040003T01 | C21: 新通河3303 | D21: 自有船 | E21: 1 | F21: 江门 | G21: 常熟市港顺货运有限公司 | H21: 纸浆 | I21: 珠海港高栏国码 | J21: 新会亚太纸厂 | K21: 2019-04-04 | L21: 2019-04-29 17:29 | M21: 2019-04-07 16:30 | N21: 2019-04-08 00:30 | O21: 8 | P21: 2019-04-08 14:30 | Q21: 2019-04-10 02:30 | R21: 4月 | S21: 1511.25 | T21: 750 | U21: 36 | V21: 1511.25 | W21: 750 | X21: 18135 | Y21: 9 | Z21: 16637.61468 | AA21: 18846.754 | AB21: 52.04 | AC21: 18082.96 | AD21: -2261.179321 | AE21: -1.496231147 | AH21: -2261.179321 | AI21: -1.496231147 | AJ21: 安排卸轻返载，预计8日晚上抵达高栏 | AK21: 0 | AL21: 0 | AM21: 潘锦洪 | AN21: 潘锦洪
A22: 业务完结 | B22: JMD19040003T01 | C22: 新通河3303 | D22: 自有船 | E22: 1 | F22: 江门 | G22: 常熟市港顺货运有限公司 | H22: 纸浆 | I22: 珠海港高栏国码 | J22: 新会亚太纸厂 | K22: 2019-04-04 | L22: 2019-04-29 17:29 | M22: 2019-04-10 08:15 | N22: 2019-04-10 15:45 | O22: 7.5 | P22: 2019-04-11 06:30 | Q22: 2019-04-12 07:45 | R22: 4月 | S22: 1509 | T22: 750 | U22: 25.25 | V22: 1509 | W22: 750 | X22: 18108 | Y22: 9 | Z22: 16612.84404 | AA22: 18846.754 | AB22: 62.64 | AC22: 18045.36 | AD22: -2296.549963 | AE22: -1.521901897 | AH22: -2296.549963 | AI22: -1.521901897 | AJ22: 预计7日中午14点到高栏国码码头 | AK22: 0 | AL22: 0 | AM22: 潘锦洪 | AN22: 潘锦洪
A23: 业务完结 | B23: JMD19040003T01 | C23: 新通河3303 | D23: 自有船 | E23: 1 | F23: 江门 | G23: 常熟市港顺货运有限公司 | H23: 纸浆 | I23: 珠海港高栏国码 | J23: 新会亚太纸厂 | K23: 2019-04-04 | L23: 2019-04-29 17:29 | M23: 2019-04-23 23:30 | N23: 2019-04-24 07:15 | O23: 7.75 | P23: 2019-04-24 17:45 | Q23: 2019-04-25 23:15 | R23: 4月 | S23: 1510.5 | T23: 750 | U23: 29.5 | V23: 1510.5 | W23: 750 | X23: 18126 | Y23: 9 | Z23: 16629.3578 | AA23: 18846.754 | AB23: 73.24 | AC23: 18052.76 | AD23: -2290.636202 | AE23: -1.516475473 | AH23: -2290.636202 | AI23: -1.516475473 | AJ23: 预计23日中午抵达高栏 | AK23: 0 | AL23: 0 | AM23: 潘锦洪 | AN23: 潘锦洪
A24: 业务完结 | B24: JMD19040003T01 | C24: 新通河3301 | D24: 自有船 | E24: 1 | F24: 江门 | G24: 常熟市港顺货运有限公司 | H24: 纸浆 | I24: 珠海港高栏国码 | J24: 新会亚太纸厂 | K24: 2019-04-04 | L24: 2019-04-29 17:29 | M24: 2019-04-26 21:45 | N24: 2019-04-27 17:30 | O24: 19.75 | P24: 2019-04-28 08:00 | Q24: 2019-04-29 15:00 | R24: 4月 | S24: 2014 | T24: 1000 | U24: 31 | V24: 2014 | W24: 1000 | X24: 24168 | Y24: 9 | Z24: 22172.47706 | AA24: 47950.36312 | AB24: 78.36 | AC24: 24089.64 | AD24: -25856.24606 | AE24: -12.83825524 | AH24: -25856.24606 | AI24: -12.83825524 | AJ24: 预计25日下午18点抵达高栏 | AK24: 0 | AL24: 0 | AM24: 潘锦洪 | AN24: 潘锦洪
A25: 业务完结 | B25: JMD19050001T01 | C25: 新通河3303 | D25: 自有船 | E25: 1 | F25: 江门 | G25: 常熟市港顺货运有限公司 | H25: 纸浆 | I25: 珠海港高栏国码 | J25: 新会亚太纸厂 | K25: 2019-05-05 | L25: 2019-05-14 14:42 | M25: 2019-05-06 15:00 | N25: 2019-05-07 01:30 | O25: 10.5 | P25: 2019-05-07 12:45 | Q25: 2019-05-09 16:30 | R25: 5月 | S25: 1500 | U25: 51.75 | V25: 1500 | W25: 750 | X25: 18000 | Y25: 9 | Z25: 16513.76147 | AA25: 12206.40985 | AB25: 62.64 | AC25: 17937.36 | AD25: 4244.71162 | AE25: 2.829807747 | AH25: 4244.71162 | AI25: 2.829807747 | AJ25: 预计6日中午抵达高栏 | AK25: 0 | AL25: 0 | AM25: 潘锦洪 | AN25: 潘锦洪
A26: 业务完结 | B26: JMD19050004T01 | C26: 桂平宏远6699 | D26: 外包船 | E26: 1 | F26: 江门 | G26: 常熟市港顺货运有限公司 | H26: 纸浆 | I26: 珠海港高栏国码 | J26: 新会亚太纸厂 | K26: 2019-05-10 | L26: 2019-05-20 09:07 | M26: 2019-05-12 09:00 | N26: 2019-05-12 21:00 | O26: 12 | P26: 2019-05-13 11:30 | Q26: 2019-05-14 19:00 | R26: 5月 | S26: 1712.75 | U26: 31.5 | V26: 1712.75 | W26: 850 | X26: 20553 | AB26: 18720.36 | AC26: 1832.64 | AD26: =AC26 -> 1832.64 | AE26: 1.06999854 | AH26: 1832.64 | AI26: 1.06999854 | AJ26: 预计12号中午到高栏 | AK26: 0 | AL26: 0 | AM26: 潘锦洪 | AN26: 潘锦洪
A27: 业务完结 | B27: JMD19050004T01 | C27: 新通河3301 | D27: 自有船 | E27: 1 | F27: 江门 | G27: 常熟市港顺货运有限公司 | H27: 纸浆 | I27: 珠海港高栏国码 | J27: 新会亚太纸厂 | K27: 2019-05-10 | L27: 2019-05-20 09:07 | M27: 2019-05-11 19:15 | N27: 2019-05-12 10:45 | O27: 15.5 | P27: 2019-05-12 17:45 | Q27: 2019-05-16 05:00 | R27: 5月 | S27: 2518.75 | U27: 83.25 | V27: 2518.75 | W27: 1250 | X27: 30225 | Y27: 9 | Z27: =X27/(100+Y27)*100 -> 27729.3578 | AA27: 50630.09468 | AB27: 1184.56 | AC27: 29040.44 | AD27: =Z27-AA27-AB27 -> -24085.29688 | AE27: -9.562400747 | AH27: -24085.29688 | AI27: -9.562400747 | AJ27: 预计11号下午18点到高栏 | AK27: 0 | AL27: 0 | AM27: 潘锦洪 | AN27: 潘锦洪
A28: 业务完结 | B28: JMD19050004T01 | C28: 新通河3308 | D28: 自有船 | E28: 1 | F28: 江门 | G28: 常熟市港顺货运有限公司 | H28: 纸浆 | I28: 珠海港高栏国码 | J28: 新会亚太纸厂 | K28: 2019-05-10 | L28: 2019-05-20 09:07 | M28: 2019-05-14 11:00 | N28: 2019-05-14 21:45 | O28: 10.75 | P28: 2019-05-15 12:45 | Q28: 2019-05-18 11:00 | R28: 5月 | S28: 1410.5 | U28: 70.25 | V28: 1410.5 | W28: 700 | X28: 16926 | Y28: 9 | Z28: =X28/(100+Y28)*100 -> 15528.44037 | AA28: 16596.90226 | AB28: 49.96 | AC28: 16876.04 | AD28: =Z28-AA28-AB28 -> -1118.421888 | AE28: -0.7929258336 | AH28: -1118.421888 | AI28: -0.7929258336 | AJ28: 14日中午抵达高栏国码码头 | AK28: 0 | AL28: 0 | AM28: 潘锦洪 | AN28: 潘锦洪
A29: 业务完结 | B29: JMD19050004T01 | C29: 新通河3303 | D29: 自有船 | E29: 1 | F29: 江门 | G29: 常熟市港顺货运有限公司 | H29: 纸浆 | I29: 珠海港高栏国码 | J29: 新会亚太纸厂 | K29: 2019-05-10 | L29: 2019-05-20 09:07 | M29: 2019-05-18 02:45 | N29: 2019-05-18 19:00 | O29: 16.25 | P29: 2019-05-19 01:00 | Q29: 2019-05-19 21:30 | R29: 5月 | S29: 1410.5 | U29: 20.5 | V29: 1410.5 | W29: 700 | X29: 16926 | Y29: 9 | Z29: =X29/(100+Y29)*100 -> 15528.44037 | AA29: 12206.40985 | AB29: 62.64 | AC29: 16863.36 | AD29: =Z29-AA29-AB29 -> 3259.390519 | AE29: 2.310805047 | AH29: 3259.390519 | AI29: 2.310805047 | AJ29: 预计16日晚上抵达高栏 | AK29: 0 | AL29: 0 | AM29: 潘锦洪 | AN29: 潘锦洪
A30: 业务完结 | B30: JMD19050008T01 | C30: 新通河3308 | D30: 自有船 | E30: 1 | F30: 江门 | G30: 常熟市港顺货运有限公司 | H30: 纸浆 | I30: 珠海港高栏国码 | J30: 新会亚太纸厂 | K30: 2019-05-20 | L30: 2019-05-29 09:23 | M30: 2019-05-21 20:00 | N30: 2019-05-22 12:15 | O30: 16.25 | P30: 2019-05-23 02:30 | Q30: 2019-05-24 11:30 | R30: 5月 | S30: 1509.75 | U30: 33 | V30: 1509.75 | W30: 750 | X30: 18117 | Y30: 9 | Z30: =X30/(100+Y30)*100 -> 16621.10092 | AA30: 16596.90226 | AB30: 60.56 | AC30: 18056.44 | AD30: =Z30-AA30-AB30 -> -36.36133789 | AE30: -0.02408434369 | AH30: -36.36133789 | AI30: -0.02408434369 | AJ30: 预计21号晚上20点抵达高栏 | AK30: 0 | AL30: 0 | AM30: 潘锦洪 | AN30: 潘锦洪
A31: 业务完结 | B31: JMD19050008T01 | C31: 新通河3303 | D31: 自有船 | E31: 1 | F31: 江门 | G31: 常熟市港顺货运有限公司 | H31: 纸浆 | I31: 珠海港高栏国码 | J31: 新会亚太纸厂 | K31: 2019-05-20 | L31: 2019-05-29 09:23 | M31: 2019-05-25 09:30 | N31: 2019-05-25 17:15 | O31: 7.75 | P31: 2019-05-26 04:45 | Q31: 2019-05-27 17:00 | R31: 5月 | S31: 1107.15 | U31: 36.25 | V31: 1107.15 | W31: 550 | X31: 13285.8 | Y31: 9 | Z31: =X31/(100+Y31)*100 -> 12188.80734 | AA31: 12206.40985 | AB31: 52.04 | AC31: 13233.76 | AD31: =Z31-AA31-AB31 -> -69.64250857 | AE31: -0.06290250515 | AH31: -69.64250857 | AI31: -0.06290250515 | AJ31: 预计26日晚上22点抵达高栏 | AK31: 0 | AL31: 0 | AM31: 潘锦洪 | AN31: 潘锦洪
A32: 业务完结 | B32: JMD19050008T01 | C32: 桂平宏远7899 | D32: 外包船 | E32: 1 | F32: 江门 | G32: 常熟市港顺货运有限公司 | H32: 纸浆 | I32: 珠海港高栏国码 | J32: 新会亚太纸厂 | K32: 2019-05-20 | L32: 2019-05-29 09:23 | M32: 2019-05-26 23:30 | N32: 2019-05-28 02:00 | O32: 26.5 | P32: 2019-05-28 20:00 | Q32: 2019-05-29 09:00 | R32: 5月 | S32: 1409.1 | U32: 13 | V32: 1409.1 | W32: 700 | X32: 16909.2 | AB32: 15401.46 | AC32: 1507.74 | AD32: =AC32 -> 1507.74 | AE32: 1.070002129 | AH32: 1507.74 | AI32: 1.070002129 | AJ32: 预计26日中午12点抵达高栏 | AK32: 0 | AL32: 0 | AM32: 潘锦洪 | AN32: 潘锦洪
A33: 业务完结 | B33: JMD19070016T01 | C33: 粤韶关货3299 | D33: 外包船 | E33: 1 | F33: 江门 | G33: 常熟市港顺货运有限公司 | H33: 纸浆 | I33: 珠海港高栏国码 | J33: 新会亚太纸厂 | K33: 2019-07-18 | L33: 2019-07-22 14:48 | M33: 2019-07-18 15:30 | N33: 2019-07-19 04:00 | O33: 12.5 | P33: 2019-07-19 17:00 | Q33: 2019-07-20 12:00 | R33: 7月 | S33: 1500 | U33: 19 | V33: 1500 | X33: 18000 | AB33: 21855 | AC33: -3855 | AD33: -3855 | AE33: -2.57 | AH33: -3855 | AI33: -2.57 | AJ33: 预计18日下午16点左右抵达高栏 | AK33: 0 | AL33: 0 | AM33: 刘全 | AN33: 潘锦洪
A34: 业务完结 | B34: QYD19070067T01 | C34: 粤鼎湖货0698 | D34: 外包船-包 | E34: 1 | F34: 广州 | G34: 东莞市制糖厂有限公司 | H34: 甘蔗原糖 | I34: 沙角 | J34: 东莞糖厂码头 | K34: 2019-07-26 | L34: 2019-07-26 16:17 | M34: 2019-07-14 14:30 | N34: 2019-07-17 20:45 | O34: 78.25 | P34: 2019-07-18 03:15 | Q34: 2019-07-18 22:30 | R34: 7月 | S34: 1065.372 | U34: 19.25 | V34: 1065.372 | X34: 18910.35 | AB34: 18471.45 | AC34: 438.9 | AD34: 438.9 | AE34: 0.4119687771 | AH34: 438.9 | AI34: 0.4119687771 | AK34: 0 | AL34: 0 | AM34: 张展鹏 | AN34: 张展鹏
A35: 业务完结 | B35: QYD19070025T01 | C35: 粤鼎湖货6698 | D35: 外包船 | E35: 1 | F35: 广州 | G35: 东莞市制糖厂有限公司 | H35: 甘蔗原糖 | I35: 黄埔新港码头 | J35: 东莞糖厂码头 | K35: 2019-07-11 | L35: 2019-07-29 10:47 | M35: 2019-07-12 17:30 | N35: 2019-07-17 23:15 | O35: 125.75 | P35: 2019-07-18 07:30 | Q35: 2019-07-19 19:45 | R35: 7月 | S35: 1615.954 | U35: 36.25 | V35: 1615.954 | X35: 20603.41 | AB35: 20081.15 | AC35: 522.26 | AD35: 522.26 | AE35: 0.3231898928 | AH35: 522.26 | AI35: 0.3231898928 | AJ35: 锚地 | AK35: 0 | AL35: 0 | AM35: 张展鹏 | AN35: 张展鹏
A36: 业务完结 | B36: QYD19070070T01 | C36: 桂藤县货0803 | D36: 外包船 | E36: 1 | F36: 广州 | G36: 东莞市制糖厂有限公司 | H36: 甘蔗原糖 | I36: 沙角 | J36: 东莞糖厂码头 | K36: 2019-07-26 | L36: 2019-07-26 16:29 | M36: 2019-07-15 09:30 | N36: 2019-07-18 07:00 | O36: 69.5 | P36: 2019-07-18 13:30 | Q36: 2019-07-20 13:00 | R36: 7月 | S36: 1129.923 | U36: 47.5 | V36: 1129.923 | X36: 20056.13 | AB36: 13430.06 | AC36: 6626.07 | AD36: 6626.07 | AE36: 5.864178356 | AH36: 6626.07 | AI36: 5.864178356 | AK36: 0 | AL36: 0 | AM36: 张展鹏 | AN36: 张展鹏
A37: 业务完结 | B37: QYD19070069T01 | C37: 桂平宏远6699 | D37: 外包船 | E37: 1 | F37: 广州 | G37: 东莞市制糖厂有限公司 | H37: 甘蔗原糖 | I37: 沙角 | J37: 东莞糖厂码头 | K37: 2019-07-26 | L37: 2019-07-26 16:23 | M37: 2019-07-14 23:15 | N37: 2019-07-18 09:00 | O37: 81.75 | P37: 2019-07-18 16:00 | Q37: 2019-07-21 14:00 | R37: 7月 | S37: 2004.766 | U37: 70 | V37: 2004.766 | X37: 35584.6 | AB37: 23862.09 | AC37: 11722.51 | AD37: 11722.51 | AE37: 5.847320834 | AH37: 11722.51 | AI37: 5.847320834 | AK37: 0 | AL37: 0 | AM37: 张展鹏 | AN37: 张展鹏
A38: 业务完结 | B38: QYD19070071T01 | C38: 桂平宏远7899 | D38: 外包船 | E38: 1 | F38: 广州 | G38: 东莞市制糖厂有限公司 | H38: 甘蔗原糖 | I38: 沙角 | J38: 东莞糖厂码头 | K38: 2019-07-26 | L38: 2019-07-26 16:35 | M38: 2019-07-15 07:00 | N38: 2019-07-18 14:30 | O38: 79.5 | P38: 2019-07-18 23:00 | Q38: 2019-07-22 13:00 | R38: 7月 | S38: 1700.143 | U38: 86 | V38: 1700.143 | X38: 30177.54 | AB38: 20162.56 | AC38: 10014.98 | AD38: 10014.98 | AE38: 5.890669197 | AH38: 10014.98 | AI38: 5.890669197 | AK38: 0 | AL38: 0 | AM38: 张展鹏 | AN38: 张展鹏
A39: 业务完结 | B39: QYD19070072T01 | C39: 贵港天佑8633 | D39: 外包船 | E39: 1 | F39: 广州 | G39: 东莞市制糖厂有限公司 | H39: 甘蔗原糖 | I39: 沙角 | J39: 东莞糖厂码头 | K39: 2019-07-26 | L39: 2019-07-26 16:38 | M39: 2019-07-15 08:00 | N39: 2019-07-18 19:00 | O39: 83 | P39: 2019-07-19 03:00 | Q39: 2019-07-23 11:00 | R39: 7月 | S39: 1826.179 | U39: 104 | V39: 1826.179 | X39: 32414.68 | AB39: 22040.14 | AC39: 10374.54 | AD39: 10374.54 | AE39: 5.681009364 | AH39: 10374.54 | AI39: 5.681009364 | AK39: 0 | AL39: 0 | AM39: 张展鹏 | AN39: 张展鹏
A40: 业务完结 | B40: QYD19070073T01 | C40: 新通河3308 | D40: 自有船 | E40: 1 | F40: 广州 | G40: 东莞市制糖厂有限公司 | H40: 甘蔗原糖 | I40: 沙角 | J40: 东莞糖厂码头 | K40: 2019-07-26 | L40: 2019-07-26 16:53 | M40: 2019-07-16 16:00 | N40: 2019-07-18 22:30 | O40: 54.5 | P40: 2019-07-19 06:00 | Q40: 2019-07-24 07:00 | R40: 7月 | S40: 1749.515 | U40: 121 | V40: 1749.515 | X40: 31053.89 | Y40: 9 | Z40: =X40/(100+Y40)*100 -> 28489.80734 | AA40: 18329.86094 | AB40: 1700 | AC40: 29353.89 | AD40: =Z40-AA40-AB40 -> 8459.946403 | AE40: 4.835595238 | AH40: 8459.946403 | AI40: 4.835595238 | AK40: 0 | AL40: 0 | AM40: 张展鹏 | AN40: 张展鹏
A41: 业务完结 | B41: QYD19070074T01 | C41: 莞海安268 | D41: 外包船 | E41: 1 | F41: 广州 | G41: 东莞市制糖厂有限公司 | H41: 甘蔗原糖 | I41: 沙角 | J41: 东莞糖厂码头 | K41: 2019-07-26 | L41: 2019-07-26 16:56 | M41: 2019-07-16 16:00 | N41: 2019-07-19 04:00 | O41: 60 | P41: 2019-07-19 12:00 | Q41: 2019-07-25 07:00 | R41: 7月 | S41: 1934.906 | U41: 139 | V41: 1934.906 | X41: 34344.58 | AB41: 25113.17 | AC41: 9231.41 | AD41: =AC41 -> 9231.41 | AE41: 4.770986291 | AH41: 9231.41 | AI41: 4.770986291 | AK41: 0 | AL41: 0 | AM41: 张展鹏 | AN41: 张展鹏
A42: 业务完结 | B42: QYD19070075T01 | C42: 明珠938 | D42: 外包船 | E42: 1 | F42: 广州 | G42: 东莞市制糖厂有限公司 | H42: 甘蔗原糖 | I42: 沙角 | J42: 东莞糖厂码头 | K42: 2019-07-26 | L42: 2019-07-26 17:02 | M42: 2019-07-16 21:45 | N42: 2019-07-19 04:00 | O42: 54.25 | P42: 2019-07-19 14:00 | Q42: 2019-07-25 22:30 | R42: 7月 | S42: 1342.109 | U42: 152.5 | V42: 1342.109 | X42: 23822.43 | AB42: 18119.43 | AC42: 5703 | AD42: 5703 | AE42: 4.249282286 | AH42: 5703 | AI42: 4.249282286 | AK42: 0 | AL42: 0 | AM42: 张展鹏 | AN42: 张展鹏
A43: 业务完结 | B43: QYD19070077T01 | C43: 惠大昌328 | D43: 外包船 | E43: 1 | F43: 广州 | G43: 东莞市制糖厂有限公司 | H43: 甘蔗原糖 | I43: 沙角 | J43: 东莞糖厂码头 | K43: 2019-07-26 | L43: 2019-07-26 17:11 | M43: 2019-07-17 07:00 | N43: 2019-07-19 08:30 | O43: 49.5 | P43: 2019-07-19 14:00 | Q43: 2019-07-26 10:45 | R43: 7月 | S43: 1049.469 | U43: 164.75 | V43: 1049.469 | X43: 18628.07 | AB43: 14684.62 | AC43: 3943.45 | AD43: 3943.45 | AE43: 3.757566922 | AH43: 3943.45 | AI43: 3.757566922 | AK43: 0 | AL43: 0 | AM43: 张展鹏 | AN43: 张展鹏
A44: 业务完结 | B44: QYD19070078T01 | C44: 粤鼎湖货0698 | D44: 外包船-包 | E44: 1 | F44: 广州 | G44: 东莞市制糖厂有限公司 | H44: 甘蔗原糖 | I44: 黄埔新港码头 | J44: 东莞糖厂码头 | K44: 2019-07-26 | L44: 2019-07-27 16:30 | M44: 2019-07-19 06:00 | N44: 2019-07-20 07:00 | O44: 25 | P44: 2019-07-20 11:00 | Q44: 2019-07-26 22:45 | R44: 7月 | S44: 1106.547 | U44: 155.75 | V44: 1106.547 | X44: 14108.47 | AB44: 13723.16 | AC44: 385.31 | AD44: 385.31 | AE44: 0.3482093395 | AH44: 385.31 | AI44: 0.3482093395 | AK44: 0 | AL44: 0 | AM44: 张展鹏 | AN44: 张展鹏
A45: 业务完结 | B45: QYD19070076T01 | C45: 平南永佳808 | D45: 外包船-包 | E45: 1 | F45: 广州 | G45: 东莞市制糖厂有限公司 | H45: 甘蔗原糖 | I45: 沙角 | J45: 东莞糖厂码头 | K45: 2019-07-26 | L45: 2019-07-28 21:17 | M45: 2019-07-16 20:00 | N45: 2019-07-19 09:00 | O45: 61 | P45: 2019-07-19 14:30 | Q45: 2019-07-27 21:00 | R45: 7月 | S45: 924.582 | U45: 198.5 | V45: 924.582 | X45: 16411.33 | AB45: 15983.9 | AC45: 427.43 | AD45: 427.43 | AE45: 0.462295394 | AH45: 427.43 | AI45: 0.462295394 | AK45: 0 | AL45: 0 | AM45: 张展鹏 | AN45: 张展鹏
A46: 业务完结 | B46: QYD19070079T01 | C46: 粤鼎湖货6698 | D46: 外包船 | E46: 1 | F46: 广州 | G46: 东莞市制糖厂有限公司 | H46: 甘蔗原糖 | I46: 黄埔新港码头 | J46: 东莞糖厂码头 | K46: 2019-07-26 | L46: 2019-07-28 21:20 | M46: 2019-07-19 23:00 | N46: 2019-07-20 09:00 | O46: 10 | P46: 2019-07-20 12:00 | Q46: 2019-07-28 15:30 | R46: 7月 | S46: 1644.072 | U46: 195.5 | V46: 1644.072 | X46: 20961.92 | AB46: 21289.59 | AC46: -327.67 | AD46: -327.67 | AE46: -0.1993039234 | AH46: -327.67 | AI46: -0.1993039234 | AK46: 0 | AL46: 0 | AM46: 张展鹏 | AN46: 张展鹏
A47: 业务完结 | B47: QYD19070080T01 | C47: 桂藤县货0803 | D47: 外包船 | E47: 1 | F47: 广州 | G47: 东莞市制糖厂有限公司 | H47: 甘蔗原糖 | I47: 黄埔新港码头 | J47: 东莞糖厂码头 | K47: 2019-07-26 | L47: 2019-07-29 09:29 | M47: 2019-07-20 18:00 | N47: 2019-07-21 03:45 | O47: 9.75 | P47: 2019-07-21 07:45 | Q47: 2019-07-29 05:15 | R47: 7月 | S47: 1118.079 | U47: 189.5 | V47: 1118.079 | X47: 14255.51 | AB47: 14537.84 | AC47: -282.33 | AD47: -282.33 | AE47: -0.2525134628 | AH47: -282.33 | AI47: -0.2525134628 | AK47: 0 | AL47: 0 | AM47: 张展鹏 | AN47: 张展鹏
A48: 业务完结 | B48: QYD19070081T01 | C48: 桂平宏远6699 | D48: 外包船 | E48: 1 | F48: 广州 | G48: 东莞市制糖厂有限公司 | H48: 甘蔗原糖 | I48: 黄埔新港码头 | J48: 东莞糖厂码头 | K48: 2019-07-26 | L48: 2019-07-30 15:49 | M48: 2019-07-21 19:30 | N48: 2019-07-22 10:00 | O48: 14.5 | P48: 2019-07-22 14:00 | Q48: 2019-07-30 14:00 | R48: 7月 | S48: 2018.112 | U48: 192 | V48: 2018.112 | X48: 25730.93 | AB48: 26155.06 | AC48: -424.13 | AD48: -424.13 | AE48: -0.210161775 | AH48: -424.13 | AI48: -0.210161775 | AK48: 0 | AL48: 0 | AM48: 张展鹏 | AN48: 张展鹏
A49: 业务完结 | B49: QYD19070082T01 | C49: 桂平宏远7899 | D49: 外包船 | E49: 1 | F49: 广州 | G49: 东莞市制糖厂有限公司 | H49: 甘蔗原糖 | I49: 黄埔新港码头 | J49: 东莞糖厂码头 | K49: 2019-07-26 | L49: 2019-07-31 14:44 | M49: 2019-07-22 19:30 | N49: 2019-07-23 17:00 | O49: 21.5 | P49: 2019-07-23 21:00 | Q49: 2019-07-31 12:00 | R49: 7月 | S49: 1716.045 | U49: 183 | V49: 1716.045 | X49: 19762.5 | AB49: 22174.61 | AC49: -2412.11 | AD49: -2412.11 | AE49: -1.405621647 | AH49: -2412.11 | AI49: -1.405621647 | AK49: 0 | AL49: 0 | AM49: 张展鹏 | AN49: 张展鹏
A50: 业务完结 | B50: QYD19040047T01 | C50: 平南永佳808 | D50: 外包船-包 | E50: 1 | F50: 广州 | G50: 佛山市储备粮管理总公司 | H50: 小麦 | I50: 顺德粮库 | J50: 肇庆福加德 | K50: 2019-04-16 | L50: 2019-04-30 09:30 | M50: 2019-04-22 14:30 | N50: 2019-04-25 18:15 | O50: 75.75 | P50: 2019-04-27 11:00 | Q50: 2019-04-29 05:00 | R50: 4月 | S50: 893.81 | U50: 42 | V50: 894.32 | X50: 17886.4 | AB50: 16476.74 | AC50: 1409.66 | AD50: 1409.66 | AE50: 1.57713608 | AH50: 1409.66 | AI50: 1.57713608 | AK50: -0.51 | AL50: -0.51 | AM50: 潘锦洪 | AN50: 潘锦洪
A51: 业务完结 | B51: QYD19050023T01 | C51: 粤鼎湖货2268 | D51: 外包船 | E51: 1 | F51: 广州 | G51: 佛山市储备粮管理总公司 | H51: 小麦 | I51: 顺德粮库 | J51: 开兰面粉厂 | K51: 2019-05-13 | L51: 2019-05-17 16:31 | M51: 2019-05-12 07:00 | N51: 2019-05-14 15:00 | O51: 56 | P51: 2019-05-15 12:00 | Q51: 2019-05-17 16:15 | R51: 5月 | S51: 1098.891 | U51: 52.25 | V51: 1100.41 | X51: 27510.25 | AB51: 23319.58 | AC51: 4190.67 | AD51: 4190.67 | AE51: 3.813544746 | AH51: 4190.67 | AI51: 3.813544746 | AK51: -1.519 | AL51: -1.519 | AM51: 潘锦洪 | AN51: 潘锦洪
A52: 业务完结 | B52: QYD19070007T01 | C52: 新通河3303 | D52: 自有船 | E52: 1 | F52: 江门 | G52: 广东华糖实业有限公司 | H52: 甘蔗原糖 | I52: 南沙粮食通用码头 | J52: 双水码头 | K52: 2019-07-03 | L52: 2019-08-01 11:05 | M52: 2019-07-03 11:00 | N52: 2019-07-08 14:15 | O52: 123.25 | P52: 2019-07-09 14:00 | Q52: 2019-07-10 03:15 | R52: 7月 | S52: 1810.68 | U52: 13.25 | V52: 1809.92 | X52: 83291.28 | Y52: 9 | Z52: =X52/(100+Y52)*100 -> 76414.01835 | AA52: 18116.66291 | AB52: 49007.68 | AC52: 34283.6 | AD52: =Z52-AA52-AB52 -> 9289.675441 | AE52: 5.130489894 | AH52: 9289.675441 | AI52: 5.130489894 | AK52: 0.76 | AL52: 0.76 | AM52: 刘全 | AN52: 刘全
A53: 业务完结 | B53: QYD19070007T01 | C53: 粤鼎湖货0698 | D53: 外包船-包 | E53: 1 | F53: 江门 | G53: 广东华糖实业有限公司 | H53: 甘蔗原糖 | I53: 南沙粮食通用码头 | J53: 双水码头 | K53: 2019-07-03 | L53: 2019-08-01 11:05 | M53: 2019-07-05 22:45 | N53: 2019-07-08 22:30 | O53: 71.75 | P53: 2019-07-09 22:00 | Q53: 2019-07-11 16:00 | R53: 7月 | S53: 1019.44 | U53: 42 | V53: 1019.66 | X53: 46894.24 | AB53: 45905.94 | AC53: 988.3 | AD53: =AC53 -> 988.3 | AE53: 0.9694538178 | AH53: 988.3 | AI53: 0.9694538178 | AK53: -0.22 | AL53: -0.22 | AM53: 刘全 | AN53: 刘全
A54: 业务完结 | B54: QYD19070007T01 | C54: 新通河3308 | D54: 自有船 | E54: 1 | F54: 江门 | G54: 广东华糖实业有限公司 | H54: 甘蔗原糖 | I54: 南沙粮食通用码头 | J54: 双水码头 | K54: 2019-07-03 | L54: 2019-08-01 11:05 | M54: 2019-07-05 15:45 | N54: 2019-07-08 04:15 | O54: 60.5 | P54: 2019-07-10 01:45 | Q54: 2019-07-12 04:45 | R54: 7月 | S54: 1706.1 | U54: 51 | V54: 1706.88 | X54: 78480.6 | Y54: 9 | Z54: =X54/(100+Y54)*100 -> 72000.55046 | AA54: 18329.86094 | AB54: 46185.6 | AC54: 32295 | AD54: =Z54-AA54-AB54 -> 7485.089523 | AE54: 4.387251347 | AH54: 7485.089523 | AI54: 4.387251347 | AK54: -0.78 | AL54: -0.78 | AM54: 刘全 | AN54: 刘全
A55: 业务完结 | B55: QYD19070007T01 | C55: 粤广州货0811 | D55: 外包船 | E55: 1 | F55: 江门 | G55: 广东华糖实业有限公司 | H55: 甘蔗原糖 | I55: 南沙粮食通用码头 | J55: 双水码头 | K55: 2019-07-03 | L55: 2019-08-01 11:05 | M55: 2019-07-07 06:30 | N55: 2019-07-09 14:30 | O55: 56 | P55: 2019-07-10 15:00 | Q55: 2019-07-13 12:30 | R55: 7月 | S55: 1536.38 | U55: 69.5 | V55: 1535.86 | X55: 70673.48 | AB55: 68359.43 | AC55: 2314.05 | AD55: =AC55 -> 2314.05 | AE55: 1.506170348 | AH55: 2314.05 | AI55: 1.506170348 | AK55: 0.52 | AL55: 0.52 | AM55: 刘全 | AN55: 刘全
A56: 业务完结 | B56: QYD19070007T01 | C56: 桂平宏远6699 | D56: 外包船 | E56: 1 | F56: 江门 | G56: 广东华糖实业有限公司 | H56: 甘蔗原糖 | I56: 南沙粮食通用码头 | J56: 双水码头 | K56: 2019-07-03 | L56: 2019-08-01 11:05 | M56: 2019-07-05 23:30 | N56: 2019-07-09 10:00 | O56: 82.5 | P56: 2019-07-10 09:00 | Q56: 2019-07-13 23:00 | R56: 7月 | S56: 1980.18 | U56: 86 | V56: 1979.36 | X56: 91088.28 | AB56: 85919.83 | AC56: 5168.45 | AD56: 5168.45 | AE56: 2.610091002 | AH56: 5168.45 | AI56: 2.610091002 | AK56: 0.82 | AL56: 0.82 | AM56: 刘全 | AN56: 刘全
A57: 业务完结 | B57: QYD19070007T01 | C57: 粤鼎湖货8288 | D57: 外包船 | E57: 1 | F57: 江门 | G57: 广东华糖实业有限公司 | H57: 甘蔗原糖 | I57: 南沙粮食通用码头 | J57: 双水码头 | K57: 2019-07-03 | L57: 2019-08-01 11:05 | M57: 2019-07-07 11:45 | N57: 2019-07-09 23:30 | O57: 59.75 | P57: 2019-07-10 19:30 | Q57: 2019-07-14 01:15 | R57: 7月 | S57: 1989.61 | U57: 77.75 | V57: 1989.16 | X57: 91522.06 | AB57: 86329.57 | AC57: 5192.49 | AD57: 5192.49 | AE57: 2.609802926 | AH57: 5192.49 | AI57: 2.609802926 | AK57: 0.45 | AL57: 0.45 | AM57: 刘全 | AN57: 刘全
A58: 业务完结 | B58: QYD19070007T01 | C58: 粤信和833 | D58: 外包船 | E58: 1 | F58: 江门 | G58: 广东华糖实业有限公司 | H58: 甘蔗原糖 | I58: 南沙粮食通用码头 | J58: 双水码头 | K58: 2019-07-03 | L58: 2019-08-01 11:05 | M58: 2019-07-07 15:30 | N58: 2019-07-10 04:15 | O58: 60.75 | P58: 2019-07-10 22:30 | Q58: 2019-07-14 16:30 | R58: 7月 | S58: 1601.62 | U58: 90 | V58: 1599.78 | X58: 73674.52 | AB58: 71238.27 | AC58: 2436.25 | AD58: 2436.25 | AE58: 1.52111612 | AH58: 2436.25 | AI58: 1.52111612 | AK58: 1.84 | AL58: 1.84 | AM58: 刘全 | AN58: 刘全
A59: 业务完结 | B59: QYD19070007T01 | C59: 粤鼎湖货2268 | D59: 外包船 | E59: 1 | F59: 江门 | G59: 广东华糖实业有限公司 | H59: 甘蔗原糖 | I59: 南沙粮食通用码头 | J59: 双水码头 | K59: 2019-07-03 | L59: 2019-08-01 11:05 | M59: 2019-07-09 09:30 | N59: 2019-07-10 23:30 | O59: 38 | P59: 2019-07-11 18:00 | Q59: 2019-07-15 02:15 | R59: 7月 | S59: 1068.89 | U59: 80.25 | V59: 1069.86 | X59: 49168.94 | AB59: 46380.25 | AC59: 2788.69 | AD59: 2788.69 | AE59: 2.608958826 | AH59: 2788.69 | AI59: 2.608958826 | AK59: -0.97 | AL59: -0.97 | AM59: 刘全 | AN59: 刘全
A60: 业务完结 | B60: QYD19070007T01 | C60: 衡泰5678 | D60: 外包船 | E60: 1 | F60: 江门 | G60: 广东华糖实业有限公司 | H60: 甘蔗原糖 | I60: 南沙粮食通用码头 | J60: 双水码头 | K60: 2019-07-03 | L60: 2019-08-01 11:05 | M60: 2019-07-10 09:30 | N60: 2019-07-11 16:00 | O60: 30.5 | P60: 2019-07-14 10:30 | Q60: 2019-07-15 20:00 | R60: 7月 | S60: 1821.49 | U60: 33.5 | V60: 1775.76 | X60: 83788.54 | AB60: 80276.74 | AC60: 3511.8 | AD60: 3511.8 | AE60: 1.927982037 | AH60: 3511.8 | AI60: 1.927982037 | AJ60: 取消“平南永佳3916”计划，更换为“衡泰5678”吨位不变。 | AK60: 45.73 | AL60: 45.73 | AM60: 刘全 | AN60: 刘全
A61: 新建 | B61: JMD19070019T01 | C61: 新通河3303 | D61: 自有船 | E61: 1 | F61: 江门 | G61: 广东华糖实业有限公司 | H61: 甘蔗原糖 | I61: 南沙粮食通用码头 | J61: 双水码头 | K61: 2019-07-23 | M61: 2019-07-24 06:30 | N61: 2019-07-25 06:15 | O61: 23.75 | P61: 2019-07-26 11:45 | Q61: 2019-07-27 00:15 | R61: 7月 | S61: 1799.75 | U61: 12.5 | V61: 1799.88 | X61: 82788.5 | Y61: 9 | Z61: =X61/(100+Y61)*100 -> 75952.75229 | AA61: 18116.66291 | AB61: 48713.5 | AC61: 34075 | AD61: =Z61-AA61-AB61 -> 9122.589386 | AE61: 5.068809216 | AH61: 9122.589386 | AI61: 5.068809216 | AK61: -0.13 | AL61: -0.13 | AM61: 刘全 | AN61: 潘锦洪
A62: 新建 | B62: JMD19070019T01 | C62: 新通河3308 | D62: 自有船 | E62: 1 | F62: 江门 | G62: 广东华糖实业有限公司 | H62: 甘蔗原糖 | I62: 南沙粮食通用码头 | J62: 双水码头 | K62: 2019-07-23 | M62: 2019-07-24 16:00 | N62: 2019-07-25 21:00 | O62: 29 | P62: 2019-07-26 19:45 | Q62: 2019-07-27 11:00 | R62: 7月 | S62: 1701.04 | U62: 15.25 | V62: 1699.62 | X62: 78247.84 | Y62: 9 | Z62: =X62/(100+Y62)*100 -> 71787.00917 | AA62: 18329.86094 | AB62: 46047.04 | AC62: 32200.8 | AD62: =Z62-AA62-AB62 -> 7410.108238 | AE62: 4.356222216 | AH62: 7410.108238 | AI62: 4.356222216 | AK62: 1.42 | AL62: 1.42 | AM62: 刘全 | AN62: 潘锦洪
A63: 业务完结 | B63: QYD19020075T01 | C63: 粤鼎湖货0698 | D63: 外包船-包 | E63: 1 | F63: 广州 | G63: 广东良运谷物有限公司 | H63: 小麦 | I63: 深圳赤湾港 | J63: 四会南江港 | K63: 2019-02-21 | L63: 2019-03-30 19:48 | M63: 2019-03-06 04:00 | N63: 2019-03-08 23:30 | O63: 67.5 | P63: 2019-03-10 08:30 | Q63: 2019-03-12 19:00 | R63: 3月 | S63: 765.757 | U63: 58.5 | V63: 768.8 | X63: 44311.42 | AB63: 38306.59 | AC63: 6004.83 | AD63: =AC63 -> 6004.83 | AE63: 7.841691294 | AH63: 6004.83 | AI63: 7.841691294 | AK63: -3.043 | AL63: -3.043 | AM63: 劳锡源 | AN63: 潘锦洪
A64: 业务完结 | B64: QYD19020075T01 | C64: 桂平宏远6699 | D64: 外包船 | E64: 1 | F64: 广州 | G64: 广东良运谷物有限公司 | H64: 小麦 | I64: 深圳赤湾港 | J64: 四会南江港 | K64: 2019-02-21 | L64: 2019-03-30 19:48 | M64: 2019-03-01 14:30 | N64: 2019-03-02 15:00 | O64: 24.5 | P64: 2019-03-03 18:00 | Q64: 2019-03-13 14:00 | R64: 3月 | S64: 1974.8 | U64: 236 | V64: 1980.077 | X64: 114314.52 | AB64: 115911.07 | AC64: -1596.55 | AD64: -1596.55 | AE64: -0.8084616164 | AH64: -1596.55 | AI64: -0.8084616164 | AK64: -5.277 | AL64: -5.277 | AM64: 张展鹏 | AN64: 潘锦洪
A65: 业务完结 | B65: QYD19020075T01 | C65: 桂藤县货0803 | D65: 外包船 | E65: 1 | F65: 广州 | G65: 广东良运谷物有限公司 | H65: 小麦 | I65: 深圳赤湾港 | J65: 四会南江港 | K65: 2019-02-21 | L65: 2019-03-30 19:48 | M65: 2019-03-11 09:00 | N65: 2019-03-11 23:00 | O65: 14 | P65: 2019-03-13 07:00 | Q65: 2019-03-15 23:15 | R65: 3月 | S65: 1117.11 | U65: 64.25 | V65: 1119.16 | X65: 64674.06 | AB65: 55910.91 | AC65: 8763.15 | AD65: 8763.15 | AE65: 7.844482638 | AH65: 8763.15 | AI65: 7.844482638 | AK65: -2.05 | AL65: -2.05 | AM65: 潘锦洪 | AN65: 潘锦洪
A66: 业务完结 | B66: QYD19020075T01 | C66: 桂庆运688 | D66: 外包船 | E66: 1 | F66: 广州 | G66: 广东良运谷物有限公司 | H66: 小麦 | I66: 深圳赤湾港 | J66: 四会南江港 | K66: 2019-02-21 | L66: 2019-03-30 19:48 | M66: 2019-03-13 07:00 | N66: 2019-03-13 20:30 | O66: 13.5 | P66: 2019-03-15 11:00 | Q66: 2019-03-16 17:30 | R66: 3月 | S66: 1070.85 | U66: 30.5 | V66: 1077.886 | X66: 62099.44 | AB66: 52644.21 | AC66: 9455.23 | AD66: 9455.23 | AE66: =AD66/S66 -> 8.829649344 | AH66: =AD66-AF66-AG66 -> 9455.23 | AI66: =AH66/S66 -> 8.829649344 | AK66: -7.036 | AL66: -7.036 | AM66: 潘锦洪 | AN66: 潘锦洪
A67: 业务完结 | B67: QYD19020075T01 | C67: 平南永佳808 | D67: 外包船-包 | E67: 1 | F67: 广州 | G67: 广东良运谷物有限公司 | H67: 小麦 | I67: 深圳赤湾港 | J67: 四会南江港 | K67: 2019-02-21 | L67: 2019-03-30 19:48 | M67: 2019-03-11 02:00 | N67: 2019-03-11 16:00 | O67: 14 | P67: 2019-03-14 20:30 | Q67: 2019-03-16 17:30 | R67: 3月 | S67: 823.3 | U67: 45 | V67: 825.62 | X67: 47749.66 | AB67: 48039.73 | AC67: -290.07 | AD67: -290.07 | AE67: -0.3523260051 | AH67: -290.07 | AI67: -0.3523260051 | AK67: -2.32 | AL67: -2.32 | AM67: 潘锦洪 | AN67: 潘锦洪
A68: 业务完结 | B68: QYD19020075T01 | C68: 桂平宏远6699 | D68: 外包船 | E68: 1 | F68: 广州 | G68: 广东良运谷物有限公司 | H68: 小麦 | I68: 深圳赤湾港 | J68: 四会南江港 | K68: 2019-02-21 | L68: 2019-03-30 19:48 | M68: 2019-03-14 07:30 | N68: 2019-03-15 02:00 | O68: 18.5 | P68: 2019-03-16 08:30 | Q68: 2019-03-18 22:30 | R68: 3月 | S68: 1975.21 | U68: 62 | V68: 1976.5 | X68: 80639.07 | AB68: 104070.61 | AC68: -23431.54 | AD68: -23431.54 | AE68: -11.86280952 | AH68: -23431.54 | AI68: -11.86280952 | AK68: -1.29 | AL68: -1.29 | AM68: 张展鹏 | AN68: 潘锦洪
A69: 业务完结 | B69: QYD19020075T01 | C69: 桂藤县货0803 | D69: 外包船 | E69: 1 | F69: 广州 | G69: 广东良运谷物有限公司 | H69: 小麦 | I69: 深圳赤湾港 | J69: 四会南江港 | K69: 2019-02-21 | L69: 2019-03-30 19:48 | M69: 2019-03-18 07:00 | N69: 2019-03-18 23:00 | O69: 16 | P69: 2019-03-20 03:30 | Q69: 2019-03-21 14:30 | R69: 3月 | S69: 1111.65 | U69: 35 | V69: 1119.54 | X69: 64455.98 | AB69: 61426.71 | AC69: 3029.27 | AD69: 3029.27 | AE69: 2.725021365 | AH69: 3029.27 | AI69: 2.725021365 | AK69: -7.89 | AL69: -7.89 | AM69: 潘锦洪 | AN69: 潘锦洪
A70: 业务完结 | B70: QYD19020075T01 | C70: 粤鼎湖货8288 | D70: 外包船 | E70: 1 | F70: 广州 | G70: 广东良运谷物有限公司 | H70: 小麦 | I70: 深圳赤湾港 | J70: 四会南江港 | K70: 2019-02-21 | L70: 2019-03-30 19:48 | M70: 2019-03-19 23:00 | N70: 2019-03-20 11:00 | O70: 12 | P70: 2019-03-21 10:30 | Q70: 2019-03-23 00:15 | R70: 3月 | S70: 1398.88 | U70: 37.75 | V70: 1398.8 | X70: 80855.48 | AB70: 79627.66 | AC70: 1227.82 | AD70: 1227.82 | AE70: 0.8777164589 | AH70: 1227.82 | AI70: 0.8777164589 | AK70: 0.08 | AL70: 0.08 | AM70: 劳锡源 | AN70: 潘锦洪
A71: 业务完结 | B71: QYD19040071T01 | C71: 粤鼎湖货0698 | D71: 外包船-包 | E71: 1 | F71: 广州 | G71: 广东良运谷物有限公司 | H71: 小麦 | I71: 芳村省粮三仓 | J71: 深圳赤湾港 | K71: 2019-04-22 | L71: 2019-05-22 10:59 | M71: 2019-04-23 16:30 | N71: 2019-04-27 17:00 | O71: 96.5 | P71: 2019-04-28 11:30 | Q71: 2019-05-11 01:00 | R71: 5月 | S71: 995.08 | U71: 301.5 | V71: 995.36 | X71: 24874.72 | AB71: 24834.47 | AC71: 40.25 | AD71: 40.25 | AE71: 0.04044900912 | AH71: 40.25 | AI71: 0.04044900912 | AK71: -0.28 | AL71: -0.28 | AM71: 潘锦洪 | AN71: 潘锦洪
A72: 业务完结 | B72: QYD19040071T01 | C72: 惠大昌328 | D72: 外包船 | E72: 1 | F72: 广州 | G72: 广东良运谷物有限公司 | H72: 小麦 | I72: 芳村省粮三仓 | J72: 深圳赤湾港 | K72: 2019-04-22 | L72: 2019-05-22 10:59 | M72: 2019-04-29 10:30 | N72: 2019-05-01 17:30 | O72: 55 | P72: 2019-05-02 16:00 | Q72: 2019-05-12 19:45 | R72: 5月 | S72: 563.18 | U72: 243.75 | V72: 563.18 | X72: 12600 | AB72: 12466.48 | AC72: 133.52 | AD72: 133.52 | AE72: 0.2370822828 | AH72: 133.52 | AI72: 0.2370822828 | AK72: 0 | AL72: 0 | AM72: 张佩欣 | AN72: 潘锦洪
A73: 业务完结 | B73: QYD19050025T01 | C73: 粤鼎湖货0698 | D73: 外包船-包 | E73: 1 | F73: 广州 | G73: 广东良运谷物有限公司 | H73: 小麦 | I73: 深圳赤湾港 | J73: 穗丰仓 | K73: 2019-05-13 | L73: 2019-05-22 10:59 | M73: 2019-05-11 01:00 | N73: 2019-05-11 02:30 | O73: 1.5 | P73: 2019-05-13 15:45 | Q73: 2019-05-14 17:00 | R73: 5月 | S73: 990.86 | U73: 25.25 | V73: 995.08 | X73: 11036.71 | AB73: 9085.35 | AC73: 1951.36 | AD73: 1951.36 | AE73: 1.96935995 | AH73: 1951.36 | AI73: 1.96935995 | AK73: -4.22 | AL73: -4.22 | AM73: 张展鹏 | AN73: 潘锦洪
A74: 业务完结 | B74: QYD19050025T01 | C74: 惠大昌328 | D74: 外包船 | E74: 1 | F74: 广州 | G74: 广东良运谷物有限公司 | H74: 小麦 | I74: 深圳赤湾港 | J74: 穗丰仓 | K74: 2019-05-13 | L74: 2019-05-22 10:59 | M74: 2019-05-13 08:00 | N74: 2019-05-13 11:45 | O74: 3.75 | P74: 2019-05-13 23:15 | Q74: 2019-05-15 05:30 | R74: 5月 | S74: 559.185 | U74: 30.25 | V74: 563.18 | X74: 6185.5 | AB74: 10119.32 | AC74: -3933.82 | AD74: -3933.82 | AE74: -7.034916888 | AH74: -3933.82 | AI74: -7.034916888 | AK74: -3.995 | AL74: -3.995 | AM74: 潘锦洪 | AN74: 潘锦洪
A75: 业务完结 | B75: QYD19050034T01 | C75: 粤惠州货328 | D75: 外包船 | E75: 1 | F75: 广州 | G75: 广东良运谷物有限公司 | H75: 小麦 | I75: 新造省粮二仓 | J75: 南沙穗粮 | K75: 2019-05-14 | L75: 2019-06-10 15:12 | M75: 2019-05-14 12:00 | N75: 2019-05-21 16:00 | O75: 172 | P75: 2019-05-22 02:15 | Q75: 2019-06-04 11:45 | R75: 6月 | S75: 1399.254 | U75: 321.5 | V75: 1405.47 | X75: 34981.35 | AB75: 35179.84 | AC75: -198.49 | AD75: -198.49 | AE75: -0.1418541594 | AH75: -198.49 | AI75: -0.1418541594 | AK75: -6.216 | AL75: -6.216 | AM75: 张展鹏 | AN75: 潘锦洪
A76: 业务完结 | B76: QYD19050034T01 | C76: 粤鼎湖货0698 | D76: 外包船-包 | E76: 1 | F76: 广州 | G76: 广东良运谷物有限公司 | H76: 小麦 | I76: 新造省粮二仓 | J76: 南沙穗粮 | K76: 2019-05-14 | L76: 2019-06-10 15:12 | M76: 2019-05-28 07:00 | N76: 2019-06-01 12:15 | O76: 101.25 | P76: 2019-06-01 23:00 | Q76: 2019-06-10 15:00 | R76: 6月 | S76: 1039.038 | U76: 208 | V76: 1042.06 | X76: 19741.72 | AB76: 19300.17 | AC76: 441.55 | AD76: 441.55 | AE76: 0.4249603961 | AH76: 441.55 | AI76: 0.4249603961 | AK76: -3.022 | AL76: -3.022 | AM76: 潘锦洪 | AN76: 潘锦洪
A77: 业务完结 | B77: QYD19050058T01 | C77: 粤都城货9026 | D77: 外包船 | E77: 1 | F77: 广州 | G77: 广东省粮油储运公司 | H77: 小麦 | I77: 新造省粮二仓 | J77: 芳村省粮一仓 | K77: 2019-05-22 | L77: 2019-06-17 10:00 | M77: 2019-05-23 08:00 | N77: 2019-05-25 22:30 | O77: 62.5 | P77: 2019-05-26 01:15 | Q77: 2019-06-03 19:45 | R77: 6月 | S77: 1098.08 | U77: 210.5 | V77: 1101.53 | X77: 16203.05 | AB77: 14402.18 | AC77: 1800.87 | AD77: 1800.87 | AE77: 1.640017121 | AH77: 1800.87 | AI77: 1.640017121 | AK77: -3.45 | AL77: -3.45 | AM77: 潘锦洪 | AN77: 潘锦洪
A78: 业务完结 | B78: QYD19050058T01 | C78: 惠大昌328 | D78: 外包船 | E78: 1 | F78: 广州 | G78: 广东省粮油储运公司 | H78: 小麦 | I78: 新造省粮二仓 | J78: 芳村省粮一仓 | K78: 2019-05-22 | L78: 2019-06-17 10:00 | M78: 2019-05-31 08:30 | N78: 2019-06-05 10:15 | O78: 121.75 | P78: 2019-06-05 12:30 | Q78: 2019-06-12 10:30 | R78: 6月 | S78: 1024.524 | U78: 166 | V78: 1029.05 | X78: 11908.03 | AB78: 11198.05 | AC78: 709.98 | AD78: 709.98 | AE78: 0.6929852302 | AH78: 709.98 | AI78: 0.6929852302 | AK78: -4.526 | AL78: -4.526 | AM78: 潘锦洪 | AN78: 潘锦洪
A79: 业务完结 | B79: QYD19050058T01 | C79: 平南永佳808 | D79: 外包船-包 | E79: 1 | F79: 广州 | G79: 广东省粮油储运公司 | H79: 小麦 | I79: 新造省粮二仓 | J79: 芳村省粮一仓 | K79: 2019-05-22 | L79: 2019-06-17 10:00 | M79: 2019-06-07 07:15 | N79: 2019-06-09 10:15 | O79: 51 | P79: 2019-06-09 14:45 | Q79: 2019-06-15 19:00 | R79: 6月 | S79: 939.6 | U79: 148.25 | V79: 942.51 | X79: 12071.2 | AB79: 11810.77 | AC79: 260.43 | AD79: 260.43 | AE79: 0.2771711367 | AH79: 260.43 | AI79: 0.2771711367 | AK79: -2.91 | AL79: -2.91 | AM79: 潘锦洪 | AN79: 潘锦洪
A80: 业务完结 | B80: JMD18120012T01 | C80: 桂平宏远6699 | D80: 外包船 | E80: 1 | F80: 江门 | G80: 广东双水码头有限公司 | H80: 甘蔗原糖 | I80: 南沙粮食通用码头 | J80: 双水码头 | K80: 2018-12-24 | L80: 2019-01-04 17:34 | M80: 2018-12-28 10:00 | N80: 2018-12-30 09:00 | O80: 47 | P80: 2018-12-31 08:30 | Q80: 2019-01-02 15:00 | R80: 1月 | S80: 1905.56 | U80: 54.5 | V80: 1909.72 | X80: 36284.68 | AB80: 34094.91 | AC80: 2189.77 | AD80: 2189.77 | AE80: 1.149147757 | AG80: =X80*(8%/12)*3 -> 725.6936 | AH80: 1464.0764 | AI80: 0.7683181847 | AK80: -4.16 | AL80: -4.16 | AM80: 潘锦洪 | AN80: 潘锦洪
A81: 业务完结 | B81: JMD18120012T01 | C81: 粤鼎湖货6698 | D81: 外包船 | E81: 1 | F81: 江门 | G81: 广东双水码头有限公司 | H81: 甘蔗原糖 | I81: 南沙粮食通用码头 | J81: 双水码头 | K81: 2018-12-24 | L81: 2019-01-04 17:34 | M81: 2018-12-28 14:00 | N81: 2018-12-31 01:30 | O81: 59.5 | P81: 2018-12-31 16:30 | Q81: 2019-01-03 05:30 | R81: 1月 | S81: 1525.07 | U81: 61 | V81: 1529.16 | X81: 27840.76 | AB81: 27288.43 | AC81: 552.33 | AD81: 552.33 | AE81: 0.3621669825 | AG81: 556.8152 | AH81: -4.4852 | AI81: -0.002940979758 | AK81: -4.09 | AL81: -4.09 | AM81: 潘锦洪 | AN81: 潘锦洪
A82: 业务完结 | B82: JMD18120012T01 | C82: 桂平宏远7899 | D82: 外包船 | E82: 1 | F82: 江门 | G82: 广东双水码头有限公司 | H82: 甘蔗原糖 | I82: 南沙粮食通用码头 | J82: 双水码头 | K82: 2018-12-24 | L82: 2019-01-04 17:34 | M82: 2018-12-28 18:00 | N82: 2018-12-31 17:00 | O82: 71 | P82: 2019-01-01 19:30 | Q82: 2019-01-03 19:30 | R82: 1月 | S82: 1541.2 | U82: 48 | V82: 1543.34 | X82: 29323.46 | AB82: 27590.87 | AC82: 1732.59 | AD82: 1732.59 | AE82: 1.124182455 | AG82: 586.4692 | AH82: 1146.1208 | AI82: 0.7436548144 | AK82: -2.14 | AL82: -2.14 | AM82: 潘锦洪 | AN82: 潘锦洪
A83: 业务完结 | B83: JMD19010001T01 | C83: 新通河3301 | D83: 自有船 | E83: 1 | F83: 江门 | G83: 广东双水码头有限公司 | H83: 纸浆 | I83: 珠海港高栏国码 | J83: 双水码头 | K83: 2019-01-03 | L83: 2019-01-07 09:13 | M83: 2019-01-04 00:00 | N83: 2019-01-04 08:15 | O83: 8.25 | P83: 2019-01-04 22:00 | Q83: 2019-01-06 12:00 | R83: 1月 | S83: 2200 | U83: 38 | V83: 2200 | X83: 29700 | Y83: 10 | Z83: =X83/(100+Y83)*100 -> 27000 | AA83: 24006.09 | AB83: 219.56 | AC83: 29480.44 | AD83: =Z83-AA83-AB83 -> 2774.35 | AE83: 1.261068182 | AG83: 594 | AH83: 2180.35 | AI83: 0.9910681818 | AK83: 0 | AL83: 0 | AM83: 潘锦洪 | AN83: 潘锦洪
A84: 业务完结 | B84: JMD19010007T01 | C84: 粤三埠货8033 | D84: 外包船 | E84: 1 | F84: 江门 | G84: 广东双水码头有限公司 | H84: 纸浆 | I84: 珠海港高栏国码 | J84: 新会高宝隆 | K84: 2019-01-09 | L84: 2019-01-14 10:04 | M84: 2019-01-11 16:30 | N84: 2019-01-12 01:15 | O84: 8.75 | P84: 2019-01-12 14:00 | Q84: 2019-01-13 11:30 | R84: 1月 | S84: 1000 | U84: 21.5 | V84: 1000 | X84: 13500 | AB84: 13070 | AC84: 430 | AD84: =AC84 -> 430 | AE84: 0.43 | AG84: 270 | AH84: 160 | AI84: 0.16 | AK84: 0 | AL84: 0 | AM84: 潘锦洪 | AN84: 潘锦洪
A85: 业务完结 | B85: JMD19010009T01 | C85: 新通河3303 | D85: 自有船 | E85: 1 | F85: 江门 | G85: 广东双水码头有限公司 | H85: 纸浆 | I85: 珠海港高栏国码 | J85: 双水码头 | K85: 2019-01-18 | L85: 2019-01-21 14:33 | M85: 2019-01-19 08:45 | N85: 2019-01-19 15:30 | O85: 6.75 | P85: 2019-01-20 12:00 | Q85: 2019-01-21 14:00 | R85: 1月 | S85: 1000 | U85: 26 | V85: 1000 | X85: 13500 | Y85: 10 | Z85: =X85/(100+Y85)*100 -> 12272.72727 | AA85: 13014.81222 | AB85: 172.04 | AC85: 13327.96 | AD85: =Z85-AA85-AB85 -> -914.1249495 | AE85: -0.9141249495 | AG85: 270 | AH85: -1184.124949 | AI85: -1.184124949 | AK85: 0 | AL85: 0 | AM85: 潘锦洪 | AN85: 潘锦洪
A86: 业务完结 | B86: JMD19010011T01 | C86: 新通河3303 | D86: 自有船 | E86: 1 | F86: 江门 | G86: 广东双水码头有限公司 | H86: 纸浆 | I86: 珠海港高栏国码 | J86: 双水码头 | K86: 2019-01-23 | L86: 2019-01-27 09:38 | M86: 2019-01-24 07:00 | N86: 2019-01-24 15:15 | O86: 8.25 | P86: 2019-01-25 01:45 | Q86: 2019-01-26 15:15 | R86: 1月 | S86: 1200 | U86: 37.5 | V86: 1200 | X86: 16200 | Y86: 10 | Z86: =X86/(100+Y86)*100 -> 14727.27273 | AA86: 13014.81222 | AB86: 172.04 | AC86: 16027.96 | AD86: =Z86-AA86-AB86 -> 1540.420505 | AE86: 1.283683754 | AG86: 324 | AH86: 1216.420505 | AI86: 1.013683754 | AK86: 0 | AL86: 0 | AM86: 潘锦洪 | AN86: 潘锦洪
A87: 业务完结 | B87: JMD19010012T01 | C87: 新通河3301 | D87: 自有船 | E87: 1 | F87: 江门 | G87: 广东双水码头有限公司 | H87: 纸浆 | I87: 珠海港高栏国码 | J87: 双水码头 | K87: 2019-01-25 | L87: 2019-01-31 09:06 | M87: 2019-01-27 16:30 | N87: 2019-01-28 02:45 | O87: 10.25 | P87: 2019-01-28 17:45 | Q87: 2019-01-30 16:30 | R87: 1月 | S87: 2500 | U87: 46.75 | V87: 2500 | X87: 33750 | Y87: 10 | Z87: =X87/(100+Y87)*100 -> 30681.81818 | AA87: 24006.09 | AB87: 198.36 | AC87: 33551.64 | AD87: =Z87-AA87-AB87 -> 6477.368182 | AE87: 2.590947273 | AG87: 675 | AH87: 5802.368182 | AI87: 2.320947273 | AK87: 0 | AL87: 0 | AM87: 张佩欣 | AN87: 潘锦洪
A88: 业务完结 | B88: JMD19010014T01 | C88: 新通河3303 | D88: 自有船 | E88: 1 | F88: 江门 | G88: 广东双水码头有限公司 | H88: 纸浆 | I88: 珠海港高栏国码 | J88: 双水码头 | K88: 2019-01-29 | L88: 2019-01-31 09:09 | M88: 2019-01-29 12:45 | N88: 2019-01-29 19:45 | O88: 7 | P88: 2019-01-30 04:00 | Q88: 2019-01-30 17:30 | R88: 1月 | S88: 982.832 | U88: 13.5 | V88: 982.832 | X88: 13268.23 | Y88: 10 | Z88: =X88/(100+Y88)*100 -> 12062.02727 | AA88: 13014.81222 | AB88: 52.04 | AC88: 13216.19 | AD88: =Z88-AA88-AB88 -> -1004.824949 | AE88: -1.02237712 | AG88: 265.3646 | AH88: -1270.189549 | AI88: -1.292377079 | AK88: 0 | AL88: 0 | AM88: 劳锡源 | AN88: 潘锦洪
A89: 业务完结 | B89: JMD19020001T01 | C89: 粤南方282 | D89: 外包船 | E89: 1 | F89: 江门 | G89: 广东双水码头有限公司 | H89: 纸浆 | I89: 珠海港高栏国码 | J89: 双水码头 | K89: 2019-02-03 | L89: 2019-02-12 15:24 | M89: 2019-02-09 20:00 | N89: 2019-02-10 20:30 | O89: 24.5 | P89: 2019-02-11 03:00 | Q89: 2019-02-12 15:30 | R89: 2月 | S89: 984.846 | U89: 36.5 | V89: 984.846 | X89: 13295.42 | AB89: 12330.27 | AC89: 965.15 | AD89: =AC89 -> 965.15 | AE89: 0.9800009342 | AG89: 265.9084 | AH89: 699.2416 | AI89: 0.7100009545 | AK89: 0 | AL89: 0 | AM89: 潘锦洪 | AN89: 潘锦洪
A90: 业务完结 | B90: JMD19020002T01 | C90: 新通河3301 | D90: 自有船 | E90: 1 | F90: 江门 | G90: 广东双水码头有限公司 | H90: 纸浆 | I90: 珠海港高栏国码 | J90: 双水码头 | K90: 2019-02-12 | L90: 2019-02-16 17:38 | M90: 2019-02-13 13:15 | N90: 2019-02-14 04:00 | O90: 14.75 | P90: 2019-02-14 17:30 | Q90: 2019-02-16 15:30 | R90: 2月 | S90: 2500 | T90: 1250 | U90: 46 | V90: 2500 | W90: 1250 | X90: 33750 | Y90: 10 | Z90: =X90/(100+Y90)*100 -> 30681.81818 | AA90: 26869.49621 | AB90: 99.56 | AC90: 33650.44 | AD90: =Z90-AA90-AB90 -> 3712.761969 | AE90: 1.485104788 | AG90: 675 | AH90: 3037.761969 | AI90: 1.215104788 | AK90: 0 | AL90: 0 | AM90: 潘锦洪 | AN90: 潘锦洪
A91: 业务完结 | B91: JMD19020003T01 | C91: 新通河3308 | D91: 自有船 | E91: 1 | F91: 江门 | G91: 广东双水码头有限公司 | H91: 纸浆 | I91: 珠海港高栏国码 | J91: 新会高宝隆 | K91: 2019-02-14 | L91: 2019-02-19 16:28 | M91: 2019-02-15 21:45 | N91: 2019-02-16 04:45 | O91: 7 | P91: 2019-02-16 21:15 | Q91: 2019-02-19 15:30 | R91: 2月 | S91: 1600 | T91: 800 | U91: 66.25 | V91: 1600 | W91: 800 | X91: 21600 | Y91: 10 | Z91: =X91/(100+Y91)*100 -> 19636.36364 | AA91: 22234.46277 | AB91: 60.56 | AC91: 21539.44 | AD91: =Z91-AA91-AB91 -> -2658.65913 | AE91: -1.661661956 | AG91: 432 | AH91: -3090.65913 | AI91: -1.931661956 | AK91: 0 | AL91: 0 | AM91: 潘锦洪 | AN91: 潘锦洪
A92: 业务完结 | B92: JMD19020005T01 | C92: 桂平宏远6699 | D92: 外包船 | E92: 1 | F92: 江门 | G92: 广东双水码头有限公司 | H92: 纸浆 | I92: 珠海港高栏国码 | J92: 双水码头 | K92: 2019-02-16 | L92: 2019-02-19 16:31 | M92: 2019-02-16 19:15 | N92: 2019-02-17 05:00 | O92: 9.75 | P92: 2019-02-17 23:00 | Q92: 2019-02-19 16:00 | R92: 2月 | S92: 1776 | T92: 888 | U92: 41 | V92: 1776 | W92: 888 | X92: 23976 | AB92: 22235.52 | AC92: 1740.48 | AD92: =AC92 -> 1740.48 | AE92: 0.98 | AG92: 479.52 | AH92: 1260.96 | AI92: 0.71 | AK92: 0 | AL92: 0 | AM92: 潘锦洪 | AN92: 潘锦洪
A93: 业务完结 | B93: JMD19020006T01 | C93: 粤南方282 | D93: 外包船 | E93: 1 | F93: 江门 | G93: 广东双水码头有限公司 | H93: 纸浆 | I93: 珠海港高栏国码 | J93: 新会高宝隆 | K93: 2019-02-16 | L93: 2019-02-20 17:09 | M93: 2019-02-17 11:45 | N93: 2019-02-17 19:45 | O93: 8 | P93: 2019-02-18 10:00 | Q93: 2019-02-20 13:00 | R93: 2月 | S93: 1000 | T93: 500 | U93: 51 | V93: 1000 | W93: 500 | X93: 13500 | AB93: 13020 | AC93: 480 | AD93: =AC93 -> 480 | AE93: 0.48 | AG93: 270 | AH93: 210 | AI93: 0.21 | AK93: 0 | AL93: 0 | AM93: 潘锦洪 | AN93: 潘锦洪
A94: 业务完结 | B94: JMD19020007T01 | C94: 新通河3308 | D94: 自有船 | E94: 1 | F94: 江门 | G94: 广东双水码头有限公司 | H94: 纸浆 | I94: 珠海港高栏国码 | J94: 新会高宝隆 | K94: 2019-02-20 | L94: 2019-02-23 09:49 | M94: 2019-02-20 09:30 | N94: 2019-02-20 20:00 | O94: 10.5 | P94: 2019-02-21 11:30 | Q94: 2019-02-22 20:15 | R94: 2月 | S94: 1500 | U94: 32.75 | V94: 1500 | W94: 750 | X94: 20250 | Y94: 10 | Z94: =X94/(100+Y94)*100 -> 18409.09091 | AA94: 22234.46277 | AB94: 60.56 | AC94: 20189.44 | AD94: =Z94-AA94-AB94 -> -3885.931857 | AE94: -2.590621238 | AG94: 405 | AH94: -4290.931857 | AI94: -2.860621238 | AK94: 0 | AL94: 0 | AM94: 潘锦洪 | AN94: 潘锦洪
A95: 业务完结 | B95: JMD19020008T01 | C95: 新通河3301 | D95: 自有船 | E95: 1 | F95: 江门 | G95: 广东双水码头有限公司 | H95: 纸浆 | I95: 珠海港高栏国码 | J95: 双水码头 | K95: 2019-02-20 | L95: 2019-02-23 16:05 | M95: 2019-02-20 10:30 | N95: 2019-02-21 06:30 | O95: 20 | P95: 2019-02-22 00:45 | Q95: 2019-02-23 14:15 | R95: 2月 | S95: 2536 | U95: 37.5 | V95: 2536 | W95: 1268 | X95: 34236 | Y95: 10 | Z95: =X95/(100+Y95)*100 -> 31123.63636 | AA95: 26869.49621 | AB95: 208.96 | AC95: 34027.04 | AD95: =Z95-AA95-AB95 -> 4045.180151 | AE95: 1.595102583 | AG95: 684.72 | AH95: 3360.460151 | AI95: 1.325102583 | AK95: 0 | AL95: 0 | AM95: 生生物流 | AN95: 潘锦洪
A96: 业务完结 | B96: JMD19020010T01 | C96: 新通河3303 | D96: 自有船 | E96: 1 | F96: 江门 | G96: 广东双水码头有限公司 | H96: 纸浆 | I96: 珠海港高栏国码 | J96: 双水码头 | K96: 2019-02-23 | L96: 2019-02-26 14:44 | M96: 2019-02-23 04:00 | N96: 2019-02-24 16:00 | O96: 36 | P96: 2019-02-25 07:00 | Q96: 2019-02-26 14:15 | R96: 2月 | S96: 1500 | T96: 750 | U96: 31.25 | V96: 1500 | W96: 750 | X96: 20250 | Y96: 10 | Z96: =X96/(100+Y96)*100 -> 18409.09091 | AA96: 24901.87468 | AB96: 182.64 | AC96: 20067.36 | AD96: =Z96-AA96-AB96 -> -6675.423772 | AE96: -4.450282515 | AG96: 405 | AH96: -7080.423772 | AI96: -4.720282515 | AK96: 0 | AL96: 0 | AM96: 潘锦洪 | AN96: 潘锦洪
A97: 业务完结 | B97: JMD19020012T01 | C97: 新通河3303 | D97: 自有船 | E97: 1 | F97: 江门 | G97: 广东双水码头有限公司 | H97: 纸浆 | I97: 珠海港高栏国码 | J97: 双水码头 | K97: 2019-02-27 | L97: 2019-03-01 14:23 | M97: 2019-02-26 22:45 | N97: 2019-02-27 17:15 | O97: 18.5 | P97: 2019-02-28 14:45 | Q97: 2019-03-01 14:00 | R97: 3月 | S97: 1500 | U97: 23.25 | V97: 1500 | X97: 20250 | Y97: 10 | Z97: =X97/(100+Y97)*100 -> 18409.09091 | AA97: 10857.66386 | AB97: 193.24 | AC97: 20056.76 | AD97: =Z97-AA97-AB97 -> 7358.187053 | AE97: 4.905458035 | AG97: 405 | AH97: 6953.187053 | AI97: 4.635458035 | AK97: 0 | AL97: 0 | AM97: 潘锦洪 | AN97: 潘锦洪
A98: 业务完结 | B98: JMD19030004T01 | C98: 新通河3303 | D98: 自有船 | E98: 1 | F98: 江门 | G98: 广东双水码头有限公司 | H98: 纸浆 | I98: 珠海港高栏国码 | J98: 新会高宝隆 | K98: 2019-03-06 | L98: 2019-03-11 14:56 | M98: 2019-03-04 21:00 | N98: 2019-03-05 16:30 | O98: 19.5 | P98: 2019-03-06 00:30 | Q98: 2019-03-07 15:45 | R98: 3月 | S98: 1200 | T98: 600 | U98: 39.25 | V98: 1200 | W98: 600 | X98: 16200 | Y98: 10 | Z98: =X98/(100+Y98)*100 -> 14727.27273 | AA98: 10857.66386 | AB98: 52.04 | AC98: 16147.96 | AD98: =Z98-AA98-AB98 -> 3817.568871 | AE98: 3.181307392 | AG98: 324 | AH98: 3493.568871 | AI98: 2.911307392 | AK98: 0 | AL98: 0 | AM98: 张展鹏 | AN98: 张展鹏
A99: 业务完结 | B99: QYD19030024T01 | C99: 桂藤县货0803 | D99: 外包船 | E99: 1 | F99: 江门 | G99: 广东双水码头有限公司 | H99: 纸浆 | I99: 南沙粮食通用码头 | J99: 新会高宝隆 | K99: 2019-03-06 | L99: 2019-03-15 15:39 | M99: 2019-03-07 07:00 | N99: 2019-03-08 16:00 | O99: 33 | P99: 2019-03-09 14:00 | Q99: 2019-03-10 12:30 | R99: 3月 | S99: 1020 | T99: 510 | U99: 22.5 | V99: 1020 | W99: 510 | X99: 17340 | AB99: 17227.8 | AC99: 112.2 | AD99: =AC99 -> 112.2 | AE99: 0.11 | AG99: 346.8 | AH99: -234.6 | AI99: -0.23 | AK99: 0 | AL99: 0 | AM99: 潘锦洪 | AN99: 劳锡源
A100: 业务完结 | B100: QYD19030024T01 | C100: 桂平宏远7899 | D100: 外包船 | E100: 1 | F100: 江门 | G100: 广东双水码头有限公司 | H100: 纸浆 | I100: 南沙粮食通用码头 | J100: 新会高宝隆 | K100: 2019-03-06 | L100: 2019-03-15 15:39 | M100: 2019-03-08 07:00 | N100: 2019-03-11 17:30 | O100: 82.5 | P100: 2019-03-12 14:30 | Q100: 2019-03-14 17:00 | R100: 3月 | S100: 1421.11 | U100: 50.5 | V100: 1421.11 | W100: 715 | X100: 24158.87 | AB100: 24311.32 | AC100: -152.45 | AD100: =AC100 -> -152.45 | AE100: -0.1072752989 | AG100: 483.1774 | AH100: -635.6274 | AI100: -0.4472752989 | AK100: 0 | AL100: 0 | AM100: 张展鹏 | AN100: 劳锡源
A101: 业务完结 | B101: JMD19030005T01 | C101: 新通河3308 | D101: 自有船 | E101: 1 | F101: 江门 | G101: 广东双水码头有限公司 | H101: 纸浆 | I101: 珠海港高栏国码 | J101: 双水码头 | K101: 2019-03-11 | L101: 2019-03-15 15:21 | M101: 2019-03-11 17:30 | N101: 2019-03-12 09:00 | O101: 15.5 | P101: 2019-03-12 18:30 | Q101: 2019-03-15 15:00 | R101: 3月 | S101: 1500 | U101: 68.5 | V101: 1500 | W101: 750 | X101: 21000 | Y101: 10 | Z101: =X101/(100+Y101)*100 -> 19090.90909 | AA101: 14642.95901 | AB101: 191.16 | AC101: 20808.84 | AD101: =Z101-AA101-AB101 -> 4256.790084 | AE101: 2.837860056 | AG101: 420 | AH101: 3836.790084 | AI101: 2.557860056 | AK101: 0 | AL101: 0 | AM101: 潘锦洪 | AN101: 潘锦洪
A102: 业务完结 | B102: JMD19030007T01 | C102: 明珠938 | D102: 外包船 | E102: 1 | F102: 江门 | G102: 广东双水码头有限公司 | H102: 纸浆 | I102: 南沙粮食通用码头 | J102: 新会高宝隆 | K102: 2019-03-13 | L102: 2019-03-26 14:31 | M102: 2019-03-12 21:00 | N102: 2019-03-13 15:30 | O102: 18.5 | P102: 2019-03-14 12:30 | Q102: 2019-03-16 16:00 | R102: 3月 | S102: 1134.94 | U102: 51.5 | V102: 1134.94 | X102: 19293.98 | AB102: 19963.59 | AC102: -669.61 | AD102: =AC102 -> -669.61 | AE102: -0.5899959469 | AG102: 385.8796 | AH102: -1055.4896 | AI102: -0.9299959469 | AK102: 0 | AL102: 0 | AM102: 张展鹏 | AN102: 潘锦洪
A103: 业务完结 | B103: JMD19030006T01 | C103: 新通河3303 | D103: 自有船 | E103: 1 | F103: 江门 | G103: 广东双水码头有限公司 | H103: 纸浆 | I103: 珠海港高栏国码 | J103: 双水码头 | K103: 2019-03-12 | L103: 2019-03-18 09:39 | M103: 2019-03-16 08:00 | N103: 2019-03-16 19:15 | O103: 11.25 | P103: 2019-03-17 09:30 | Q103: 2019-03-18 09:30 | R103: 3月 | S103: 1588 | T103: 794 | U103: 24 | V103: 1588 | W103: 794 | X103: 21438 | Y103: 10 | Z103: =X103/(100+Y103)*100 -> 19489.09091 | AA103: 10857.66386 | AB103: 62.64 | AC103: 21375.36 | AD103: =Z103-AA103-AB103 -> 8568.787053 | AE103: 5.39596162 | AG103: 428.76 | AH103: 8140.027053 | AI103: 5.12596162 | AK103: 0 | AL103: 0 | AM103: 潘锦洪 | AN103: 张展鹏
A104: 业务完结 | B104: JMD19030007T01 | C104: 粤鼎湖货8288 | D104: 外包船 | E104: 1 | F104: 江门 | G104: 广东双水码头有限公司 | H104: 纸浆 | I104: 南沙粮食通用码头 | J104: 新会高宝隆 | K104: 2019-03-13 | L104: 2019-03-26 14:31 | M104: 2019-03-14 20:15 | N104: 2019-03-17 03:30 | O104: 55.25 | P104: 2019-03-17 18:00 | Q104: 2019-03-19 15:00 | R104: 3月 | S104: 1955.42 | U104: 45 | V104: 1955.42 | X104: 33242.14 | AB104: 34395.84 | AC104: -1153.7 | AD104: =AC104 -> -1153.7 | AE104: -0.5900011251 | AG104: 664.8428 | AH104: -1818.5428 | AI104: -0.9300011251 | AK104: 0 | AL104: 0 | AM104: 劳锡源 | AN104: 潘锦洪
A105: 业务完结 | B105: JMD19030008T01 | C105: 新通河3308 | D105: 自有船 | E105: 1 | F105: 江门 | G105: 广东双水码头有限公司 | H105: 纸浆 | I105: 珠海港高栏国码 | J105: 双水码头 | K105: 2019-03-15 | L105: 2019-03-19 16:28 | M105: 2019-03-15 21:00 | N105: 2019-03-17 20:30 | O105: 47.5 | P105: 2019-03-18 11:00 | Q105: 2019-03-19 16:30 | R105: 3月 | S105: 1500 | U105: 29.5 | V105: 1500 | W105: 750 | X105: 20250 | Y105: 10 | Z105: =X105/(100+Y105)*100 -> 18409.09091 | AA105: 14642.95901 | AB105: 180.56 | AC105: 20069.44 | AD105: =Z105-AA105-AB105 -> 3585.571902 | AE105: 2.390381268 | AG105: 405 | AH105: 3180.571902 | AI105: 2.120381268 | AK105: 0 | AL105: 0 | AM105: 潘锦洪 | AN105: 潘锦洪
A106: 业务完结 | B106: JMD19030009T01 | C106: 新通河3303 | D106: 自有船 | E106: 1 | F106: 江门 | G106: 广东双水码头有限公司 | H106: 纸浆 | I106: 珠海港高栏国码 | J106: 新会高宝隆 | K106: 2019-03-18 | L106: 2019-03-22 17:40 | M106: 2019-03-19 19:15 | N106: 2019-03-20 05:00 | O106: 9.75 | P106: 2019-03-20 23:45 | Q106: 2019-03-22 11:30 | R106: 3月 | S106: 1476 | T106: 738 | U106: 35.75 | V106: 1476 | W106: 738 | X106: 19926 | Y106: 10 | Z106: =X106/(100+Y106)*100 -> 18114.54545 | AA106: 10857.66386 | AB106: 182.64 | AC106: 19743.36 | AD106: =Z106-AA106-AB106 -> 7074.241598 | AE106: 4.792846611 | AG106: 398.52 | AH106: 6675.721598 | AI106: 4.522846611 | AK106: 0 | AL106: 0 | AM106: 潘锦洪 | AN106: 潘锦洪
A107: 业务完结 | B107: JMD19030010T01 | C107: 桂平宏远7899 | D107: 外包船 | E107: 1 | F107: 江门 | G107: 广东双水码头有限公司 | H107: 纸浆 | I107: 珠海港高栏国码 | J107: 双水码头 | K107: 2019-03-19 | L107: 2019-03-22 17:34 | M107: 2019-03-20 05:00 | N107: 2019-03-20 21:15 | O107: 16.25 | P107: 2019-03-21 11:30 | Q107: 2019-03-22 13:45 | R107: 3月 | S107: 1500 | T107: 750 | U107: 26.25 | V107: 1500 | W107: 750 | X107: 20250 | AB107: 18780 | AC107: 1470 | AD107: =AC107 -> 1470 | AE107: 0.98 | AG107: 405 | AH107: 1065 | AI107: 0.71 | AK107: 0 | AL107: 0 | AM107: 张展鹏 | AN107: 潘锦洪
A108: 业务完结 | B108: JMD19030011T01 | C108: 新通河3301 | D108: 自有船 | E108: 1 | F108: 江门 | G108: 广东双水码头有限公司 | H108: 纸浆 | I108: 珠海港高栏国码 | J108: 双水码头 | K108: 2019-03-19 | L108: 2019-03-25 08:45 | M108: 2019-03-21 13:30 | N108: 2019-03-22 01:00 | O108: 11.5 | P108: 2019-03-22 17:45 | Q108: 2019-03-24 15:00 | R108: 3月 | S108: 2400 | T108: 1200 | U108: 45.25 | V108: 2400 | W108: 1200 | X108: 33600 | Y108: 10 | Z108: =X108/(100+Y108)*100 -> 30545.45455 | AA108: 30024.13686 | AB108: 219.56 | AC108: 33380.44 | AD108: =Z108-AA108-AB108 -> 301.7576838 | AE108: 0.1257323682 | AG108: 672 | AH108: -370.2423162 | AI108: -0.1542676318 | AK108: 0 | AL108: 0 | AM108: 潘锦洪 | AN108: 潘锦洪
A109: 业务完结 | B109: JMD19030007T01 | C109: 新通河3303 | D109: 自有船 | E109: 1 | F109: 江门 | G109: 广东双水码头有限公司 | H109: 纸浆 | I109: 南沙粮食通用码头 | J109: 新会高宝隆 | K109: 2019-03-13 | L109: 2019-03-26 14:31 | M109: 2019-03-23 16:30 | N109: 2019-03-24 02:30 | O109: 10 | P109: 2019-03-25 14:15 | Q109: 2019-03-26 14:00 | R109: 3月 | S109: 1631.674 | U109: 23.75 | V109: 1631.674 | X109: 27738.46 | Y109: 10 | Z109: =X109/(100+Y109)*100 -> 25216.78182 | AA109: 10857.66386 | AB109: 1204.81 | AC109: 26533.65 | AD109: =Z109-AA109-AB109 -> 13154.30796 | AE109: 8.061848115 | AG109: 554.7692 | AH109: 12599.53876 | AI109: 7.721848091 | AK109: 0 | AL109: 0 | AM109: 潘锦洪 | AN109: 潘锦洪
A110: 业务完结 | B110: JMD19030014T01 | C110: 新通河3301 | D110: 自有船 | E110: 1 | F110: 江门 | G110: 广东双水码头有限公司 | H110: 纸浆 | I110: 珠海港高栏国码 | J110: 新会高宝隆 | K110: 2019-03-21 | L110: 2019-03-28 08:50 | M110: 2019-03-25 10:30 | N110: 2019-03-26 00:30 | O110: 14 | P110: 2019-03-26 14:45 | Q110: 2019-03-27 18:00 | R110: 3月 | S110: 2324 | U110: 27.25 | V110: 2324 | W110: 1162 | X110: 31374 | Y110: 10 | Z110: =X110/(100+Y110)*100 -> 28521.81818 | AA110: 30024.13686 | AB110: 219.56 | AC110: 31154.44 | AD110: =Z110-AA110-AB110 -> -1721.87868 | AE110: -0.7409116523 | AG110: 627.48 | AH110: -2349.35868 | AI110: -1.010911652 | AJ110: 两港卸 | AK110: 0 | AL110: 0 | AM110: 潘锦洪 | AN110: 潘锦洪
A111: 业务完结 | B111: JMD19030015T01 | C111: 新通河3303 | D111: 自有船 | E111: 1 | F111: 江门 | G111: 广东双水码头有限公司 | H111: 纸浆 | I111: 珠海港高栏国码 | J111: 新会高宝隆 | K111: 2019-03-26 | L111: 2019-03-30 19:45 | M111: 2019-03-26 20:15 | N111: 2019-03-28 03:30 | O111: 31.25 | P111: 2019-03-28 18:00 | Q111: 2019-03-30 09:00 | R111: 3月 | S111: 1546.474 | T111: 794 | U111: 39 | V111: 1546.474 | W111: 794 | X111: 20877.4 | Y111: 10 | Z111: =X111/(100+Y111)*100 -> 18979.45455 | AA111: 10857.66386 | AB111: 172.04 | AC111: 20705.36 | AD111: =Z111-AA111-AB111 -> 7949.750689 | AE111: 5.140565369 | AG111: 417.548 | AH111: 7532.202689 | AI111: 4.870565356 | AK111: 0 | AL111: 0 | AM111: 潘锦洪 | AN111: 潘锦洪
A112: 业务完结 | B112: JMD19030016T01 | C112: 桂平宏远7899 | D112: 外包船 | E112: 1 | F112: 江门 | G112: 广东双水码头有限公司 | H112: 纸浆 | I112: 珠海港高栏国码 | J112: 双水码头 | K112: 2019-03-28 | L112: 2019-04-01 16:31 | M112: 2019-03-28 21:00 | N112: 2019-03-29 03:00 | O112: 6 | P112: 2019-03-30 21:00 | Q112: 2019-04-01 15:00 | R112: 4月 | S112: 1507.911 | T112: 760 | U112: 42 | V112: 1507.911 | W112: 760 | X112: 21110.75 | AB112: 18954.44 | AC112: 2156.31 | AD112: =AC112 -> 2156.31 | AE112: 1.42999819 | AG112: =X112*(8%/12)*3 -> 422.215 | AH112: 1734.095 | AI112: 1.149998243 | AK112: 0 | AL112: 0 | AM112: 张展鹏 | AN112: 潘锦洪
A113: 业务完结 | B113: JMD19040002T01 | C113: 新通河3308 | D113: 自有船 | E113: 1 | F113: 江门 | G113: 广东双水码头有限公司 | H113: 纸浆 | I113: 南沙粮食通用码头 | J113: 新会高宝隆 | K113: 2019-04-03 | L113: 2019-04-12 16:55 | M113: 2019-04-08 08:00 | N113: 2019-04-09 03:15 | O113: 19.25 | P113: 2019-04-10 00:15 | Q113: 2019-04-12 16:45 | R113: 4月 | S113: 1500 | T113: 750 | U113: 64.5 | V113: 1500 | W113: 750 | X113: 25275 | Y113: 9 | Z113: =X113/(100+Y113)*100 -> 23188.07339 | AA113: 19765.46181 | AC113: 25275 | AD113: =Z113-AA113-AB113 -> 3422.611586 | AE113: 2.281741057 | AG113: 505.5 | AH113: 2917.111586 | AI113: 1.944741057 | AK113: 0 | AL113: 0 | AM113: 潘锦洪 | AN113: 潘锦洪
A114: 业务完结 | B114: JMD19040004T01 | C114: 新通河3303 | D114: 自有船 | E114: 1 | F114: 江门 | G114: 广东双水码头有限公司 | H114: 纸浆 | I114: 南沙粮食通用码头 | J114: 双水码头 | K114: 2019-04-12 | L114: 2019-04-15 14:21 | M114: 2019-04-12 23:30 | N114: 2019-04-13 08:00 | O114: 8.5 | P114: 2019-04-14 15:30 | Q114: 2019-04-15 13:30 | R114: 4月 | S114: 1500 | T114: 750 | U114: 22 | V114: 1500 | W114: 750 | X114: 25275 | Y114: 9 | Z114: =X114/(100+Y114)*100 -> 23188.07339 | AA114: 18846.754 | AB114: 120 | AC114: 25155 | AD114: =Z114-AA114-AB114 -> 4221.319394 | AE114: 2.81421293 | AG114: 505.5 | AH114: 3715.819394 | AI114: 2.47721293 | AK114: 0 | AL114: 0 | AM114: 潘锦洪 | AN114: 潘锦洪
A115: 业务完结 | B115: JMD19040005T01 | C115: 新通河3308 | D115: 自有船 | E115: 1 | F115: 江门 | G115: 广东双水码头有限公司 | H115: 纸浆 | I115: 珠海港高栏国码 | J115: 新会高宝隆 | K115: 2019-04-15 | L115: 2019-04-19 16:27 | M115: 2019-04-15 20:30 | N115: 2019-04-16 23:00 | O115: 26.5 | P115: 2019-04-17 12:00 | Q115: 2019-04-19 16:00 | R115: 4月 | S115: 1500 | U115: 52 | V115: 1500 | W115: 750 | X115: 20070 | Y115: 9 | Z115: =X115/(100+Y115)*100 -> 18412.84404 | AA115: 19765.46181 | AB115: 60.56 | AC115: 20009.44 | AD115: =Z115-AA115-AB115 -> -1413.177772 | AE115: -0.9421185145 | AG115: 401.4 | AH115: -1814.577772 | AI115: -1.209718515 | AK115: 0 | AL115: 0 | AM115: 潘锦洪 | AN115: 潘锦洪
A116: 业务完结 | B116: JMD19040006T01 | C116: 新通河3301 | D116: 自有船 | E116: 1 | F116: 江门 | G116: 广东双水码头有限公司 | H116: 纸浆 | I116: 珠海港高栏国码 | J116: 双水码头 | K116: 2019-04-16 | L116: 2019-04-20 16:12 | M116: 2019-04-17 11:30 | N116: 2019-04-17 22:30 | O116: 11 | P116: 2019-04-18 12:15 | Q116: 2019-04-20 15:00 | R116: 4月 | S116: 2212.082 | T116: 1134 | U116: 50.75 | V116: 2212.082 | W116: 1134 | X116: 29597.66 | Y116: 9 | Z116: =X116/(100+Y116)*100 -> 27153.81651 | AA116: 47950.36312 | AB116: 198.36 | AC116: 29399.3 | AD116: =Z116-AA116-AB116 -> -20994.90661 | AE116: -9.49101643 | AG116: 591.9532 | AH116: -21586.85981 | AI116: -9.758616456 | AK116: 0 | AL116: 0 | AM116: 潘锦洪 | AN116: 潘锦洪
A117: 业务完结 | B117: JMD19040008T01 | C117: 新通河3301 | D117: 自有船 | E117: 1 | F117: 江门 | G117: 广东双水码头有限公司 | H117: 纸浆 | I117: 珠海港高栏国码 | J117: 双水码头 | K117: 2019-04-23 | L117: 2019-04-26 15:23 | M117: 2019-04-22 09:30 | N117: 2019-04-23 06:30 | O117: 21 | P117: 2019-04-24 05:30 | Q117: 2019-04-26 11:00 | R117: 4月 | S117: 2200 | T117: 1100 | U117: 53.5 | V117: 2200 | W117: 1100 | X117: 29436 | Y117: 9 | Z117: =X117/(100+Y117)*100 -> 27005.50459 | AA117: 47950.36312 | AB117: 208.96 | AC117: 29227.04 | AD117: =Z117-AA117-AB117 -> -21153.81853 | AE117: -9.615372061 | AG117: 588.72 | AH117: -21742.53853 | AI117: -9.882972061 | AK117: 0 | AL117: 0 | AM117: 潘锦洪 | AN117: 潘锦洪
A118: 业务完结 | B118: JMD19040009T01 | C118: 莞海安268 | D118: 外包船 | E118: 1 | F118: 江门 | G118: 广东双水码头有限公司 | H118: 甘蔗原糖 | I118: 南沙粮食通用码头 | J118: 双水码头 | K118: 2019-04-28 | L118: 2019-05-17 17:13 | M118: 2019-04-28 22:00 | N118: 2019-05-03 15:30 | O118: 113.5 | P118: 2019-05-04 08:00 | Q118: 2019-05-07 22:00 | R118: 5月 | S118: 1865.12 | U118: 86 | V118: 1875.06 | X118: 28390.73 | AB118: 25210.97 | AC118: 3179.76 | AD118: =AC118 -> 3179.76 | AE118: 1.704855452 | AG118: 567.8146 | AH118: 2611.9454 | AI118: 1.40041681 | AK118: -9.94 | AL118: -9.94 | AM118: 张展鹏 | AN118: 潘锦洪
A119: 业务完结 | B119: JMD19040009T01 | C119: 桂藤县货0803 | D119: 外包船 | E119: 1 | F119: 江门 | G119: 广东双水码头有限公司 | H119: 甘蔗原糖 | I119: 南沙粮食通用码头 | J119: 双水码头 | K119: 2019-04-28 | L119: 2019-05-17 17:13 | M119: 2019-04-30 07:00 | N119: 2019-05-03 21:00 | O119: 86 | P119: 2019-05-04 20:00 | Q119: 2019-05-08 12:30 | R119: 5月 | S119: 1114.5 | U119: 88.5 | V119: 1118.14 | X119: 19200.99 | AB119: 17701.71 | AC119: 1499.28 | AD119: =AC119 -> 1499.28 | AE119: 1.345248991 | AG119: 384.0198 | AH119: 1115.2602 | AI119: 1.0006821 | AK119: -3.64 | AL119: -3.64 | AM119: 劳锡源 | AN119: 潘锦洪
A120: 业务完结 | B120: JMD19040009T01 | C120: 新通河3308 | D120: 自有船 | E120: 1 | F120: 江门 | G120: 广东双水码头有限公司 | H120: 甘蔗原糖 | I120: 南沙粮食通用码头 | J120: 双水码头 | K120: 2019-04-28 | L120: 2019-05-17 17:13 | M120: 2019-04-28 11:00 | N120: 2019-05-03 19:30 | O120: 128.5 | P120: 2019-05-04 16:45 | Q120: 2019-05-09 15:30 | R120: 5月 | S120: 1697.91 | U120: 118.75 | V120: 1699.94 | X120: 32298.86 | Y120: 9 | Z120: =X120/(100+Y120)*100 -> 29631.98165 | AA120: 16596.90226 | AB120: 1820 | AC120: 30478.86 | AD120: =Z120-AA120-AB120 -> 11215.0794 | AE120: 6.60522607 | AG120: 645.9772 | AH120: 10569.1022 | AI120: 6.224771746 | AK120: -2.03 | AL120: -2.03 | AM120: 张佩欣 | AN120: 潘锦洪
A121: 业务完结 | B121: JMD19040009T01 | C121: 粤鼎湖货0898 | D121: 外包船 | E121: 1 | F121: 江门 | G121: 广东双水码头有限公司 | H121: 甘蔗原糖 | I121: 南沙粮食通用码头 | J121: 双水码头 | K121: 2019-04-28 | L121: 2019-05-17 17:13 | M121: 2019-04-30 08:00 | N121: 2019-05-04 05:30 | O121: 93.5 | P121: 2019-05-05 09:15 | Q121: 2019-05-10 00:30 | R121: 5月 | S121: 1420.75 | U121: 111.25 | V121: 1426.36 | X121: 23877.86 | AB121: 21490.11 | AC121: 2387.75 | AD121: =AC121 -> 2387.75 | AE121: 1.68062643 | AG121: 477.5572 | AH121: 1910.1928 | AI121: 1.344496076 | AK121: -5.61 | AL121: -5.61 | AM121: 张佩欣 | AN121: 潘锦洪
A122: 业务完结 | B122: JMD19040009T01 | C122: 新通河3301 | D122: 自有船 | E122: 1 | F122: 江门 | G122: 广东双水码头有限公司 | H122: 甘蔗原糖 | I122: 南沙粮食通用码头 | J122: 双水码头 | K122: 2019-04-28 | L122: 2019-05-17 17:13 | M122: 2019-04-30 09:30 | N122: 2019-05-05 13:45 | O122: 124.25 | P122: 2019-05-06 15:00 | Q122: 2019-05-10 07:30 | R122: 5月 | S122: 2605.53 | U122: 88.5 | V122: 2608.38 | X122: 49559.22 | Y122: 9 | Z122: =X122/(100+Y122)*100 -> 45467.17431 | AA122: 50630.09468 | AB122: 2730 | AC122: 46829.22 | AD122: =Z122-AA122-AB122 -> -7892.920369 | AE122: -3.029295525 | AG122: 991.1844 | AH122: -8884.104769 | AI122: -3.409711179 | AK122: -2.85 | AL122: -2.85 | AM122: 劳锡源 | AN122: 潘锦洪
A123: 业务完结 | B123: JMD19040009T01 | C123: 桂平宏远6699 | D123: 外包船 | E123: 1 | F123: 江门 | G123: 广东双水码头有限公司 | H123: 甘蔗原糖 | I123: 南沙粮食通用码头 | J123: 双水码头 | K123: 2019-04-28 | L123: 2019-05-17 17:13 | M123: 2019-04-30 12:00 | N123: 2019-05-06 00:15 | O123: 132.25 | P123: 2019-05-07 03:00 | Q123: 2019-05-11 15:45 | R123: 5月 | S123: 1975.37 | U123: 108.75 | V123: 1980.64 | X123: 36102.4 | AB123: 32828.55 | AC123: 3273.85 | AD123: =AC123 -> 3273.85 | AE123: 1.657335082 | AG123: 722.048 | AH123: 2551.802 | AI123: 1.291809636 | AK123: -5.27 | AL123: -5.27 | AM123: 劳锡源 | AN123: 潘锦洪
A124: 业务完结 | B124: JMD19040009T01 | C124: 粤鼎湖货6628 | D124: 外包船 | E124: 1 | F124: 江门 | G124: 广东双水码头有限公司 | H124: 甘蔗原糖 | I124: 南沙粮食通用码头 | J124: 双水码头 | K124: 2019-04-28 | L124: 2019-05-17 17:13 | M124: 2019-05-02 15:30 | N124: 2019-05-06 13:30 | O124: 94 | P124: 2019-05-07 21:00 | Q124: 2019-05-12 01:15 | R124: 5月 | S124: 1389.39 | U124: 100.25 | V124: 1392.1 | X124: 36195 | AB124: 33127.95 | AC124: 3067.05 | AD124: =AC124 -> 3067.05 | AE124: 2.207479541 | AG124: 723.9 | AH124: 2343.15 | AI124: 1.686459525 | AK124: -2.71 | AL124: -2.71 | AM124: 劳锡源 | AN124: 潘锦洪
A125: 业务完结 | B125: JMD19050003T01 | C125: 新通河3303 | D125: 自有船 | E125: 1 | F125: 江门 | G125: 广东双水码头有限公司 | H125: 纸浆 | I125: 珠海港高栏国码 | J125: 双水码头 | K125: 2019-05-08 | L125: 2019-05-13 15:13 | M125: 2019-05-09 20:45 | N125: 2019-05-10 17:45 | O125: 21 | P125: 2019-05-11 09:45 | Q125: 2019-05-13 15:00 | R125: 5月 | S125: 1500 | U125: 53.25 | V125: 1500 | W125: 750 | X125: 20788.1 | Y125: 10 | Z125: =X125/(100+Y125)*100 -> 18898.27273 | AA125: 12206.40985 | AB125: 182.64 | AC125: 20605.46 | AD125: =Z125-AA125-AB125 -> 6509.222879 | AE125: 4.339481919 | AG125: 415.762 | AH125: 6093.460879 | AI125: 4.062307253 | AK125: 0 | AL125: 0 | AM125: 潘锦洪 | AN125: 潘锦洪
A126: 业务完结 | B126: JMD19050005T01 | C126: 新通河3303 | D126: 自有船 | E126: 1 | F126: 江门 | G126: 广东双水码头有限公司 | H126: 纸浆 | I126: 珠海港高栏国码 | J126: 新会高宝隆 | K126: 2019-05-13 | L126: 2019-05-17 16:37 | M126: 2019-05-13 23:45 | N126: 2019-05-14 15:30 | O126: 15.75 | P126: 2019-05-15 10:30 | Q126: 2019-05-17 15:00 | R126: 5月 | S126: 1500 | T126: 750 | U126: 52.5 | V126: 1500 | W126: 750 | X126: 20070 | Y126: 10 | Z126: =X126/(100+Y126)*100 -> 18245.45455 | AA126: 12206.40985 | AC126: 20070 | AD126: =Z126-AA126-AB126 -> 6039.044697 | AE126: 4.026029798 | AG126: 401.4 | AH126: 5637.644697 | AI126: 3.758429798 | AK126: 0 | AL126: 0 | AM126: 潘锦洪 | AN126: 潘锦洪
A127: 业务完结 | B127: JMD19050007T01 | C127: 新通河3308 | D127: 自有船 | E127: 1 | F127: 江门 | G127: 广东双水码头有限公司 | H127: 纸浆 | I127: 珠海港高栏国码 | J127: 双水码头 | K127: 2019-05-20 | L127: 2019-05-21 11:45 | M127: 2019-05-18 17:15 | N127: 2019-05-19 19:00 | O127: 25.75 | P127: 2019-05-20 03:00 | Q127: 2019-05-21 10:15 | R127: 5月 | S127: 1260 | T127: 630 | U127: 31.25 | V127: 1260 | W127: 630 | X127: 16858.8 | Y127: 10 | Z127: =X127/(100+Y127)*100 -> 15326.18182 | AA127: 16596.90226 | AB127: 180.56 | AC127: 16678.24 | AD127: =Z127-AA127-AB127 -> -1451.280437 | AE127: -1.151809871 | AG127: 337.176 | AH127: -1788.456437 | AI127: -1.419409871 | AK127: 0 | AL127: 0 | AM127: 潘锦洪 | AN127: 潘锦洪
A128: 业务完结 | B128: JMD19050006T01 | C128: 新通河3303 | D128: 自有船 | E128: 1 | F128: 江门 | G128: 广东双水码头有限公司 | H128: 纸浆 | I128: 珠海港高栏国码 | J128: 双水码头 | K128: 2019-05-20 | L128: 2019-05-27 10:02 | M128: 2019-05-20 17:45 | N128: 2019-05-21 11:30 | O128: 17.75 | P128: 2019-05-22 02:15 | Q128: 2019-05-24 11:45 | R128: 5月 | S128: 1500 | U128: 57.5 | V128: 1500 | W128: 750 | X128: 20805 | Y128: 10 | Z128: =X128/(100+Y128)*100 -> 18913.63636 | AA128: 12206.40985 | AB128: 120 | AC128: 20685 | AD128: =Z128-AA128-AB128 -> 6587.226516 | AE128: 4.391484344 | AG128: 416.1 | AH128: 6171.126516 | AI128: 4.114084344 | AK128: 0 | AL128: 0 | AM128: 潘锦洪 | AN128: 潘锦洪
A129: 业务完结 | B129: JMD19050011T01 | C129: 桂平宏远6699 | D129: 外包船 | E129: 1 | F129: 江门 | G129: 广东双水码头有限公司 | H129: 纸浆 | I129: 珠海港高栏国码 | J129: 双水码头 | K129: 2019-05-23 | L129: 2019-05-27 09:44 | M129: 2019-05-22 17:00 | N129: 2019-05-23 03:00 | O129: 10 | P129: 2019-05-24 04:00 | Q129: 2019-05-26 16:30 | R129: 5月 | S129: 1518 | U129: 60.5 | V129: 1518 | W129: 759 | X129: 20310.84 | AB129: 18246.36 | AC129: 2064.48 | AD129: =AC129 -> 2064.48 | AE129: 1.36 | AG129: 406.2168 | AH129: 1658.2632 | AI129: 1.0924 | AK129: 0 | AL129: 0 | AM129: 张展鹏 | AN129: 潘锦洪
A130: 业务完结 | B130: JMD19050010T01 | C130: 桂藤县货0803 | D130: 外包船 | E130: 1 | F130: 江门 | G130: 广东双水码头有限公司 | H130: 纸浆 | I130: 南沙粮食通用码头 | J130: 双水码头 | K130: 2019-05-23 | L130: 2019-05-27 14:32 | M130: 2019-05-24 07:00 | N130: 2019-05-25 07:45 | O130: 24.75 | P130: 2019-05-26 05:30 | Q130: 2019-05-27 11:45 | R130: 5月 | S130: 1000 | U130: 30.25 | V130: 1000 | X130: 16850 | AB130: 17090 | AC130: -240 | AD130: =AC130 -> -240 | AE130: =AD130/S130 -> -0.24 | AG130: 337 | AH130: =AD130-AF130-AG130 -> -577 | AI130: =AH130/S130 -> -0.577 | AK130: 0 | AL130: 0 | AM130: 潘锦洪 | AN130: 潘锦洪
A131: 业务完结 | B131: JMD19050012T01 | C131: 桂平宏远6699 | D131: 外包船 | E131: 1 | F131: 江门 | G131: 广东双水码头有限公司 | H131: 纸浆 | I131: 珠海港高栏国码 | J131: 新会高宝隆 | K131: 2019-05-28 | L131: 2019-05-31 15:31 | M131: 2019-05-27 18:00 | N131: 2019-05-28 14:00 | O131: 20 | P131: 2019-05-28 23:00 | Q131: 2019-05-31 19:00 | R131: 5月 | S131: 1500 | U131: 68 | V131: 1500 | W131: 750 | X131: 20070 | AB131: 18030 | AC131: 2040 | AD131: =AC131 -> 2040 | AE131: 1.36 | AG131: 401.4 | AH131: 1638.6 | AI131: 1.0924 | AK131: 0 | AL131: 0 | AM131: 张展鹏 | AN131: 潘锦洪
A132: 业务完结 | B132: JMD19050014T01 | C132: 新通河3303 | D132: 自有船 | E132: 1 | F132: 江门 | G132: 广东双水码头有限公司 | H132: 纸浆 | I132: 珠海港高栏国码 | J132: 双水码头 | K132: 2019-05-29 | L132: 2019-06-05 09:44 | M132: 2019-05-30 19:30 | N132: 2019-05-31 13:15 | O132: 17.75 | P132: 2019-06-01 09:30 | Q132: 2019-06-04 16:00 | R132: 6月 | S132: 1500 | U132: 78.5 | V132: 1500 | W132: 800 | X132: 20070 | Y132: 9 | Z132: =X132/(100+Y132)*100 -> 18412.84404 | AA132: 24758.27979 | AB132: 193.24 | AC132: 19876.76 | AD132: =Z132-AA132-AB132 -> -6538.675751 | AE132: -4.359117167 | AG132: 401.4 | AH132: -6940.075751 | AI132: -4.626717167 | AK132: 0 | AL132: 0 | AM132: 潘锦洪 | AN132: 潘锦洪
A133: 业务完结 | B133: JMD19060001T01 | C133: 桂平宏远6699 | D133: 外包船 | E133: 1 | F133: 江门 | G133: 广东双水码头有限公司 | H133: 纸浆 | I133: 珠海港高栏国码 | J133: 双水码头 | K133: 2019-06-03 | L133: 2019-06-11 14:58 | M133: 2019-06-02 08:00 | N133: 2019-06-03 22:15 | O133: 38.25 | P133: 2019-06-04 12:00 | Q133: 2019-06-06 15:45 | R133: 6月 | S133: 1599.278 | U133: 51.75 | V133: 1599.278 | W133: 837 | X133: 21398.03 | AB133: 19223.32 | AC133: 2174.71 | AD133: =AC133 -> 2174.71 | AE133: 1.359807363 | AG133: 427.9606 | AH133: 1746.7494 | AI133: 1.092211235 | AK133: 0 | AL133: 0 | AM133: 张佩欣 | AN133: 潘锦洪
A134: 业务完结 | B134: JMD19060006T01 | C134: 新通河3308 | D134: 自有船 | E134: 1 | F134: 江门 | G134: 广东双水码头有限公司 | H134: 纸浆 | I134: 珠海港高栏国码 | J134: 新会高宝隆 | K134: 2019-06-03 | L134: 2019-06-10 09:29 | M134: 2019-06-04 05:30 | N134: 2019-06-05 08:15 | O134: 26.75 | P134: 2019-06-06 03:45 | Q134: 2019-06-08 12:00 | R134: 6月 | S134: 1500 | U134: 56.25 | V134: 1500 | W134: 750 | X134: 20070 | Y134: 9 | Z134: =X134/(100+Y134)*100 -> 18412.84404 | AA134: 37909.4395 | AB134: 60.56 | AC134: 20009.44 | AD134: =Z134-AA134-AB134 -> -19557.15547 | AE134: -13.03810364 | AG134: 401.4 | AH134: -19958.55547 | AI134: -13.30570364 | AK134: 0 | AL134: 0 | AM134: 潘锦洪 | AN134: 潘锦洪
A135: 业务完结 | B135: JMD19060011T01 | C135: 桂平宏远6699 | D135: 外包船 | E135: 1 | F135: 江门 | G135: 广东双水码头有限公司 | H135: 纸浆 | I135: 珠海港高栏国码 | J135: 新会高宝隆 | K135: 2019-06-06 | L135: 2019-06-12 11:50 | M135: 2019-06-06 22:00 | N135: 2019-06-07 06:15 | O135: 8.25 | P135: 2019-06-07 18:30 | Q135: 2019-06-12 11:00 | R135: 6月 | S135: 1500 | U135: 112.5 | V135: 1500 | X135: 20070 | AB135: 18030 | AC135: 2040 | AD135: =AC135 -> 2040 | AE135: 1.36 | AG135: 401.4 | AH135: 1638.6 | AI135: 1.0924 | AK135: 0 | AL135: 0 | AM135: 潘锦洪 | AN135: 潘锦洪
A136: 业务完结 | B136: JMD19060017T01 | C136: 桂平宏远7899 | D136: 外包船 | E136: 1 | F136: 江门 | G136: 广东双水码头有限公司 | H136: 纸浆 | I136: 珠海港高栏国码 | J136: 双水码头 | K136: 2019-06-10 | L136: 2019-06-13 08:51 | M136: 2019-06-08 13:00 | N136: 2019-06-08 17:30 | O136: 4.5 | P136: 2019-06-09 10:30 | Q136: 2019-06-12 17:30 | R136: 6月 | S136: 1424 | U136: 79 | V136: 1424 | W136: 712 | X136: 19053.12 | AB136: 17116.48 | AC136: 1936.64 | AD136: =AC136 -> 1936.64 | AE136: 1.36 | AG136: 381.0624 | AH136: 1555.5776 | AI136: 1.0924 | AK136: 0 | AL136: 0 | AM136: 劳锡源 | AN136: 潘锦洪
A137: 业务完结 | B137: JMD19060018T01 | C137: 桂平宏远7899 | D137: 外包船 | E137: 1 | F137: 江门 | G137: 广东双水码头有限公司 | H137: 纸浆 | I137: 珠海港高栏国码 | J137: 双水码头 | K137: 2019-06-10 | L137: 2019-06-19 15:24 | M137: 2019-06-13 13:00 | N137: 2019-06-13 23:00 | O137: 10 | P137: 2019-06-14 17:30 | Q137: 2019-06-15 11:45 | R137: 6月 | S137: 1481.936 | T137: 772 | U137: 18.25 | V137: 1481.936 | W137: 772 | X137: 19828.3 | AB137: 17812.87 | AC137: 2015.43 | AD137: =AC137 -> 2015.43 | AE137: 1.359998003 | AG137: 396.566 | AH137: 1618.864 | AI137: 1.092398052 | AK137: 0 | AL137: 0 | AM137: 潘锦洪 | AN137: 潘锦洪
A138: 业务完结 | B138: JMD19060031T01 | C138: 桂平宏远7899 | D138: 外包船 | E138: 1 | F138: 江门 | G138: 广东双水码头有限公司 | H138: 纸浆 | I138: 珠海港高栏国码 | J138: 双水码头 | K138: 2019-06-17 | L138: 2019-06-19 17:09 | M138: 2019-06-18 07:00 | N138: 2019-06-18 21:30 | O138: 14.5 | P138: 2019-06-19 05:30 | Q138: 2019-06-19 15:30 | R138: 6月 | S138: 1500 | U138: 10 | V138: 1500 | X138: 20070 | AB138: 18030 | AC138: 2040 | AD138: =AC138 -> 2040 | AE138: 1.36 | AG138: 401.4 | AH138: 1638.6 | AI138: 1.0924 | AK138: 0 | AL138: 0 | AM138: 潘锦洪 | AN138: 潘锦洪
A139: 业务完结 | B139: JMD19060020T01 | C139: 新通河3303 | D139: 自有船 | E139: 1 | F139: 江门 | G139: 广东双水码头有限公司 | H139: 纸浆 | I139: 南沙粮食通用码头 | J139: 双水码头 | K139: 2019-06-12 | L139: 2019-06-20 14:49 | M139: 2019-06-16 00:30 | N139: 2019-06-17 02:30 | O139: 26 | P139: 2019-06-18 03:45 | Q139: 2019-06-20 10:15 | R139: 6月 | S139: 1500 | U139: 54.5 | V139: 1500 | W139: 750 | X139: 26010 | Y139: 9 | Z139: =X139/(100+Y139)*100 -> 23862.38532 | AA139: 24758.27979 | AB139: 1620 | AC139: 24390 | AD139: =Z139-AA139-AB139 -> -2515.894466 | AE139: -1.677262977 | AG139: 520.2 | AH139: -3036.094466 | AI139: -2.024062977 | AK139: 0 | AL139: 0 | AM139: 潘锦洪 | AN139: 潘锦洪
A140: 业务完结 | B140: JMD19060038T01 | C140: 新通河3301 | D140: 自有船 | E140: 1 | F140: 江门 | G140: 广东双水码头有限公司 | H140: 纸浆 | I140: 珠海港高栏国码 | J140: 双水码头 | K140: 2019-06-21 | L140: 2019-06-26 09:04 | M140: 2019-06-21 15:30 | N140: 2019-06-22 03:00 | O140: 11.5 | P140: 2019-06-22 19:30 | Q140: 2019-06-25 13:30 | R140: 6月 | S140: 2302.197 | U140: 66 | V140: 2302.197 | X140: 31340.64 | Y140: 9 | Z140: =X140/(100+Y140)*100 -> 28752.88073 | AA140: 34931.8426 | AB140: 219.56 | AC140: 31121.08 | AD140: =Z140-AA140-AB140 -> -6398.521862 | AE140: -2.77931118 | AG140: 626.8128 | AH140: -7025.334662 | AI140: -3.05157841 | AK140: 0 | AL140: 0 | AM140: 潘锦洪 | AN140: 潘锦洪
A141: 业务完结 | B141: JMD19060040T01 | C141: 新通河3301 | D141: 自有船 | E141: 1 | F141: 江门 | G141: 广东双水码头有限公司 | H141: 纸浆 | I141: 珠海港高栏国码 | J141: 双水码头 | K141: 2019-06-26 | L141: 2019-06-30 10:28 | M141: 2019-06-25 22:30 | N141: 2019-06-27 01:15 | O141: 26.75 | P141: 2019-06-27 09:00 | Q141: 2019-06-30 10:15 | R141: 6月 | S141: 2400.35 | U141: 73.25 | V141: 2400.35 | X141: 33292.85 | Y141: 9 | Z141: =X141/(100+Y141)*100 -> 30543.89908 | AA141: 34931.8426 | AB141: 208.96 | AC141: 33083.89 | AD141: =Z141-AA141-AB141 -> -4596.903513 | AE141: -1.915097179 | AG141: 665.857 | AH141: -5262.760513 | AI141: -2.192497141 | AK141: 0 | AL141: 0 | AM141: 潘锦洪 | AN141: 潘锦洪
A142: 业务完结 | B142: JMD19060041T01 | C142: 粤鼎湖货0628 | D142: 外包船 | E142: 1 | F142: 江门 | G142: 广东双水码头有限公司 | H142: 纸浆 | I142: 南沙粮食通用码头 | J142: 新会高宝隆 | K142: 2019-06-26 | L142: 2019-07-04 16:32 | M142: 2019-06-28 10:30 | N142: 2019-06-30 10:30 | O142: 48 | P142: 2019-07-01 17:00 | Q142: 2019-07-03 19:00 | R142: 7月 | S142: 1000 | U142: 50 | V142: 1000 | W142: 500 | X142: 17340 | AB142: 17390 | AC142: -50 | AD142: =AC142 -> -50 | AE142: -0.05 | AG142: 346.8 | AH142: -396.8 | AI142: -0.3968 | AK142: 0 | AL142: 0 | AM142: 潘锦洪 | AN142: 潘锦洪
A143: 业务完结 | B143: JMD19060042T01 | C143: 桂平宏远7899 | D143: 外包船 | E143: 1 | F143: 江门 | G143: 广东双水码头有限公司 | H143: 纸浆 | I143: 珠海港高栏国码 | J143: 双水码头 | K143: 2019-06-30 | L143: 2019-07-04 14:38 | M143: 2019-06-30 07:30 | N143: 2019-06-30 16:30 | O143: 9 | P143: 2019-07-01 09:30 | Q143: 2019-07-04 14:15 | R143: 7月 | S143: 1503.498 | U143: 76.75 | V143: 1503.498 | W143: 750 | X143: 20116.8 | AB143: 18072.05 | AC143: 2044.75 | AD143: =AC143 -> 2044.75 | AE143: 1.359995158 | AG143: 402.336 | AH143: 1642.414 | AI143: 1.092395201 | AK143: 0 | AL143: 0 | AM143: 潘锦洪 | AN143: 潘锦洪
A144: 业务完结 | B144: JMD19070006T01 | C144: 桂平飞达768 | D144: 外包船 | E144: 1 | F144: 江门 | G144: 广东双水码头有限公司 | H144: 纸浆 | I144: 珠海港高栏国码 | J144: 新会高宝隆 | K144: 2019-07-07 | L144: 2019-07-15 10:48 | M144: 2019-07-08 15:45 | N144: 2019-07-09 01:15 | O144: 9.5 | P144: 2019-07-09 17:00 | Q144: 2019-07-11 17:30 | R144: 7月 | S144: 1800 | T144: 0 | U144: 48.5 | V144: 1800 | W144: 900 | X144: 24084 | AB144: 21636 | AC144: 2448 | AD144: =AC144 -> 2448 | AE144: 1.36 | AG144: =X144*(8%/12)*3 -> 481.68 | AH144: 1966.32 | AI144: 1.0924 | AK144: 0 | AL144: 0 | AM144: 刘全 | AN144: 潘锦洪
A145: 业务完结 | B145: QYD19070024T01 | C145: 新通河3303 | D145: 自有船 | E145: 1 | F145: 江门 | G145: 广东双水码头有限公司 | H145: 纸浆 | I145: 珠海港高栏国码 | J145: 新会高宝隆 | K145: 2019-07-10 | L145: 2019-07-15 10:27 | M145: 2019-07-10 18:15 | N145: 2019-07-11 04:00 | O145: 9.75 | P145: 2019-07-11 20:30 | Q145: 2019-07-13 16:30 | R145: 7月 | S145: 1600 | U145: 44 | V145: 1600 | X145: 21408 | Y145: 9 | Z145: =X145/(100+Y145)*100 -> 19640.36697 | AA145: 18116.66291 | AB145: 120 | AC145: 21288 | AD145: =Z145-AA145-AB145 -> 1403.704065 | AE145: 0.8773150404 | AG145: 428.16 | AH145: 975.5440647 | AI145: 0.6097150404 | AK145: 0 | AL145: 0 | AM145: 刘全 | AN145: 刘全
A146: 业务完结 | B146: QYD19070026T01 | C146: 桂平飞达768 | D146: 外包船 | E146: 1 | F146: 江门 | G146: 广东双水码头有限公司 | H146: 纸浆 | I146: 珠海港高栏国码 | J146: 双水码头 | K146: 2019-07-12 | L146: 2019-07-15 11:06 | M146: 2019-07-11 20:30 | N146: 2019-07-12 07:00 | O146: 10.5 | P146: 2019-07-12 21:00 | Q146: 2019-07-14 10:00 | R146: 7月 | S146: 1800 | U146: 37 | V146: 1800 | W146: 900 | X146: 24084 | AB146: 21636 | AC146: 2448 | AD146: =AC146 -> 2448 | AE146: 1.36 | AG146: 481.68 | AH146: 1966.32 | AI146: 1.0924 | AK146: 0 | AL146: 0 | AM146: 刘全 | AN146: 刘全
A147: 业务完结 | B147: JMD19070009T01 | C147: 新通河3308 | D147: 自有船 | E147: 1 | F147: 江门 | G147: 广东双水码头有限公司 | H147: 纸浆 | I147: 珠海港高栏国码 | J147: 双水码头 | K147: 2019-07-13 | L147: 2019-07-25 10:18 | M147: 2019-07-12 23:00 | N147: 2019-07-13 06:00 | O147: 7 | P147: 2019-07-14 00:45 | Q147: 2019-07-15 14:15 | R147: 7月 | S147: 1501.84 | U147: 37.5 | V147: 1501.84 | X147: 20094.62 | Y147: 9 | Z147: =X147/(100+Y147)*100 -> 18435.43119 | AA147: 18329.86094 | AB147: 120 | AC147: 19974.62 | AD147: =Z147-AA147-AB147 -> -14.42974351 | AE147: -0.00960804314 | AG147: 401.8924 | AH147: -416.3221435 | AI147: -0.2772080538 | AK147: 0 | AL147: 0 | AM147: 刘全 | AN147: 潘锦洪
A148: 业务完结 | B148: JMD19070014T01 | C148: 新通河3303 | D148: 自有船 | E148: 1 | F148: 江门 | G148: 广东双水码头有限公司 | H148: 纸浆 | I148: 珠海港高栏国码 | J148: 新会高宝隆 | K148: 2019-07-17 | L148: 2019-07-17 17:14 | M148: 2019-07-15 16:45 | N148: 2019-07-16 07:00 | O148: 14.25 | P148: 2019-07-17 01:15 | Q148: 2019-07-17 17:00 | R148: 7月 | S148: 1571.366 | U148: 15.75 | V148: 1571.366 | X148: 21024.88 | Y148: 9 | Z148: =X148/(100+Y148)*100 -> 19288.88073 | AA148: 18116.66291 | AC148: 21024.88 | AD148: =Z148-AA148-AB148 -> 1172.217826 | AE148: 0.7459865023 | AG148: 420.4976 | AH148: 751.7202261 | AI148: 0.4783864651 | AK148: 0 | AL148: 0 | AM148: 潘锦洪 | AN148: 潘锦洪
A149: 业务完结 | B149: JMD19070013T01 | C149: 粤珠海货0068 | D149: 外包船 | E149: 1 | F149: 江门 | G149: 广东双水码头有限公司 | H149: 纸浆 | I149: 珠海港高栏国码 | J149: 双水码头 | K149: 2019-07-16 | L149: 2019-07-25 10:42 | M149: 2019-07-16 22:00 | N149: 2019-07-17 17:30 | O149: 19.5 | P149: 2019-07-19 06:00 | Q149: 2019-07-19 16:00 | R149: 7月 | S149: 740 | U149: 10 | V149: 740 | X149: 9901.2 | AB149: 9701.4 | AC149: 199.8 | AD149: =AC149 -> 199.8 | AE149: 0.27 | AG149: 198.024 | AH149: 1.776 | AI149: 0.0024 | AK149: 0 | AL149: 0 | AM149: 刘全 | AN149: 刘全
A150: 业务完结 | B150: JMD19070015T01 | C150: 新通河3303 | D150: 自有船 | E150: 1 | F150: 江门 | G150: 广东双水码头有限公司 | H150: 纸浆 | I150: 珠海港高栏国码 | J150: 新会高宝隆 | K150: 2019-07-17 | L150: 2019-07-29 12:11 | M150: 2019-07-18 07:15 | N150: 2019-07-18 21:00 | O150: 13.75 | P150: 2019-07-19 11:00 | Q150: 2019-07-21 15:00 | R150: 7月 | S150: 1513.183 | U150: 52 | V150: 1513.183 | X150: 20987.85 | Y150: 9 | Z150: =X150/(100+Y150)*100 -> 19254.90826 | AA150: 18116.66291 | AC150: 20987.85 | AD150: =Z150-AA150-AB150 -> 1138.245349 | AE150: 0.7522192287 | AG150: 419.757 | AH150: 718.4883491 | AI150: 0.474819205 | AK150: 0 | AL150: 0 | AM150: 刘全 | AN150: 潘锦洪
A151: 新建 | B151: JMD19070017T01 | C151: 粤珠海货0068 | D151: 外包船 | E151: 1 | F151: 江门 | G151: 广东双水码头有限公司 | H151: 纸浆 | I151: 珠海港高栏国码 | J151: 双水码头 | K151: 2019-07-19 | M151: 2019-07-20 09:30 | N151: 2019-07-20 16:00 | O151: 6.5 | P151: 2019-07-21 08:00 | Q151: 2019-07-22 12:00 | R151: 7月 | S151: 747.357 | U151: 28 | V151: 747.357 | X151: 9999.64 | AB151: 9797.85 | AC151: 201.79 | AD151: =AC151 -> 201.79 | AE151: 0.2700048304 | AG151: 199.9928 | AH151: 1.7972 | AI151: 0.002404740974 | AK151: 0 | AL151: 0 | AM151: 劳锡源 | AN151: 潘锦洪
A152: 业务完结 | B152: JMD19070023T01 | C152: 粤珠海货0068 | D152: 外包船 | E152: 1 | F152: 江门 | G152: 广东双水码头有限公司 | H152: 纸浆 | I152: 珠海港高栏国码 | J152: 新会高宝隆 | K152: 2019-07-26 | L152: 2019-07-26 11:08 | M152: 2019-07-23 09:00 | N152: 2019-07-23 15:30 | O152: 6.5 | P152: 2019-07-24 03:00 | Q152: 2019-07-24 21:00 | R152: 7月 | S152: 748.674 | T152: 374 | U152: 18 | X152: 10017.26 | AB152: 9815.12 | AC152: 202.14 | AD152: =AC152 -> 202.14 | AE152: 0.2699973553 | AG152: 200.3452 | AH152: 1.7948 | AI152: 0.002397305102 | AM152: 刘全 | AN152: 刘全
A153: 业务完结 | B153: JMD19070024T01 | C153: 粤珠海货0068 | D153: 外包船 | E153: 1 | F153: 江门 | G153: 广东双水码头有限公司 | H153: 纸浆 | I153: 珠海港高栏国码 | J153: 新会高宝隆 | K153: 2019-07-26 | L153: 2019-07-29 12:02 | M153: 2019-07-25 08:30 | N153: 2019-07-25 15:30 | O153: 7 | P153: 2019-07-26 07:30 | Q153: 2019-07-26 15:30 | R153: 7月 | S153: 748 | U153: 8 | V153: 748 | X153: 10008.24 | AB153: 9806.28 | AC153: 201.96 | AD153: =AC153 -> 201.96 | AE153: 0.27 | AG153: 200.1648 | AH153: 1.7952 | AI153: 0.0024 | AK153: 0 | AL153: 0 | AM153: 刘全 | AN153: 刘全
A154: 新建 | B154: JMD19070025T01 | C154: 粤珠海货0068 | D154: 外包船 | E154: 1 | F154: 江门 | G154: 广东双水码头有限公司 | H154: 纸浆 | I154: 珠海港高栏国码 | J154: 新会新港 | K154: 2019-07-29 | M154: 2019-07-27 07:15 | N154: 2019-07-27 15:15 | O154: 8 | P154: 2019-07-28 06:30 | Q154: 2019-07-28 14:15 | R154: 7月 | S154: 748 | U154: 7.75 | V154: 748 | X154: 10008.24 | AB154: 9806.28 | AC154: 201.96 | AD154: =AC154 -> 201.96 | AE154: 0.27 | AG154: 200.1648 | AH154: 1.7952 | AI154: 0.0024 | AK154: 0 | AL154: 0 | AM154: 刘全 | AN154: 刘全
A155: 业务完结 | B155: JMD19070022T01 | C155: 新通河3301 | D155: 自有船 | E155: 1 | F155: 江门 | G155: 广东双水码头有限公司 | H155: 纸浆 | I155: 南沙粮食通用码头 | J155: 双水码头 | K155: 2019-07-25 | L155: 2019-07-30 16:10 | M155: 2019-07-25 18:15 | N155: 2019-07-27 20:00 | O155: 49.75 | P155: 2019-07-28 17:45 | Q155: 2019-07-30 10:15 | R155: 7月 | S155: 2000 | T155: 1000 | U155: 40.5 | V155: 2000 | W155: 1000 | X155: 34680 | Y155: 9 | Z155: =X155/(100+Y155)*100 -> 31816.51376 | AA155: 53194.51355 | AB155: 2120 | AC155: 32560 | AD155: =Z155-AA155-AB155 -> -23497.99978 | AE155: -11.74899989 | AG155: 693.6 | AH155: -24191.59978 | AI155: -12.09579989 | AK155: 0 | AL155: 0 | AM155: 刘全 | AN155: 潘锦洪
A156: 业务完结 | B156: QYDJ19070008F01S0001 | C156: 平南永佳808 | D156: 外包船-包 | E156: 1 | F156: 广州 | G156: 广东通威饲料有限公司 | H156: 玉米 | I156: 黄埔新港码头 | J156: 佛山华商码头 | K156: 2019-07-11 | L156: 2019-07-18 14:43 | M156: 2019-07-10 18:00 | N156: 2019-07-11 15:30 | O156: 21.5 | P156: 2019-07-12 15:30 | Q156: 2019-07-16 15:00 | R156: 7月 | S156: 895.48 | U156: 95.5 | V156: 897.224 | X156: 29550.84 | AB156: 27750.93 | AC156: 1799.91 | AD156: =AC156 -> 1799.91 | AE156: 2.00999464 | AH156: 1799.91 | AI156: 2.00999464 | AK156: -1.744 | AL156: -1.744 | AM156: 潘锦洪 | AN156: 阮玉华
A157: 业务完结 | B157: QYD19070048T01 | C157: 粤鼎湖货2268 | D157: 外包船 | E157: 1 | F157: 广州 | G157: 广东通威饲料有限公司 | H157: 菜粕 | I157: 麻涌 | J157: 佛山华商码头 | K157: 2019-07-22 | L157: 2019-07-30 15:37 | M157: 2019-07-23 19:00 | N157: 2019-07-25 23:15 | O157: 52.25 | P157: 2019-07-26 11:30 | Q157: 2019-07-30 09:30 | R157: 7月 | S157: 989.53 | U157: 94 | V157: 994.3 | X157: 31045.11 | AB157: 30121.3 | AC157: 923.81 | AD157: 923.81 | AE157: 0.9335846311 | AH157: 923.81 | AI157: 0.9335846311 | AK157: -4.77 | AL157: -4.77 | AM157: 潘锦洪 | AN157: 潘锦洪
A158: 业务完结 | B158: GXD19040001T01 | C158: 贵港福盛6666 | D158: 外包船 | E158: 1 | F158: 西江 | G158: 广西金苹果饲料有限公司 | H158: 玉米 | I158: 黄埔新港码头 | J158: 平南矿冶码头 | K158: 2019-04-08 | L158: 2019-04-28 14:11 | M158: 2019-04-09 11:00 | N158: 2019-04-10 14:30 | O158: 27.5 | P158: 2019-04-13 08:00 | Q158: 2019-04-19 14:30 | R158: 4月 | S158: 1707.73 | U158: 150.5 | V158: 1707.452 | X158: 42693.25 | AB158: 39960.88 | AC158: 2732.37 | AD158: 2732.37 | AE158: 1.600001171 | AH158: 2732.37 | AI158: 1.600001171 | AK158: 0.278 | AL158: 0.278 | AM158: 张展鹏 | AN158: 张展鹏
A159: 业务完结 | B159: GXD19040001T01 | C159: 贵港天佑2019 | D159: 外包船 | E159: 1 | F159: 西江 | G159: 广西金苹果饲料有限公司 | H159: 玉米 | I159: 黄埔新港码头 | J159: 平南矿冶码头 | K159: 2019-04-08 | L159: 2019-04-28 14:11 | M159: 2019-04-10 20:00 | N159: 2019-04-11 23:30 | O159: 27.5 | P159: 2019-04-14 09:30 | Q159: 2019-04-22 17:00 | R159: 4月 | S159: 1706.61 | U159: 199.5 | V159: 1707.924 | X159: 42665.25 | AB159: 41760.75 | AC159: 904.5 | AD159: 904.5 | AE159: 0.5299980663 | AH159: 904.5 | AI159: 0.5299980663 | AK159: -1.314 | AL159: -1.314 | AM159: 张展鹏 | AN159: 张展鹏
A160: 业务完结 | B160: GXD19040002T01 | C160: 贵港天佑8633 | D160: 外包船 | E160: 1 | F160: 西江 | G160: 广西金苹果饲料有限公司 | H160: 玉米 | I160: 麻涌 | J160: 平南矿冶码头 | K160: 2019-04-15 | L160: 2019-04-29 11:15 | M160: 2019-04-17 11:30 | N160: 2019-04-22 01:30 | O160: 110 | P160: 2019-04-24 20:00 | Q160: 2019-04-29 10:00 | R160: 4月 | S160: 1560.765 | U160: 110 | V160: 1563.68 | X160: 39213.14 | AB160: 40149.6 | AC160: -936.46 | AD160: -936.46 | AE160: -0.6000006407 | AH160: -936.46 | AI160: -0.6000006407 | AK160: -2.915 | AL160: -2.915 | AM160: 潘锦洪 | AN160: 张展鹏
A161: 业务完结 | B161: GXD19050003T01 | C161: 平南永佳3916 | D161: 外包船 | E161: 1 | F161: 西江 | G161: 广西金苹果饲料有限公司 | H161: 玉米 | I161: 蛇口 | J161: 平南矿冶码头 | K161: 2019-05-08 | L161: 2019-05-31 10:06 | M161: 2019-04-28 00:15 | N161: 2019-04-29 02:00 | O161: 25.75 | P161: 2019-05-02 12:00 | Q161: 2019-05-30 15:00 | R161: 5月 | S161: 1686.41 | U161: 675 | V161: 1689.78 | X161: 64691.94 | AB161: 61774.45 | AC161: 2917.49 | AD161: 2917.49 | AE161: 1.730000415 | AH161: 2917.49 | AI161: 1.730000415 | AK161: -3.37 | AL161: -3.37 | AM161: 张展鹏 | AN161: 张展鹏
A162: 业务完结 | B162: QYD19010049T01 | C162: 桂平宏远6699 | D162: 外包船 | E162: 1 | F162: 广州 | G162: 广州港船务有限公司 | H162: 热轧卷钢 | I162: 南沙粮食通用码头 | J162: 九江定安货运码头 | K162: 2019-01-14 | L162: 2019-01-16 18:17 | M162: 2019-01-13 21:00 | N162: 2019-01-14 06:30 | O162: 9.5 | P162: 2019-01-14 23:15 | Q162: 2019-01-16 02:45 | R162: 1月 | S162: 1639.68 | U162: 27.5 | V162: 1639.68 | X162: 17291.14 | AB162: 16134.45 | AC162: 1156.69 | AD162: 1156.69 | AE162: 0.7054364266 | AH162: 1156.69 | AI162: 0.7054364266 | AK162: 0 | AL162: 0 | AM162: 潘锦洪 | AN162: 潘锦洪
A163: 业务完结 | B163: QYD19010048T01 | C163: 新通河3308 | D163: 自有船 | E163: 1 | F163: 广州 | G163: 广州港船务有限公司 | H163: 纸浆 | I163: 南沙粮食通用码头 | J163: 新会港 | K163: 2019-01-14 | L163: 2019-01-18 17:08 | M163: 2019-01-11 17:00 | N163: 2019-01-13 03:30 | O163: 34.5 | P163: 2019-01-16 12:00 | Q163: 2019-01-18 16:30 | R163: 1月 | S163: 1500 | U163: 52.5 | V163: 1500 | X163: 30000 | Y163: 10 | Z163: =X163/(100+Y163)*100 -> 27272.72727 | AA163: 25549.84165 | AB163: 350 | AC163: 29650 | AD163: =Z163-AA163-AB163 -> 1372.885624 | AE163: 0.9152570825 | AH163: 1372.885624 | AI163: 0.9152570825 | AK163: 0 | AL163: 0 | AM163: 潘锦洪 | AN163: 潘锦洪
A164: 业务完结 | B164: QYD19030006T01 | C164: 新通河3308 | D164: 自有船 | E164: 1 | F164: 广州 | G164: 广州港船务有限公司 | H164: 冷轧卷钢 | I164: 南沙粮食通用码头 | J164: 新会港 | K164: 2019-03-04 | L164: 2019-03-20 14:23 | M164: 2019-03-05 01:30 | N164: 2019-03-07 00:30 | O164: 47 | P164: 2019-03-08 10:00 | Q164: 2019-03-10 23:00 | R164: 3月 | S164: 1441.22 | T164: 176 | U164: 61 | V164: 1441.22 | W164: 176 | X164: 22122.73 | Y164: 10 | Z164: =X164/(100+Y164)*100 -> 20111.57273 | AA164: 14642.95901 | AC164: 22122.73 | AD164: =Z164-AA164-AB164 -> 5468.61372 | AE164: 3.794433688 | AH164: 5468.61372 | AI164: 3.794433688 | AK164: 0 | AL164: 0 | AM164: 潘锦洪 | AN164: 潘锦洪
A165: 业务完结 | B165: QYD19040070T01 | C165: 桂平宏远6699 | D165: 外包船 | E165: 1 | F165: 广州 | G165: 广州港船务有限公司 | H165: 热轧卷钢 | I165: 南沙粮食通用码头 | J165: 九江定安货运码头 | K165: 2019-04-20 | L165: 2019-04-24 10:17 | M165: 2019-04-20 15:45 | N165: 2019-04-21 03:30 | O165: 11.75 | P165: 2019-04-22 11:30 | Q165: 2019-04-23 10:00 | R165: 4月 | S165: 1924.44 | U165: 22.5 | V165: 1924.44 | W165: 84 | X165: 20418.31 | AB165: 18936.49 | AC165: 1481.82 | AD165: =AC165 -> 1481.82 | AE165: 0.7700006236 | AH165: 1481.82 | AI165: 0.7700006236 | AK165: 0 | AL165: 0 | AM165: 潘锦洪 | AN165: 张展鹏
A166: 业务完结 | B166: QYD19040061T01 | C166: 新通河3303 | D166: 自有船 | E166: 1 | F166: 广州 | G166: 广州港船务有限公司 | H166: 线材 | I166: 南沙粮食通用码头 | J166: 高栏港 | K166: 2019-04-17 | L166: 2019-04-24 10:14 | M166: 2019-04-18 10:30 | N166: 2019-04-20 07:30 | O166: 45 | P166: 2019-04-21 02:30 | Q166: 2019-04-23 22:30 | R166: 4月 | S166: 1306.84 | U166: 68 | V166: 1306.84 | X166: 25415.61 | Y166: 9 | Z166: =X166/(100+Y166)*100 -> 23317.07339 | AA166: 18846.754 | AB166: 52.04 | AC166: 25363.57 | AD166: =Z166-AA166-AB166 -> 4418.279394 | AE166: 3.380887786 | AH166: 4418.279394 | AI166: 3.380887786 | AK166: 0 | AL166: 0 | AM166: 潘锦洪 | AN166: 潘锦洪
A167: 业务完结 | B167: QYD19050005T01 | C167: 粤鼎湖货8288 | D167: 外包船 | E167: 1 | F167: 广州 | G167: 广州港船务有限公司 | H167: 纸浆 | I167: 黄埔老港码头 | J167: 理文纸厂 | K167: 2019-05-06 | L167: 2019-05-13 16:04 | M167: 2019-05-10 08:00 | N167: 2019-05-10 23:00 | O167: 15 | P167: 2019-05-11 04:30 | Q167: 2019-05-13 16:00 | R167: 5月 | S167: 2011.072 | T167: 995 | U167: 59.5 | V167: 2011.072 | W167: 995 | X167: 25200.46 | AB167: 25246.51 | AC167: -46.05 | AD167: =AC167 -> -46.05 | AE167: -0.02289823537 | AH167: -46.05 | AI167: -0.02289823537 | AK167: 0 | AL167: 0 | AM167: 潘锦洪 | AN167: 潘锦洪
A168: 业务完结 | B168: QYD19050033T01 | C168: 新通河3301 | D168: 自有船 | E168: 1 | F168: 广州 | G168: 广州港船务有限公司 | H168: 热轧钢板 | I168: 南沙粮食通用码头 | J168: 高栏港 | K168: 2019-05-14 | L168: 2019-05-23 16:58 | M168: 2019-05-17 02:00 | N168: 2019-05-17 08:15 | O168: 6.25 | P168: 2019-05-18 17:15 | Q168: 2019-05-23 15:00 | R168: 5月 | S168: 1755.95 | U168: 117.75 | V168: 1755.95 | X168: 34153.23 | Y168: 10 | Z168: =X168/(100+Y168)*100 -> 31048.39091 | AA168: 50630.09468 | AC168: 34153.23 | AD168: =Z168-AA168-AB168 -> -19581.70377 | AE168: -11.15162947 | AH168: -19581.70377 | AI168: -11.15162947 | AK168: 0 | AL168: 0 | AM168: 潘锦洪 | AN168: 潘锦洪
A169: 业务完结 | B169: QYD19050081T01 | C169: 桂平宏远7899 | D169: 外包船 | E169: 1 | F169: 广州 | G169: 广州港船务有限公司 | H169: 热轧卷钢 | I169: 南沙粮食通用码头 | J169: 顺德勒流港 | K169: 2019-05-30 | L169: 2019-06-03 10:26 | M169: 2019-05-30 14:30 | N169: 2019-06-01 15:15 | O169: 48.75 | P169: 2019-06-01 23:30 | Q169: 2019-06-02 14:30 | R169: 6月 | S169: 1449.54 | U169: 15 | V169: 1449.54 | X169: 13944.57 | AB169: 13466.23 | AC169: 478.34 | AD169: =AC169 -> 478.34 | AE169: 0.329994343 | AH169: 478.34 | AI169: 0.329994343 | AK169: 0 | AL169: 0 | AM169: 张展鹏 | AN169: 潘锦洪
A170: 业务完结 | B170: QYD19050054T01 | C170: 新通河3301 | D170: 自有船 | E170: 1 | F170: 广州 | G170: 广州港船务有限公司 | H170: 纸浆 | I170: 南沙粮食通用码头 | J170: 新会新港 | K170: 2019-05-21 | L170: 2019-06-03 17:06 | M170: 2019-05-24 11:30 | N170: 2019-05-25 17:45 | O170: 30.25 | P170: 2019-05-29 09:30 | Q170: 2019-06-03 09:30 | R170: 6月 | S170: 2478 | T170: 1239 | U170: 120 | V170: 2478 | W170: 1239 | X170: 48667.92 | Y170: 9 | Z170: =X170/(100+Y170)*100 -> 44649.46789 | AA170: 34931.8426 | AC170: 48667.92 | AD170: =Z170-AA170-AB170 -> 9717.625294 | AE170: 3.921559844 | AH170: 9717.625294 | AI170: 3.921559844 | AK170: 0 | AL170: 0 | AM170: 潘锦洪 | AN170: 潘锦洪
A171: 业务完结 | B171: QYD19050054T01 | C171: 新通河3308 | D171: 自有船 | E171: 1 | F171: 广州 | G171: 广州港船务有限公司 | H171: 纸浆 | I171: 南沙粮食通用码头 | J171: 新会新港 | K171: 2019-05-21 | L171: 2019-06-03 17:06 | M171: 2019-05-25 00:30 | N171: 2019-05-26 21:00 | O171: 44.5 | P171: 2019-05-29 09:30 | Q171: 2019-06-03 15:00 | R171: 6月 | S171: 1500 | T171: 750 | U171: 125.5 | V171: 1500 | W171: 750 | X171: 29460 | Y171: 9 | Z171: =X171/(100+Y171)*100 -> 27027.52294 | AA171: 37909.4395 | AB171: 240 | AC171: 29220 | AD171: =Z171-AA171-AB171 -> -11121.91657 | AE171: -7.414611045 | AH171: -11121.91657 | AI171: -7.414611045 | AK171: 0 | AL171: 0 | AM171: 潘锦洪 | AN171: 潘锦洪
A172: 业务完结 | B172: QYD19050073T01 | C172: 粤鼎湖货6628 | D172: 外包船 | E172: 1 | F172: 广州 | G172: 广州港船务有限公司 | H172: 纸浆 | I172: 南沙粮食通用码头 | J172: 新会亚太纸厂 | K172: 2019-05-28 | L172: 2019-06-20 08:46 | M172: 2019-05-29 06:00 | N172: 2019-06-01 21:30 | O172: 87.5 | P172: 2019-06-02 22:45 | Q172: 2019-06-04 06:30 | R172: 6月 | S172: 1920 | U172: 31.75 | V172: 1920 | W172: 860 | X172: 35193.6 | AB172: 31468.8 | AC172: 3724.8 | AD172: =AC172 -> 3724.8 | AE172: 1.94 | AH172: 3724.8 | AI172: 1.94 | AK172: 0 | AL172: 0 | AM172: 潘锦洪 | AN172: 潘锦洪
A173: 业务完结 | B173: QYD19050073T01 | C173: 桂平宏远7899 | D173: 外包船 | E173: 1 | F173: 广州 | G173: 广州港船务有限公司 | H173: 纸浆 | I173: 南沙粮食通用码头 | J173: 新会亚太纸厂 | K173: 2019-05-28 | L173: 2019-06-20 08:46 | M173: 2019-06-04 07:30 | N173: 2019-06-05 08:30 | O173: 25 | P173: 2019-06-06 02:00 | Q173: 2019-06-08 09:00 | R173: 6月 | S173: 1550 | U173: 55 | V173: 1550 | W173: 775 | X173: 28411.5 | AB173: 25404.5 | AC173: 3007 | AD173: =AC173 -> 3007 | AE173: 1.94 | AH173: 3007 | AI173: 1.94 | AK173: 0 | AL173: 0 | AM173: 潘锦洪 | AN173: 潘锦洪
A174: 业务完结 | B174: QYD19050073T01 | C174: 桂藤县货0803 | D174: 外包船 | E174: 1 | F174: 广州 | G174: 广州港船务有限公司 | H174: 纸浆 | I174: 南沙粮食通用码头 | J174: 新会亚太纸厂 | K174: 2019-05-28 | L174: 2019-06-20 08:46 | M174: 2019-06-05 14:15 | N174: 2019-06-07 18:30 | O174: 52.25 | P174: 2019-06-09 07:00 | Q174: 2019-06-10 02:00 | R174: 6月 | S174: 1120 | U174: 19 | V174: 1120 | W174: 560 | X174: 20529.6 | AB174: 18356.8 | AC174: 2172.8 | AD174: =AC174 -> 2172.8 | AE174: 1.94 | AH174: 2172.8 | AI174: 1.94 | AK174: 0 | AL174: 0 | AM174: 潘锦洪 | AN174: 潘锦洪
A175: 业务完结 | B175: QYD19060009T01 | C175: 新通河3303 | D175: 自有船 | E175: 1 | F175: 广州 | G175: 广州港船务有限公司 | H175: 热轧卷钢 | I175: 南沙粮食通用码头 | J175: 东方国际集装箱 | K175: 2019-06-06 | L175: 2019-06-11 14:19 | M175: 2019-06-06 08:30 | N175: 2019-06-08 07:00 | O175: 46.5 | P175: 2019-06-08 14:45 | Q175: 2019-06-11 11:45 | R175: 6月 | S175: 1507 | T175: 74 | U175: 69 | V175: 1507 | W175: 74 | X175: 11543.62 | Y175: 9 | Z175: =X175/(100+Y175)*100 -> 10590.47706 | AA175: 24758.27979 | AC175: 11543.62 | AD175: =Z175-AA175-AB175 -> -14167.80272 | AE175: -9.401328947 | AH175: -14167.80272 | AI175: -9.401328947 | AK175: 0 | AL175: 0 | AM175: 潘锦洪 | AN175: 潘锦洪
A176: 业务完结 | B176: QYD19060021T01 | C176: 粤鼎湖货6628 | D176: 外包船 | E176: 1 | F176: 广州 | G176: 广州港船务有限公司 | H176: 热轧卷钢 | I176: 南沙粮食通用码头 | J176: 蛇口港 | K176: 2019-06-11 | L176: 2019-06-17 17:10 | M176: 2019-06-11 23:30 | N176: 2019-06-16 03:00 | O176: 99.5 | P176: 2019-06-16 07:00 | Q176: 2019-06-16 13:30 | R176: 6月 | S176: 1659 | U176: 6.5 | V176: 1659 | W176: 75 | X176: 16046.16 | AB176: 13603.8 | AC176: 2442.36 | AD176: =AC176 -> 2442.36 | AE176: 1.472188065 | AH176: 2442.36 | AI176: 1.472188065 | AK176: 0 | AL176: 0 | AM176: 潘锦洪 | AN176: 潘锦洪
A177: 业务完结 | B177: QYD19060021T01 | C177: 粤鼎湖货6698 | D177: 外包船 | E177: 1 | F177: 广州 | G177: 广州港船务有限公司 | H177: 热轧卷钢 | I177: 南沙粮食通用码头 | J177: 蛇口港 | K177: 2019-06-11 | L177: 2019-06-17 17:10 | M177: 2019-06-15 11:00 | N177: 2019-06-16 07:30 | O177: 20.5 | P177: 2019-06-16 12:30 | Q177: 2019-06-16 17:15 | R177: 6月 | S177: 1290.54 | U177: 4.75 | V177: 1290.54 | X177: 12414.99 | AB177: 10582.43 | AC177: 1832.56 | AD177: =AC177 -> 1832.56 | AE177: 1.419994731 | AH177: 1832.56 | AI177: 1.419994731 | AK177: 0 | AL177: 0 | AM177: 潘锦洪 | AN177: 潘锦洪
A178: 业务完结 | B178: QYD19050073T01 | C178: 桂藤县货0803 | D178: 外包船 | E178: 1 | F178: 广州 | G178: 广州港船务有限公司 | H178: 纸浆 | I178: 南沙粮食通用码头 | J178: 新会亚太纸厂 | K178: 2019-05-28 | L178: 2019-06-20 08:46 | M178: 2019-06-11 16:00 | N178: 2019-06-15 07:30 | O178: 87.5 | P178: 2019-06-16 19:30 | Q178: 2019-06-18 09:00 | R178: 6月 | S178: 1100 | U178: 37.5 | V178: 1100 | W178: 550 | X178: 20163 | AB178: 18029 | AC178: 2134 | AD178: =AC178 -> 2134 | AE178: 1.94 | AH178: 2134 | AI178: 1.94 | AK178: 0 | AL178: 0 | AM178: 潘锦洪 | AN178: 潘锦洪
A179: 业务完结 | B179: QYD19050073T01 | C179: 新通河3301 | D179: 自有船 | E179: 1 | F179: 广州 | G179: 广州港船务有限公司 | H179: 纸浆 | I179: 南沙粮食通用码头 | J179: 新会亚太纸厂 | K179: 2019-05-28 | L179: 2019-06-20 08:46 | M179: 2019-06-11 12:30 | N179: 2019-06-16 00:15 | O179: 107.75 | P179: 2019-06-17 01:30 | Q179: 2019-06-20 06:30 | R179: 6月 | S179: 2510 | U179: 77 | V179: 2510 | W179: 1255 | X179: 46008.3 | Y179: 9 | Z179: =X179/(100+Y179)*100 -> 42209.44954 | AA179: 34931.8426 | AC179: 46008.3 | AD179: =Z179-AA179-AB179 -> 7277.606946 | AE179: 2.899444998 | AH179: 7277.606946 | AI179: 2.899444998 | AK179: 0 | AL179: 0 | AM179: 潘锦洪 | AN179: 潘锦洪
A180: 业务完结 | B180: QYD19060058T01 | C180: 粤都城货9026 | D180: 外包船 | E180: 1 | F180: 广州 | G180: 广州港船务有限公司 | H180: 纸浆 | I180: 南沙粮食通用码头 | J180: 新会新港 | K180: 2019-06-25 | L180: 2019-06-28 09:45 | M180: 2019-06-26 09:30 | N180: 2019-06-26 23:30 | O180: 14 | P180: 2019-06-27 16:00 | Q180: 2019-06-27 21:30 | R180: 6月 | S180: 932 | T180: 466 | U180: 5.5 | V180: 932 | W180: 466 | X180: 17083.56 | AB180: 16390 | AC180: 693.56 | AD180: =AC180 -> 693.56 | AE180: 0.7441630901 | AH180: 693.56 | AI180: 0.7441630901 | AK180: 0 | AL180: 0 | AM180: 潘锦洪 | AN180: 潘锦洪
A181: 业务完结 | B181: QYD19060058T01 | C181: 粤鼎湖货3398 | D181: 外包船 | E181: 1 | F181: 广州 | G181: 广州港船务有限公司 | H181: 纸浆 | I181: 南沙粮食通用码头 | J181: 新会新港 | K181: 2019-06-25 | L181: 2019-06-28 09:45 | M181: 2019-06-25 13:00 | N181: 2019-06-27 06:00 | O181: 41 | P181: 2019-06-27 19:30 | Q181: 2019-06-28 02:45 | R181: 6月 | S181: 932 | T181: 466 | U181: 7.25 | V181: 932 | W181: 466 | X181: 17083.56 | AB181: 16390 | AC181: 693.56 | AD181: 693.56 | AE181: 0.7441630901 | AH181: 693.56 | AI181: 0.7441630901 | AK181: 0 | AL181: 0 | AM181: 潘锦洪 | AN181: 潘锦洪
A182: 业务完结 | B182: QYD19060060T01 | C182: 粤鼎湖货6628 | D182: 外包船 | E182: 1 | F182: 广州 | G182: 广州港船务有限公司 | H182: 热轧卷钢 | I182: 南沙粮食通用码头 | J182: 东方国际集装箱 | K182: 2019-06-26 | L182: 2019-06-29 16:17 | M182: 2019-06-28 06:00 | N182: 2019-06-28 21:00 | O182: 15 | P182: 2019-06-29 06:00 | Q182: 2019-06-29 15:30 | R182: 6月 | S182: 1890.56 | U182: 9.5 | V182: 1890.56 | X182: 14483.07 | AB182: 13422.98 | AC182: 1060.09 | AD182: 1060.09 | AE182: 0.5607280383 | AH182: 1060.09 | AI182: 0.5607280383 | AK182: 0 | AL182: 0 | AM182: 潘锦洪 | AN182: 潘锦洪
A183: 业务完结 | B183: QYD19060064T01 | C183: 粤鼎湖货0698 | D183: 外包船-包 | E183: 1 | F183: 广州 | G183: 广州港船务有限公司 | H183: 热轧卷钢 | I183: 南沙粮食通用码头 | J183: 蛇口港 | K183: 2019-06-28 | L183: 2019-07-02 10:18 | M183: 2019-06-28 20:30 | N183: 2019-07-01 10:00 | O183: 61.5 | P183: 2019-07-01 15:00 | Q183: 2019-07-01 23:30 | R183: 7月 | S183: 930.34 | U183: 8.5 | V183: 930.34 | W183: 42 | X183: 8949.87 | AB183: 8131.17 | AC183: 818.7 | AD183: 818.7 | AE183: 0.8800008599 | AH183: 818.7 | AI183: 0.8800008599 | AK183: 0 | AL183: 0 | AM183: 潘锦洪 | AN183: 潘锦洪
A184: 业务完结 | B184: QYD19060065T01 | C184: 惠大昌328 | D184: 外包船 | E184: 1 | F184: 广州 | G184: 广州港船务有限公司 | H184: 热轧卷钢 | I184: 南沙粮食通用码头 | J184: 东方国际集装箱 | K184: 2019-06-28 | L184: 2019-07-18 14:37 | M184: 2019-07-08 10:00 | N184: 2019-07-09 03:15 | O184: 17.25 | P184: 2019-07-09 09:30 | Q184: 2019-07-10 10:30 | R184: 7月 | S184: 914.26 | U184: 25 | V184: 914.26 | X184: 7003.23 | AB184: 6491.25 | AC184: 511.98 | AD184: 511.98 | AE184: 0.5599938748 | AH184: 511.98 | AI184: 0.5599938748 | AK184: 0 | AL184: 0 | AM184: 潘锦洪 | AN184: 潘锦洪
A185: 业务完结 | B185: QYD19060065T01 | C185: 粤鼎湖货6698 | D185: 外包船 | E185: 1 | F185: 广州 | G185: 广州港船务有限公司 | H185: 热轧卷钢 | I185: 南沙粮食通用码头 | J185: 东方国际集装箱 | K185: 2019-06-28 | L185: 2019-07-18 14:37 | M185: 2019-07-08 09:45 | N185: 2019-07-09 05:45 | O185: 20 | P185: 2019-07-09 11:15 | Q185: 2019-07-11 10:00 | R185: 7月 | S185: 1545.63 | U185: 46.75 | V185: 1545.63 | X185: 11839.53 | AB185: 10973.97 | AC185: 865.56 | AD185: 865.56 | AE185: 0.5600046583 | AH185: 865.56 | AI185: 0.5600046583 | AK185: 0 | AL185: 0 | AM185: 潘锦洪 | AN185: 潘锦洪
A186: 业务完结 | B186: QYD19060068T01 | C186: 新通河3301 | D186: 自有船 | E186: 1 | F186: 广州 | G186: 广州港船务有限公司 | H186: 纸浆 | I186: 南沙粮食通用码头 | J186: 新会新港 | K186: 2019-06-28 | L186: 2019-07-18 14:40 | M186: 2019-07-01 13:00 | N186: 2019-07-02 02:15 | O186: 13.25 | P186: 2019-07-09 13:30 | Q186: 2019-07-13 08:00 | R186: 7月 | S186: 2450 | T186: 1225 | U186: 90.5 | V186: 2450 | W186: 1225 | X186: 48118 | Y186: 9 | Z186: =X186/(100+Y186)*100 -> 44144.95413 | AA186: 53194.51355 | AC186: 48118 | AD186: =Z186-AA186-AB186 -> -9049.559418 | AE186: -3.693697721 | AH186: -9049.559418 | AI186: -3.693697721 | AK186: 0 | AL186: 0 | AM186: 刘全 | AN186: 潘锦洪
A187: 业务完结 | B187: QYD19070020T01 | C187: 桂平宏远7899 | D187: 外包船 | E187: 1 | F187: 广州 | G187: 广州港船务有限公司 | H187: 纸浆 | I187: 南沙粮食通用码头 | J187: 新会新港 | K187: 2019-07-09 | L187: 2019-07-29 10:38 | M187: 2019-07-10 08:30 | N187: 2019-07-12 03:45 | O187: 43.25 | P187: 2019-07-12 13:00 | Q187: 2019-07-13 09:00 | R187: 7月 | S187: 1570 | U187: 20 | V187: 1570 | X187: 28778.1 | AB187: 25732.3 | AC187: 3045.8 | AD187: =AC187 -> 3045.8 | AE187: 1.94 | AH187: 3045.8 | AI187: 1.94 | AK187: 0 | AL187: 0 | AM187: 劳锡源 | AN187: 潘锦洪
A188: 业务完结 | B188: QYD19070042T01 | C188: 粤鼎湖货0898 | D188: 外包船 | E188: 1 | F188: 广州 | G188: 广州港船务有限公司 | H188: 纸浆 | I188: 南沙粮食通用码头 | J188: 新会新港 | K188: 2019-07-18 | L188: 2019-07-26 16:38 | M188: 2019-07-20 18:00 | N188: 2019-07-23 18:00 | O188: 72 | P188: 2019-07-24 16:00 | Q188: 2019-07-26 14:30 | R188: 7月 | S188: 1400 | U188: 46.5 | V188: 1400 | X188: 25662 | AB188: 22946 | AC188: 2716 | AD188: 2716 | AE188: 1.94 | AH188: 2716 | AI188: 1.94 | AK188: 0 | AL188: 0 | AM188: 刘全 | AN188: 潘锦洪
A189: 业务完结 | B189: QYD19070051T01 | C189: 粤鼎湖货8288 | D189: 外包船 | E189: 1 | F189: 广州 | G189: 广州港船务有限公司 | H189: 纸浆 | I189: 南沙粮食通用码头 | J189: 新会新港 | K189: 2019-07-23 | L189: 2019-07-30 14:58 | M189: 2019-07-24 22:00 | N189: 2019-07-26 12:00 | O189: 38 | P189: 2019-07-27 17:00 | Q189: 2019-07-28 10:00 | R189: 7月 | S189: 1950 | T189: 975 | U189: 17 | V189: 1950 | W189: 975 | X189: 35743.5 | AB189: 31960.5 | AC189: 3783 | AD189: 3783 | AE189: 1.94 | AH189: 3783 | AI189: 1.94 | AK189: 0 | AL189: 0 | AM189: 刘全 | AN189: 潘锦洪
A190: 业务完结 | B190: QYD19030131T01 | C190: 粤鼎湖货6638 | D190: 外包船 | E190: 1 | F190: 广州 | G190: 广州港股份有限公司新港港务分公司 | H190: 玉米 | I190: 黄埔新港码头 | J190: 国丰仓 | K190: 2019-03-25 | L190: 2019-04-19 09:19 | M190: 2019-03-25 16:00 | N190: 2019-03-26 22:45 | O190: 30.75 | P190: 2019-03-27 00:30 | Q190: 2019-03-30 02:30 | R190: 3月 | S190: 2026.218 | U190: 74 | V190: 2048.788 | X190: 16390.3 | AB190: 13697.23 | AC190: 2693.07 | AD190: 2693.07 | AE190: 1.329111675 | AF190: 405.2436 | AH190: 2287.8264 | AI190: 1.129111675 | AK190: -22.57 | AL190: -22.57 | AM190: 潘锦洪 | AN190: 潘锦洪
A191: 业务完结 | B191: QYD19030131T01 | C191: 惠大昌328 | D191: 外包船 | E191: 1 | F191: 广州 | G191: 广州港股份有限公司新港港务分公司 | H191: 玉米 | I191: 黄埔新港码头 | J191: 国丰仓 | K191: 2019-03-25 | L191: 2019-04-19 09:19 | M191: 2019-03-25 18:00 | N191: 2019-03-26 23:00 | O191: 29 | P191: 2019-03-27 01:15 | Q191: 2019-03-30 06:15 | R191: 3月 | S191: 998.39 | U191: 77 | V191: 998.758 | X191: 7990.06 | AB191: 6749.12 | AC191: 1240.94 | AD191: 1240.94 | AE191: 1.242941135 | AF191: 199.678 | AH191: 1041.262 | AI191: 1.042941135 | AK191: -0.368 | AL191: -0.368 | AM191: 张佩欣 | AN191: 潘锦洪
A192: 业务完结 | B192: QYD19030131T01 | C192: 明珠938 | D192: 外包船 | E192: 1 | F192: 广州 | G192: 广州港股份有限公司新港港务分公司 | H192: 玉米 | I192: 黄埔新港码头 | J192: 国丰仓 | K192: 2019-03-25 | L192: 2019-04-19 09:19 | M192: 2019-03-26 06:00 | N192: 2019-03-27 05:15 | O192: 23.25 | P192: 2019-03-27 07:45 | Q192: 2019-03-30 13:30 | R192: 3月 | S192: 1294.95 | U192: 77.75 | V192: 1298.73 | X192: 10389.84 | AB192: 8753.86 | AC192: 1635.98 | AD192: 1635.98 | AE192: 1.263353797 | AF192: 258.99 | AH192: 1376.99 | AI192: 1.063353797 | AK192: -3.78 | AL192: -3.78 | AM192: 劳锡源 | AN192: 潘锦洪
A193: 业务完结 | B193: QYD19030131T01 | C193: 莞海安268 | D193: 外包船 | E193: 1 | F193: 广州 | G193: 广州港股份有限公司新港港务分公司 | H193: 玉米 | I193: 黄埔新港码头 | J193: 国丰仓 | K193: 2019-03-25 | L193: 2019-04-19 09:19 | M193: 2019-03-26 17:30 | N193: 2019-03-27 06:30 | O193: 13 | P193: 2019-03-27 10:15 | Q193: 2019-03-30 20:00 | R193: 3月 | S193: 1846.152 | U193: 81.75 | V193: 1848.614 | X193: 14788.91 | AB193: 12479.99 | AC193: 2308.92 | AD193: 2308.92 | AE193: 1.250666251 | AF193: 369.2304 | AH193: 1939.6896 | AI193: 1.050666251 | AK193: -2.462 | AL193: -2.462 | AM193: 张佩欣 | AN193: 潘锦洪
A194: 业务完结 | B194: QYD19030131T01 | C194: 平南永佳808 | D194: 外包船-包 | E194: 1 | F194: 广州 | G194: 广州港股份有限公司新港港务分公司 | H194: 玉米 | I194: 黄埔新港码头 | J194: 国丰仓 | K194: 2019-03-25 | L194: 2019-04-19 09:19 | M194: 2019-03-26 22:30 | N194: 2019-03-27 09:45 | O194: 11.25 | P194: 2019-03-27 12:30 | Q194: 2019-03-30 22:45 | R194: 3月 | S194: 893.494 | U194: 82.25 | V194: 897.962 | X194: 7183.7 | AB194: 6040.02 | AC194: 1143.68 | AD194: 1143.68 | AE194: =AD194/S194 -> 1.280008595 | AF194: 178.6988 | AH194: =AD194-AF194-AG194 -> 964.9812 | AI194: =AH194/S194 -> 1.080008595 | AK194: -4.468 | AL194: -4.468 | AM194: 张佩欣 | AN194: 潘锦洪
A195: 业务完结 | B195: QYD19060039T01 | C195: 粤鼎湖货0898 | D195: 外包船 | E195: 1 | F195: 广州 | G195: 广州港股份有限公司新港港务分公司 | H195: 大麦 | I195: 黄埔新港码头 | J195: 穗丰仓 | K195: 2019-06-17 | L195: 2019-06-26 09:38 | M195: 2019-06-17 14:00 | N195: 2019-06-19 03:30 | O195: 37.5 | P195: 2019-06-19 04:30 | Q195: 2019-06-19 18:00 | R195: 6月 | S195: 1478.35 | U195: 13.5 | V195: 1478.774 | X195: 11830.19 | AB195: 9697.98 | AC195: 2132.21 | AD195: 2132.21 | AE195: 1.442290391 | AF195: 295.67 | AH195: 1836.54 | AI195: 1.242290391 | AK195: -0.424 | AL195: -0.424 | AM195: 潘锦洪 | AN195: 潘锦洪
A196: 业务完结 | B196: QYD19060039T01 | C196: 惠大昌328 | D196: 外包船 | E196: 1 | F196: 广州 | G196: 广州港股份有限公司新港港务分公司 | H196: 大麦 | I196: 黄埔新港码头 | J196: 穗丰仓 | K196: 2019-06-17 | L196: 2019-06-26 09:38 | M196: 2019-06-17 16:30 | N196: 2019-06-19 05:15 | O196: 36.75 | P196: 2019-06-19 06:30 | Q196: 2019-06-20 18:00 | R196: 6月 | S196: 1018.704 | U196: 35.5 | V196: 1018.704 | X196: 8149.63 | AB196: 6682.7 | AC196: 1466.93 | AD196: 1466.93 | AE196: 1.439996309 | AF196: 203.7408 | AH196: 1263.1892 | AI196: 1.239996309 | AK196: 0 | AL196: 0 | AM196: 潘锦洪 | AN196: 潘锦洪
A197: 业务完结 | B197: QYD19060039T01 | C197: 粤鼎湖货6638 | D197: 外包船 | E197: 1 | F197: 广州 | G197: 广州港股份有限公司新港港务分公司 | H197: 大麦 | I197: 黄埔新港码头 | J197: 穗丰仓 | K197: 2019-06-17 | L197: 2019-06-26 09:38 | M197: 2019-06-20 06:00 | N197: 2019-06-20 19:15 | O197: 13.25 | P197: 2019-06-20 20:30 | Q197: 2019-06-21 19:30 | R197: 6月 | S197: 1995.355 | U197: 23 | V197: 1998.31 | X197: 15986.48 | AB197: 13089.53 | AC197: 2896.95 | AD197: 2896.95 | AE197: 1.451846914 | AF197: 399.071 | AH197: 2497.879 | AI197: 1.251846914 | AJ197: BCK021901784 | AK197: -2.955 | AL197: -2.955 | AM197: 潘锦洪 | AN197: 潘锦洪
A198: 业务完结 | B198: QYD19060039T01 | C198: 惠大昌328 | D198: 外包船 | E198: 1 | F198: 广州 | G198: 广州港股份有限公司新港港务分公司 | H198: 大麦 | I198: 黄埔新港码头 | J198: 穗丰仓 | K198: 2019-06-17 | L198: 2019-06-26 09:38 | M198: 2019-06-20 18:00 | N198: 2019-06-21 06:45 | O198: 12.75 | P198: 2019-06-21 12:15 | Q198: 2019-06-21 23:30 | R198: 6月 | S198: 1016.37 | U198: 11.25 | V198: 1017.91 | X198: 8143.28 | AB198: 6667.39 | AC198: 1475.89 | AD198: 1475.89 | AE198: 1.452118815 | AF198: 203.274 | AH198: 1272.616 | AI198: 1.252118815 | AK198: -1.54 | AL198: -1.54 | AM198: 潘锦洪 | AN198: 潘锦洪
A199: 业务完结 | B199: QYD19060039T01 | C199: 一帆风顺668 | D199: 外包船 | E199: 1 | F199: 广州 | G199: 广州港股份有限公司新港港务分公司 | H199: 大麦 | I199: 黄埔新港码头 | J199: 穗丰仓 | K199: 2019-06-17 | L199: 2019-06-26 09:38 | M199: 2019-06-20 17:00 | N199: 2019-06-21 16:30 | O199: 23.5 | P199: 2019-06-21 18:30 | Q199: 2019-06-22 07:30 | R199: 6月 | S199: 1597.06 | U199: 13 | V199: 1598.77 | X199: 12790.16 | AB199: 10476.71 | AC199: 2313.45 | AD199: 2313.45 | AE199: 1.448567994 | AF199: 319.412 | AH199: 1994.038 | AI199: 1.248567994 | AK199: -1.71 | AL199: -1.71 | AM199: 潘锦洪 | AN199: 潘锦洪
A200: 业务完结 | B200: QYD19060039T01 | C200: 一帆风顺668 | D200: 外包船 | E200: 1 | F200: 广州 | G200: 广州港股份有限公司新港港务分公司 | H200: 大麦 | I200: 黄埔新港码头 | J200: 穗丰仓 | K200: 2019-06-17 | L200: 2019-06-26 09:38 | M200: 2019-06-22 08:30 | N200: 2019-06-22 13:00 | O200: 4.5 | P200: 2019-06-22 14:00 | Q200: 2019-06-22 21:30 | R200: 6月 | S200: 1287.785 | U200: 7.5 | V200: 1288.83 | X200: 10310.64 | AB200: 9512 | AC200: 798.64 | AD200: 798.64 | AE200: 0.6201656332 | AF200: 257.557 | AH200: 541.083 | AI200: 0.4201656332 | AK200: -1.045 | AL200: -1.045 | AM200: 潘锦洪 | AN200: 潘锦洪
... 253 more rows

Sheet 整体情况
A3: 行标签 | B3: 求和项:艘次 | C3: 求和项:卸货重量（吨） | D3: 求和项:应收费用 | E3: 求和项:应付费用 | F3: 求和项:毛利 | G3: 求和项:其他费用 | H3: 求和项:资金利息 | I3: 求和项:毛利1
A4: 1月 | B4: 64 | C4: 88103.479 | D4: 1975517.86 | E4: 1472300.85 | F4: 100506.3811 | G4: 20801.5725 | H4: 4267.3426 | I4: 75437.46604
A5: 2月 | B5: 42 | C5: 61395.455 | D5: 1004746.96 | E5: 621146.4 | F5: 81195.85114 | G5: 14346.199 | H5: 3617.1484 | I5: 63232.50374
A6: 3月 | B6: 76 | C6: 107348.657 | D6: 2251507.39 | E6: 1700758.96 | F6: 215920.7453 | G6: 28607.6843 | H6: 6938.777 | I6: 180374.284
A7: 4月 | B7: 56 | C7: 81610.858 | D7: 1654579.5 | E7: 1251226.8 | F7: 62547.06258 | G7: 28931.5965 | H7: 3015.2882 | I7: 30600.17788
A8: 5月 | B8: 69 | C8: 92577.45 | D8: 1781431.76 | E8: 1313508 | F8: 115079.0701 | G8: 21743.796 | H8: 7227.556 | I8: 86107.71806
A9: 6月 | B9: 69 | C9: 95593.393 | D9: 1473628.43 | E9: 974110.69 | F9: 79706.30982 | G9: 12284.3903 | H9: 4624.0588 | I9: 62797.86072
A10: 7月 | B10: 76 | C10: 105693.222 | D10: 2430616.46 | E10: 1853356.17 | F10: 163065.2733 | H10: 5075.0946 | I10: 157990.1787
A11: 总计 | B11: 452 | C11: 632322.514 | D11: 12572028.36 | E11: 9186407.87 | F11: 818020.6933 | G11: 126715.2386 | H11: 34765.2656 | I11: 656540.1891
A18: 船舶类型 | B18: 自有船
A20: 行标签 | B20: 求和项:艘次 | C20: 求和项:卸货重量（吨） | D20: 求和项:应收费用 | E20: 求和项:应收费用（不含税） | F20: 求和项:应付费用 | G20: 求和项:自有船成本 | H20: 求和项:毛利 | I20: 求和项:其他费用 | J20: 求和项:资金利息 | K20: 求和项:毛利1
A21: 1月 | B21: 19 | C21: 32046.248 | D21: 437552.1 | E21: 398210.6877 | F21: 8663.56 | G21: 363369.2166 | H21: 26177.91114 | I21: 1188.24 | J21: 2128.3646 | K21: 22861.30654
A22: 2月 | B22: 11 | C22: 20992.817 | D22: 293130.37 | E22: 266482.1545 | F22: 1453.96 | G22: 275756.4934 | H22: -10728.29886 | J22: 2601.72 | K22: -13330.01886
A23: 3月 | B23: 18 | C23: 30239.432 | D23: 443469.49 | E23: 403457.4176 | F23: 6131.21 | G23: 294815.6123 | H23: 102510.5953 | I23: 1298.927 | J23: 4653.0772 | K23: 96558.59106
A24: 4月 | B24: 12 | C24: 19548.586 | D24: 286535.94 | E24: 262877.0092 | F24: 2086.56 | G24: 317146.7066 | H24: -56356.25742 | I24: 642.457 | J24: 2593.0732 | K24: -59591.78762
A25: 5月 | B25: 15 | C25: 24111.38 | D25: 378896.51 | E25: 346371.4843 | F25: 8068.24 | G25: 320319.6643 | H25: 17983.58006 | I25: 2790.68 | J25: 3207.5996 | K25: 11985.30046
A26: 6月 | B26: 12 | C26: 22230.547 | D26: 392288.33 | E26: 359897.5505 | F26: 3043.88 | G26: 387420.6506 | H26: -30566.98018 | J26: 2615.6698 | K26: -33182.64998
A27: 7月 | B27: 14 | C27: 24883.474 | D27: 657175.46 | E27: 602913.2661 | F27: 194326.42 | G27: 359932.8228 | H27: 48654.02329 | J27: 2363.907 | K27: 46290.11629
A28: 总计 | B28: 101 | C28: 174052.484 | D28: 2889048.2 | E28: 2640209.57 | F28: 223773.83 | G28: 2318761.167 | H28: 97674.5733 | I28: 5920.304 | J28: 20163.4114 | K28: 71590.8579
A35: 船舶类型 | B35: (多项)
A37: 行标签 | B37: 求和项:艘次 | C37: 求和项:卸货重量（吨） | D37: 求和项:应收费用 | E37: 求和项:毛利 | F37: 求和项:其他费用 | G37: 求和项:资金利息 | H37: 求和项:应付费用 | I37: 求和项:毛利1
A38: 1月 | B38: 45 | C38: 56057.231 | D38: 1537965.76 | E38: 74328.47 | F38: 19613.3325 | G38: 2138.978 | H38: 1463637.29 | I38: 52576.1595
A39: 2月 | B39: 31 | C39: 40402.638 | D39: 711616.59 | E39: 91924.15 | F39: 14346.199 | G39: 1015.4284 | H39: 619692.44 | I39: 76562.5226
A40: 3月 | B40: 58 | C40: 77109.225 | D40: 1808037.9 | E40: 113410.15 | F40: 27308.7573 | G40: 2285.6998 | H40: 1694627.75 | I40: 83815.6929
A41: 4月 | B41: 44 | C41: 62062.272 | D41: 1368043.56 | E41: 118903.32 | F41: 28289.1395 | G41: 422.215 | H41: 1249140.24 | I41: 90191.9655
A42: 5月 | B42: 54 | C42: 68466.07 | D42: 1402535.25 | E42: 97095.49 | F42: 18953.116 | G42: 4019.9564 | H42: 1305439.76 | I42: 74122.4176
A43: 6月 | B43: 57 | C43: 73362.846 | D43: 1081340.1 | E43: 110273.29 | F43: 12284.3903 | G43: 2008.389 | H43: 971066.81 | I43: 95980.5107
A44: 7月 | B44: 62 | C44: 80809.748 | D44: 1773441 | E44: 114411.25 | G44: 2711.1876 | H44: 1659029.75 | I44: 111700.0624
A45: 总计 | B45: 351 | C45: 458270.03 | D45: 9682980.16 | E45: 720346.12 | F45: 120794.9346 | G45: 14601.8542 | H45: 8962634.04 | I45: 584949.3312
A52: 船舶类型 | B52: 外包船-包
A54: 行标签 | B54: 求和项:艘次 | C54: 求和项:卸货重量（吨） | D54: 求和项:应收费用 | E54: 求和项:毛利 | F54: 求和项:其他费用 | G54: 求和项:资金利息 | H54: 求和项:毛利1
A55: 1月 | B55: 5 | C55: 4600.54 | D55: 104748.54 | E55: 3436.25 | F55: 2300.27 | H55: 1135.98
A56: 2月 | B56: 4 | C56: 3741.919 | D56: 58428.55 | E56: 2767.18 | F56: 2245.601 | H56: 521.579
A57: 3月 | B57: 8 | C57: 7582.174 | D57: 198086.41 | E57: 18894.87 | F57: 3185.0503 | H57: 15709.8197
A58: 4月 | B58: 6 | C58: 5052.483 | D58: 81219.47 | E58: 9084.63 | F58: 2079.3365 | H58: 7005.2935
A59: 5月 | B59: 6 | C59: 5304.344 | D59: 73407.15 | E59: 4064.97 | F59: 508.427 | H59: 3556.543
A60: 6月 | B60: 5 | C60: 4473.685 | D60: 82117.83 | E60: -1308.61 | F60: 1301.971 | H60: -2610.581
A61: 7月 | B61: 7 | C61: 6578.615 | D61: 144399 | E61: 5038.85 | H61: 5038.85
A62: 总计 | B62: 41 | C62: 37333.76 | D62: 742406.95 | E62: 41978.14 | F62: 11620.6558 | H62: 30357.4842

Sheet 按航次
A1: 船舶类型 | B1: (全部)
A3: 求和项:艘次 | B3: 列标签
A4: 行标签 | B4: 1月 | C4: 2月 | D4: 3月 | E4: 4月 | F4: 5月 | G4: 6月 | H4: 7月 | I4: 总计
A5: 新通河3303 | B5: 9 | C5: 3 | D5: 8 | E5: 5 | F5: 7 | G5: 4 | H5: 6 | I5: 42
A6: 新通河3308 | B6: 4 | C6: 3 | D6: 6 | E6: 4 | F6: 5 | G6: 3 | H6: 5 | I6: 30
A7: 新通河3301 | B7: 6 | C7: 5 | D7: 4 | E7: 3 | F7: 3 | G7: 5 | H7: 3 | I7: 29
A8: 桂平宏远7899 | B8: 3 | D8: 4 | E8: 4 | F8: 3 | G8: 7 | H8: 5 | I8: 26
A9: 桂平宏远6699 | B9: 4 | C9: 3 | D9: 2 | E9: 3 | F9: 5 | G9: 3 | H9: 4 | I9: 24
A10: 惠大昌328 | B10: 4 | C10: 2 | D10: 4 | E10: 3 | F10: 3 | G10: 4 | H10: 2 | I10: 22
A11: 粤鼎湖货0698 | B11: 3 | C11: 4 | D11: 4 | E11: 2 | F11: 3 | G11: 2 | H11: 4 | I11: 22
A12: 粤鼎湖货0118 | B12: 3 | C12: 2 | D12: 4 | E12: 3 | F12: 2 | G12: 4 | H12: 3 | I12: 21
A13: 平南永佳808 | B13: 2 | D13: 4 | E13: 4 | F13: 3 | G13: 3 | H13: 3 | I13: 19
A14: 粤鼎湖货6698 | B14: 4 | C14: 1 | D14: 3 | F14: 3 | G14: 3 | H14: 4 | I14: 18
A15: 桂藤县货0803 | B15: 1 | C15: 1 | D15: 4 | E15: 1 | F15: 5 | G15: 3 | H15: 2 | I15: 17
A16: 粤鼎湖货6628 | D16: 3 | E16: 4 | F16: 3 | G16: 4 | H16: 1 | I16: 15
A17: 衡泰5678 | C17: 2 | D17: 3 | E17: 3 | F17: 2 | G17: 1 | H17: 2 | I17: 13
A18: 粤鼎湖货8288 | B18: 1 | D18: 3 | E18: 1 | F18: 2 | H18: 3 | I18: 10
A19: 粤鼎湖货0898 | E19: 2 | F19: 2 | G19: 2 | H19: 3 | I19: 9
A20: 明珠938 | B20: 1 | C20: 1 | D20: 4 | F20: 1 | G20: 1 | H20: 1 | I20: 9
A21: 粤鼎湖货2268 | F21: 3 | G21: 2 | H21: 3 | I21: 8
A22: 粤鼎湖货6638 | D22: 1 | E22: 3 | F22: 1 | G22: 3 | I22: 8
A23: 粤鼎湖货3398 | C23: 1 | D23: 2 | E23: 1 | F23: 1 | G23: 1 | H23: 2 | I23: 8
A24: 莞海安268 | C24: 2 | D24: 1 | E24: 2 | F24: 1 | H24: 2 | I24: 8
A25: 穗海韵187 | B25: 2 | C25: 2 | D25: 2 | E25: 1 | G25: 1 | I25: 8
A26: 贵港天佑8633 | C26: 1 | D26: 1 | E26: 1 | F26: 1 | H26: 1 | I26: 5
A27: 粤珠海货0068 | H27: 5 | I27: 5
A28: 一帆风顺668 | B28: 1 | C28: 1 | G28: 3 | I28: 5
A29: 粤都城货9026 | G29: 3 | H29: 1 | I29: 4
A30: 桂平飞达768 | G30: 1 | H30: 3 | I30: 4
A31: 莞海安278 | B31: 2 | C31: 1 | D31: 1 | I31: 4
A32: 粤南方282 | C32: 4 | I32: 4
A33: 粤鼎湖货0398 | F33: 3 | I33: 3
A34: 粤惠州货328 | C34: 1 | D34: 1 | G34: 1 | I34: 3
A35: 粤德庆货1688 | F35: 1 | G35: 2 | I35: 3
A36: 贵港和顺8968 | B36: 1 | E36: 1 | I36: 2
A37: 粤封开货8328 | D37: 1 | H37: 1 | I37: 2
A38: 贵港天佑928 | B38: 1 | F38: 1 | I38: 2
A39: 粤鼎湖货0628 | G39: 1 | H39: 1 | I39: 2
A40: 贵港天佑2019 | D40: 1 | E40: 1 | I40: 2
A41: 平南永佳3916 | B41: 1 | F41: 1 | I41: 2
A42: 粤德庆货8088 | D42: 1 | F42: 1 | I42: 2
A43: 贵港福盛6666 | E43: 1 | F43: 1 | I43: 2
A44: 贵港福盛288 | B44: 1 | I44: 1
A45: 平南海宇2379 | E45: 1 | I45: 1
A46: 粤都城货8866 | H46: 1 | I46: 1
A47: 远丰3318 | H47: 1 | I47: 1
A48: 粤新会货1765 | C48: 1 | I48: 1
A49: 平南华翔266 | B49: 1 | I49: 1
A50: 粤都城货2005 | G50: 1 | I50: 1
A51: 鸿丰6628 | B51: 1 | I51: 1
A52: 南龙8329 | D52: 1 | I52: 1
A53: 粤鼎湖货0088 | D53: 1 | I53: 1
A54: 粤三埠货8033 | B54: 1 | I54: 1
A55: 平南永佳6628 | F55: 1 | I55: 1
A56: 平南华顺223 | D56: 1 | I56: 1
A57: 贵港天佑8298 | B57: 1 | I57: 1
A58: 横县谢圩6968 | B58: 1 | I58: 1
A59: 浦通2222 | B59: 1 | I59: 1
A60: 粤都城货2029 | G60: 1 | I60: 1
A61: 桂桂平货9299 | B61: 1 | I61: 1
A62: 藤县金海8068 | C62: 1 | I62: 1
A63: 仕泰669 | F63: 1 | I63: 1
A64: 粤广州货0811 | H64: 1 | I64: 1
A65: 封开长兴328 | E65: 1 | I65: 1
A66: 贵港宇航3688 | E66: 1 | I66: 1
A67: 东运368 | B67: 1 | I67: 1
A68: 粤韶关货3299 | H68: 1 | I68: 1
A69: 桂平南货6788 | B69: 1 | I69: 1
A70: 粤信和833 | H70: 1 | I70: 1
A71: 桂庆运688 | D71: 1 | I71: 1
A72: 粤鼎湖货6688 | H72: 1 | I72: 1
A73: 桂桂平货8939 | B73: 1 | I73: 1
A74: 总计 | B74: 64 | C74: 42 | D74: 76 | E74: 56 | F74: 69 | G74: 69 | H74: 76 | I74: 452

Sheet 自有船情况
A1: 船舶类型 | B1: 自有船
A3: 行标签 | B3: 求和项:艘次 | C3: 求和项:卸货重量（吨） | D3: 求和项:应收费用 | E3: 求和项:自有船成本 | F3: 求和项:应付费用 | G3: 求和项:毛利 | H3: 求和项:毛利1
A4: 新通河3301 | B4: 29 | C4: 67949.078 | D4: 965822.766 | E4: 1028464.696 | F4: 14589.8 | G4: -77231.72956 | H4: -87805.22396
A5: 1月 | B5: 6 | C5: 14273.848 | D5: 190583.3423 | E5: 144036.54 | F5: 3470.24 | G5: 43076.56229 | H5: 40619.32229
A6: 2月 | B6: 5 | C6: 12393.517 | D6: 154783.9727 | E6: 134347.4811 | F6: 874.96 | G6: 19561.53166 | H6: 18201.81166
A7: 3月 | B7: 4 | C7: 9321.854 | D7: 114252.3903 | E7: 120096.5474 | F7: 3117.48 | G7: -8961.637122 | H7: -11560.04412
A8: 4月 | B8: 3 | C8: 6426.082 | D8: 76331.79817 | E8: 143851.0894 | F8: 485.68 | G8: -68004.9712 | H8: -69185.6444
A9: 5月 | B9: 3 | C9: 6880.23 | D9: 104244.923 | E9: 151890.284 | F9: 3914.56 | G9: -51559.92102 | H9: -52551.10542
A10: 6月 | B10: 5 | C10: 11703.547 | D10: 192325.422 | E10: 174659.213 | F10: 606.88 | G10: 17059.32904 | H10: 15766.65924
A11: 7月 | B11: 3 | C11: 6950 | D11: 133300.9174 | E11: 159583.5406 | F11: 2120 | G11: -28402.62321 | H11: -29096.22321
A12: 新通河3303 | B12: 42 | C12: 60828.846 | D12: 900653.7813 | E12: 666111.9804 | F12: 106755.07 | G12: 127786.7309 | H12: 120064.9925
A13: 1月 | B13: 9 | C13: 11799.179 | D13: 134174.7818 | E13: 117133.31 | F13: 3393.4 | G13: 13648.07182 | H13: 12788.70722
A14: 2月 | B14: 3 | C14: 3990.3 | D14: 57190.90909 | E14: 74705.62404 | F14: 397.32 | G14: -17912.03495 | H14: -18317.03495
A15: 3月 | B15: 8 | C15: 11942.148 | D15: 147663.5091 | E15: 86861.31085 | F15: 1982.09 | G15: 58820.10824 | H15: 56291.51104
A16: 4月 | B16: 5 | C16: 7337.59 | D16: 96384.9633 | E16: 94233.77 | F16: 359.96 | G16: 1791.233303 | H16: 1285.733303
A17: 5月 | B17: 7 | C17: 9957.65 | D17: 133015.6455 | E17: 85444.86894 | F17: 642.6 | G17: 46928.1766 | H17: 45694.9146
A18: 6月 | B18: 4 | C18: 6027 | D18: 87728.09174 | E18: 99033.11915 | F18: 1975.88 | G18: -13280.90741 | H18: -14202.50741
A19: 7月 | B19: 6 | C19: 9774.979 | D19: 244495.8807 | E19: 108699.9774 | F19: 98003.82 | G19: 37792.08329 | H19: 36523.66869
A20: 新通河3308 | B20: 30 | C20: 45274.56 | D20: 773733.0226 | E20: 624184.4906 | F20: 102428.96 | G20: 47119.57196 | H20: 39331.08936
A21: 1月 | B21: 4 | C21: 5973.221 | D21: 73452.56364 | E21: 102199.3666 | F21: 1799.92 | G21: -30546.72296 | H21: -30546.72296
A22: 2月 | B22: 3 | C22: 4609 | D22: 54507.27273 | E22: 66703.3883 | F22: 181.68 | G22: -12377.79557 | H22: -13214.79557
A23: 3月 | B23: 6 | C23: 8975.43 | D23: 141541.5182 | E23: 87857.75404 | F23: 1031.64 | G23: 52652.12414 | H23: 51827.12414
A24: 4月 | B24: 4 | C24: 5784.914 | D24: 90160.24771 | E24: 79061.84723 | F24: 1240.92 | G24: 9857.480472 | H24: 8308.123472
A25: 5月 | B25: 5 | C25: 7273.5 | D25: 109110.9158 | E25: 82984.51128 | F25: 3511.08 | G25: 22615.32449 | H25: 18841.49129
A26: 6月 | B26: 3 | C26: 4500 | D26: 79844.0367 | E26: 113728.3185 | F26: 461.12 | G26: -34345.40181 | H26: -34746.80181
A27: 7月 | B27: 5 | C27: 8158.495 | D27: 225116.4679 | E27: 91649.30468 | F27: 94202.6 | G27: 39264.56321 | H27: 38862.67081
A28: 总计 | B28: 101 | C28: 174052.484 | D28: 2640209.57 | E28: 2318761.167 | F28: 223773.83 | G28: 97674.5733 | H28: 71590.8579

Sheet 自有船分析
A2: 船舶类型 | B2: 自有船 | C2: 按航次 | J2: 船舶类型 | K2: 自有船 | L2: 按收入 | Q2: 船舶类型 | R2: 自有船 | S2: 按毛利
A4: 求和项:艘次 | B4: 列标签 | J4: 求和项:应收费用 | K4: 列标签 | Q4: 求和项:毛利 | R4: 列标签
A5: 行标签 | B5: 新通河3301 | C5: 新通河3303 | D5: 新通河3308 | E5: 总计 | J5: 行标签 | K5: 新通河3301 | L5: 新通河3303 | M5: 新通河3308 | N5: 总计 | Q5: 行标签 | R5: 新通河3301 | S5: 新通河3303 | T5: 新通河3308 | U5: 总计
A6: 1月 | B6: 6 | C6: 9 | D6: 4 | E6: 19 | J6: 1月 | K6: 209162.02 | L6: 147592.26 | M6: 80797.82 | N6: 437552.1 | Q6: 1月 | R6: 43076.56229 | S6: 13648.07182 | T6: -30546.72296 | U6: 26177.91114
A7: 纸浆 | B7: 4 | C7: 7 | D7: 3 | E7: 14 | J7: 大豆 | K7: 26479.18 | L7: 14485.42 | M7: 14497.22 | N7: 55461.82 | Q7: 大豆 | R7: -2319.108182 | S7: -1125.148586 | T7: -13720.55074 | U7: -17164.80751
A8: 大豆 | B8: 1 | C8: 1 | D8: 1 | E8: 3 | J8: 热轧卷钢 | L8: 16855.23 | N8: 16855.23 | Q8: 热轧卷钢 | S8: 1093.824141 | U8: 1093.824141
A9: 小麦 | B9: 1 | E9: 1 | J9: 小麦 | K9: 52282.56 | N9: 52282.56 | Q9: 小麦 | R9: 23659.56138 | U9: 23659.56138
A10: 热轧卷钢 | C10: 1 | E10: 1 | J10: 纸浆 | K10: 130400.28 | L10: 116251.61 | M10: 66300.6 | N10: 312952.49 | Q10: 纸浆 | R10: 21736.10909 | S10: 13679.39626 | T10: -16826.17222 | U10: 18589.33313
A11: 2月 | B11: 5 | C11: 3 | D11: 3 | E11: 11 | J11: 2月 | K11: 170262.37 | L11: 62910 | M11: 59958 | N11: 293130.37 | Q11: 2月 | R11: 19561.53166 | S11: -17912.03495 | T11: -12377.79557 | U11: -10728.29886
A12: 纸浆 | B12: 5 | C12: 3 | D12: 3 | E12: 11 | J12: 纸浆 | K12: 170262.37 | L12: 62910 | M12: 59958 | N12: 293130.37 | Q12: 纸浆 | R12: 19561.53166 | S12: -17912.03495 | T12: -12377.79557 | U12: -10728.29886
A13: 3月 | B13: 4 | C13: 8 | D13: 6 | E13: 18 | J13: 3月 | K13: 125343.96 | L13: 162429.86 | M13: 155695.67 | N13: 443469.49 | Q13: 3月 | R13: -8961.637122 | S13: 58820.10824 | T13: 52652.12414 | U13: 102510.5953
A14: 纸浆 | B14: 3 | C14: 8 | D14: 5 | E14: 16 | J14: 冷轧卷钢 | M14: 22122.73 | N14: 22122.73 | Q14: 冷轧卷钢 | T14: 5468.61372 | U14: 5468.61372
A15: 冷轧卷钢 | D15: 1 | E15: 1 | J15: 小麦 | K15: 36369.96 | N15: 36369.96 | Q15: 小麦 | R15: 742.7989181 | U15: 742.7989181
A16: 小麦 | B16: 1 | E16: 1 | J16: 纸浆 | K16: 88974 | L16: 162429.86 | M16: 133572.94 | N16: 384976.8 | Q16: 纸浆 | R16: -9704.43604 | S16: 58820.10824 | T16: 47183.51042 | U16: 96299.18262
A17: 4月 | B17: 3 | C17: 5 | D17: 4 | E17: 12 | J17: 4月 | K17: 83201.66 | L17: 105059.61 | M17: 98274.67 | N17: 286535.94 | Q17: 4月 | R17: -68004.9712 | S17: 1791.233303 | T17: 9857.480472 | U17: -56356.25742
A18: 纸浆 | B18: 3 | C18: 4 | D18: 3 | E18: 10 | J18: 线材 | L18: 25415.61 | N18: 25415.61 | Q18: 线材 | S18: 4418.279394 | U18: 4418.279394
A19: 线材 | C19: 1 | E19: 1 | J19: 小麦 | M19: 15429.67 | N19: 15429.67 | Q19: 小麦 | T19: -6640.201258 | U19: -6640.201258
A20: 小麦 | D20: 1 | E20: 1 | J20: 纸浆 | K20: 83201.66 | L20: 79644 | M20: 82845 | N20: 245690.66 | Q20: 纸浆 | R20: -68004.9712 | S20: -2627.046092 | T20: 16497.68173 | U20: -54134.33556
A21: 5月 | B21: 3 | C21: 7 | D21: 5 | E21: 15 | J21: 5月 | K21: 113937.45 | L21: 145874.9 | M21: 119084.16 | N21: 378896.51 | Q21: 5月 | R21: -51559.92102 | S21: 46928.1766 | T21: 22615.32449 | U21: 17983.58006
A22: 纸浆 | B22: 1 | C22: 7 | D22: 3 | E22: 11 | J22: 甘蔗原糖 | K22: 49559.22 | M22: 32298.86 | N22: 81858.08 | Q22: 甘蔗原糖 | R22: -7892.920369 | T22: 11215.0794 | U22: 3322.159027
A23: 甘蔗原糖 | B23: 1 | D23: 1 | E23: 2 | J23: 热轧钢板 | K23: 34153.23 | N23: 34153.23 | Q23: 热轧钢板 | R23: -19581.70377 | U23: -19581.70377
A24: 玉米 | D24: 1 | E24: 1 | J24: 玉米 | M24: 34883.5 | N24: 34883.5 | Q24: 玉米 | T24: 14006.30875 | U24: 14006.30875
A25: 热轧钢板 | B25: 1 | E25: 1 | J25: 纸浆 | K25: 30225 | L25: 145874.9 | M25: 51901.8 | N25: 228001.7 | Q25: 纸浆 | R25: -24085.29688 | S25: 46928.1766 | T25: -2606.063663 | U25: 20236.81606
A26: 6月 | B26: 5 | C26: 4 | D26: 3 | E26: 12 | J26: 6月 | K26: 209634.71 | L26: 95623.62 | M26: 87030 | N26: 392288.33 | Q26: 6月 | R26: 17059.32904 | S26: -13280.90741 | T26: -34345.40181 | U26: -30566.98018
A27: 纸浆 | B27: 5 | C27: 3 | D27: 3 | E27: 11 | J27: 热轧卷钢 | L27: 11543.62 | N27: 11543.62 | Q27: 热轧卷钢 | S27: -14167.80272 | U27: -14167.80272
A28: 热轧卷钢 | C28: 1 | E28: 1 | J28: 纸浆 | K28: 209634.71 | L28: 84080 | M28: 87030 | N28: 380744.71 | Q28: 纸浆 | R28: 17059.32904 | S28: 886.8953172 | T28: -34345.40181 | U28: -16399.17746
A29: 7月 | B29: 3 | C29: 6 | D29: 5 | E29: 14 | J29: 7月 | K29: 145298 | L29: 266500.51 | M29: 245376.95 | N29: 657175.46 | Q29: 7月 | R29: -28402.62321 | S29: 37792.08329 | T29: 39264.56321 | U29: 48654.02329
A30: 纸浆 | B30: 3 | C30: 4 | D30: 2 | E30: 9 | J30: 甘蔗原糖 | L30: 166079.78 | M30: 187782.33 | N30: 353862.11 | Q30: 甘蔗原糖 | S30: 18412.26483 | T30: 23355.14416 | U30: 41767.40899
A31: 甘蔗原糖 | C31: 2 | D31: 3 | E31: 5 | J31: 纸浆 | K31: 145298 | L31: 100420.73 | M31: 57594.62 | N31: 303313.35 | Q31: 纸浆 | R31: -28402.62321 | S31: 19379.81846 | T31: 15909.41905 | U31: 6886.614299
A32: 总计 | B32: 29 | C32: 42 | D32: 30 | E32: 101 | J32: 总计 | K32: 1056840.17 | L32: 985990.76 | M32: 846217.27 | N32: 2889048.2 | Q32: 总计 | R32: -77231.72956 | S32: 127786.7309 | T32: 47119.57196 | U32: 97674.5733

Sheet 按货类
A1: 船舶类型 | B1: (全部)
A2: 月份 | B2: 7月
A4: 行标签 | B4: 求和项:艘次 | C4: 求和项:卸货重量（吨） | D4: 求和项:应收费用 | E4: 求和项:毛利 | F4: 求和项:毛利1
A5: 菜粕 | B5: 1 | C5: 989.53 | D5: 31045.11 | E5: 923.81 | F5: 923.81
A6: 豆粕 | B6: 2 | C6: 848.35 | D6: 18710.3 | E6: 801.36 | F6: 801.36
A7: 甘蔗原糖 | B7: 27 | C7: 41980.953 | D7: 1206444.62 | E7: 120111.059 | F7: 120111.059
A8: 葵花籽粕 | B8: 1 | C8: 447.61 | D8: 8987.2 | E8: 1650.87 | F8: 1650.87
A9: 热轧卷钢 | B9: 3 | C9: 3390.23 | D9: 27792.63 | E9: 2196.24 | F9: 2196.24
A10: 小麦 | B10: 16 | C10: 20166.865 | D10: 422713.65 | E10: 13811.53 | F10: 13811.53
A11: 玉米 | B11: 2 | C11: 2291.14 | D11: 87700.97 | E11: 3097.74 | F11: 3097.74
A12: 纸浆 | B12: 24 | C12: 35578.544 | D12: 627221.98 | E12: 20472.6643 | F12: 15397.5697
A13: 总计 | B13: 76 | C13: 105693.222 | D13: 2430616.46 | E13: 163065.2733 | F13: 157990.1787

Sheet 按客户
A1: 船舶类型 | B1: (全部)
A2: 月份 | B2: 7月
B4: 值
A5: 客户 | B5: 求和项:艘次 | C5: 求和项:卸货重量（吨） | D5: 求和项:应收费用 | E5: 求和项:毛利 | F5: 求和项:其他费用 | G5: 求和项:资金利息 | H5: 求和项:毛利1
A6: 东莞市制糖厂有限公司 | B6: 16 | C6: 23945.773 | D6: 376826.34 | E6: 64403.5664 | H6: 64403.5664
A7: 广东华糖实业有限公司 | B7: 11 | C7: 18035.18 | D7: 829618.28 | E7: 55707.49259 | H7: 55707.49259
A8: 广州泰来国际货运代理有限公司 | B8: 5 | C8: 8686.626 | D8: 217165.65 | E8: 35732.286 | H8: 35732.286
A9: 肇庆市福加德面粉有限公司 | B9: 11 | C9: 15179.899 | D9: 335746.75 | E9: 17939.22 | H9: 17939.22
A10: 广东通威饲料有限公司 | B10: 2 | C10: 1885.01 | D10: 60595.95 | E10: 2723.72 | H10: 2723.72
A11: 广州港船务有限公司 | B11: 7 | C11: 10760.23 | D11: 166094.23 | E11: 2691.480582 | H11: 2691.480582
A12: 广州市骏宝饲料有限公司 | B12: 3 | C12: 1295.96 | D12: 27697.5 | E12: 2452.23 | H12: 2452.23
A13: 广州长晟物流有限公司 | B13: 1 | C13: 1395.66 | D13: 58150.13 | E13: 1297.83 | H13: 1297.83
A14: 深圳市福加德谷物有限公司 | B14: 1 | C14: 1495.041 | D14: 28404.74 | E14: 1058 | H14: 1058
A15: 常熟市港顺货运有限公司 | B15: 1 | C15: 1500 | D15: 18000 | E15: -3855 | H15: -3855
A16: 广州市粮食集团有限责任公司 | B16: 4 | C16: 3491.925 | D16: 58562.16 | E16: -5185.69 | H16: -5185.69
A17: 广东双水码头有限公司 | B17: 14 | C17: 18021.918 | D17: 253754.73 | E17: -11899.86229 | G17: 5075.0946 | H17: -16974.95689
A18: 总计 | B18: 76 | C18: 105693.222 | D18: 2430616.46 | E18: 163065.2733 | G18: 5075.0946 | H18: 157990.1787

Sheet 按区域
A1: 船舶类型 | B1: 自有船
A2: 驳船名 | B2: (全部)
A3: 区域 | B3: (全部)
A5: 行标签 | B5: 求和项:艘次 | C5: 求和项:卸货重量（吨） | D5: 求和项:应收费用 | E5: 求和项:毛利 | F5: 求和项:其他费用 | G5: 求和项:资金利息 | H5: 求和项:毛利1
A6: 1月 | B6: 19 | C6: 32046.248 | D6: 437552.1 | E6: 26177.91114 | F6: 1188.24 | G6: 2128.3646 | H6: 22861.30654
A7: 常熟市港顺货运有限公司 | B7: 6 | C7: 10586.059 | D7: 148339.06 | E7: 8940.883167 | H7: 8940.883167
A8: 广东双水码头有限公司 | B8: 5 | C8: 7882.832 | D8: 106418.23 | E8: 8873.188788 | G8: 2128.3646 | H8: 6744.824188
A9: 广州港船务有限公司 | B9: 1 | C9: 1500 | D9: 30000 | E9: 1372.885624 | H9: 1372.885624
A10: 广州港物流有限公司 | B10: 1 | C10: 1812.39 | D10: 16855.23 | E10: 1093.824141 | H10: 1093.824141
A11: 广州泰来国际货运代理有限公司 | B11: 2 | C11: 2349.6 | D11: 28195.2 | E11: -597.6244444 | H11: -597.6244444
A12: 双胞胎饲料有限公司 | B12: 3 | C12: 5538.887 | D12: 55461.82 | E12: -17164.80751 | H12: -17164.80751
A13: 肇庆市福加德面粉有限公司 | B13: 1 | C13: 2376.48 | D13: 52282.56 | E13: 23659.56138 | F13: 1188.24 | H13: 22471.32138
A14: 2月 | B14: 11 | C14: 20992.817 | D14: 293130.37 | E14: -10728.29886 | G14: 2601.72 | H14: -13330.01886
A15: 常熟市港顺货运有限公司 | B15: 5 | C15: 10374.017 | D15: 138474.37 | E15: -2538.075176 | H15: -2538.075176
A16: 广东双水码头有限公司 | B16: 5 | C16: 9636 | D16: 130086 | E16: -5462.072638 | G16: 2601.72 | H16: -8063.792638
A17: 广州泰来国际货运代理有限公司 | B17: 1 | C17: 982.8 | D17: 24570 | E17: -2728.151044 | H17: -2728.151044
A18: 3月 | B18: 18 | C18: 30239.432 | D18: 443469.49 | E18: 102510.5953 | F18: 1298.927 | G18: 4653.0772 | H18: 96558.59106
A19: 常熟市港顺货运有限公司 | B19: 4 | C19: 6500 | D19: 78000 | E19: 4163.667328 | H19: 4163.667328
A20: 广东双水码头有限公司 | B20: 10 | C20: 16666.148 | D20: 232653.86 | E20: 54345.08422 | G20: 4653.0772 | H20: 49692.00702
A21: 广州港船务有限公司 | B21: 1 | C21: 1441.22 | D21: 22122.73 | E21: 5468.61372 | H21: 5468.61372
A22: 广州市粮食集团有限责任公司 | B22: 1 | C22: 2597.854 | D22: 36369.96 | E22: 742.7989181 | F22: 1298.927 | H22: -556.1280819
A23: 广州泰来国际货运代理有限公司 | B23: 2 | C23: 3034.21 | D23: 74322.94 | E23: 37790.43108 | H23: 37790.43108
A24: 4月 | B24: 12 | C24: 19548.586 | D24: 286535.94 | E24: -56356.25742 | F24: 642.457 | G24: 2593.0732 | H24: -59591.78762
A25: 常熟市港顺货运有限公司 | B25: 4 | C25: 6544.75 | D25: 78537 | E25: -32704.61154 | H25: -32704.61154
A26: 广东双水码头有限公司 | B26: 5 | C26: 8912.082 | D26: 129653.66 | E26: -35917.97193 | G26: 2593.0732 | H26: -38511.04513
A27: 广州港船务有限公司 | B27: 1 | C27: 1306.84 | D27: 25415.61 | E27: 4418.279394 | H27: 4418.279394
A28: 广州市粮食集团有限责任公司 | B28: 1 | C28: 1284.914 | D28: 15429.67 | E28: -6640.201258 | F28: 642.457 | H28: -7282.658258
A29: 广州泰来国际货运代理有限公司 | B29: 1 | C29: 1500 | D29: 37500 | E29: 14488.24792 | H29: 14488.24792
A30: 5月 | B30: 15 | C30: 24111.38 | D30: 378896.51 | E30: 17983.58006 | F30: 2790.68 | G30: 3207.5996 | H30: 11985.30046
A31: 常熟市港顺货运有限公司 | B31: 6 | C31: 9456.65 | D31: 113479.8 | E31: -17805.62048 | H31: -17805.62048
A32: 广东双水码头有限公司 | B32: 6 | C32: 10063.44 | D32: 160379.98 | E32: 21006.37268 | G32: 3207.5996 | H32: 17798.77308
A33: 广州港船务有限公司 | B33: 1 | C33: 1755.95 | D33: 34153.23 | E33: -19581.70377 | H33: -19581.70377
A34: 广州泰来国际货运代理有限公司 | B34: 1 | C34: 1440 | D34: 36000 | E34: 20358.22288 | H34: 20358.22288
A35: 金钱（珠海）有限公司 | B35: 1 | C35: 1395.34 | D35: 34883.5 | E35: 14006.30875 | F35: 2790.68 | H35: 11215.62875
A36: 6月 | B36: 12 | C36: 22230.547 | D36: 392288.33 | E36: -30566.98018 | G36: 2615.6698 | H36: -33182.64998
A37: 广东双水码头有限公司 | B37: 5 | C37: 9202.547 | D37: 130783.49 | E37: -39607.15106 | G37: 2615.6698 | H37: -42222.82086
A38: 广州港船务有限公司 | B38: 4 | C38: 7995 | D38: 135679.84 | E38: -8294.487051 | H38: -8294.487051
A39: 广州泰来国际货运代理有限公司 | B39: 3 | C39: 5033 | D39: 125825 | E39: 17334.65793 | H39: 17334.65793
A40: 7月 | B40: 14 | C40: 24883.474 | D40: 657175.46 | E40: 48654.02329 | G40: 2363.907 | H40: 46290.11629
A41: 东莞市制糖厂有限公司 | B41: 1 | C41: 1749.515 | D41: 31053.89 | E41: 8459.946403 | H41: 8459.946403
A42: 广东华糖实业有限公司 | B42: 4 | C42: 7017.57 | D42: 322808.22 | E42: 33307.46259 | H42: 33307.46259
A43: 广东双水码头有限公司 | B43: 5 | C43: 8186.389 | D43: 118195.35 | E43: -19798.26229 | G43: 2363.907 | H43: -22162.16929
A44: 广州港船务有限公司 | B44: 1 | C44: 2450 | D44: 48118 | E44: -9049.559418 | H44: -9049.559418
A45: 广州泰来国际货运代理有限公司 | B45: 3 | C45: 5480 | D45: 137000 | E45: 35734.436 | H45: 35734.436
A46: 总计 | B46: 101 | C46: 174052.484 | D46: 2889048.2 | E46: 97674.5733 | F46: 5920.304 | G46: 20163.4114 | H46: 71590.8579

Sheet 按操作人
A3: 求和项:艘次 | B3: 列标签
A4: 行标签 | B4: 1月 | C4: 2月 | D4: 3月 | E4: 4月 | F4: 5月 | G4: 6月 | H4: 7月 | I4: 总计
A5: 潘锦洪 | B5: 45 | C5: 27 | D5: 49 | E5: 32 | F5: 55 | G5: 59 | H5: 38 | I5: 305
A6: 张展鹏 | B6: 17 | C6: 10 | D6: 25 | E6: 22 | F6: 9 | G6: 1 | H6: 17 | I6: 101
A7: 刘全 | G7: 1 | H7: 18 | I7: 19
A8: 张佩欣 | B8: 1 | E8: 2 | F8: 5 | G8: 7 | H8: 2 | I8: 17
A9: 劳锡源 | C9: 5 | D9: 2 | G9: 1 | I9: 8
A10: 叶海星 | B10: 1 | I10: 1
A11: 阮玉华 | H11: 1 | I11: 1
A12: 总计 | B12: 64 | C12: 42 | D12: 76 | E12: 56 | F12: 69 | G12: 69 | H12: 76 | I12: 452

Sheet 提报市场
A1: 客户 | B1: 货名 | C1: 求和项:艘次 | D1: 求和项:卸货重量（吨） | E1: 求和项:应收费用 | F1: 求和项:毛利 | G1: 求和项:毛利1
A2: 常熟市港顺货运有限公司 | B2: 纸浆 | C2: 1 | D2: 1500 | E2: 18000 | F2: -3855 | G2: -3855
A3: 东莞市制糖厂有限公司 | B3: 甘蔗原糖 | C3: 16 | D3: 23945.773 | E3: 376826.34 | F3: 64403.5664 | G3: 64403.5664
A4: 广东华糖实业有限公司 | B4: 甘蔗原糖 | C4: 11 | D4: 18035.18 | E4: 829618.28 | F4: 55707.49259 | G4: 55707.49259
A5: 广东双水码头有限公司 | B5: 纸浆 | C5: 14 | D5: 18021.918 | E5: 253754.73 | F5: -11899.86229 | G5: -16974.95689
A6: 广东通威饲料有限公司 | B6: 菜粕 | C6: 1 | D6: 989.53 | E6: 31045.11 | F6: 923.81 | G6: 923.81
A7: 广东通威饲料有限公司 | B7: 玉米 | C7: 1 | D7: 895.48 | E7: 29550.84 | F7: 1799.91 | G7: 1799.91
A8: 广州港船务有限公司 | B8: 热轧卷钢 | C8: 3 | D8: 3390.23 | E8: 27792.63 | F8: 2196.24 | G8: 2196.24
A9: 广州港船务有限公司 | B9: 纸浆 | C9: 4 | D9: 7370 | E9: 138301.6 | F9: 495.2405823 | G9: 495.2405823
A10: 广州市骏宝饲料有限公司 | B10: 豆粕 | C10: 2 | D10: 848.35 | E10: 18710.3 | F10: 801.36 | G10: 801.36
A11: 广州市骏宝饲料有限公司 | B11: 葵花籽粕 | C11: 1 | D11: 447.61 | E11: 8987.2 | F11: 1650.87 | G11: 1650.87
A12: 广州市粮食集团有限责任公司 | B12: 小麦 | C12: 4 | D12: 3491.925 | E12: 58562.16 | F12: -5185.69 | G12: -5185.69
A13: 广州泰来国际货运代理有限公司 | B13: 纸浆 | C13: 5 | D13: 8686.626 | E13: 217165.65 | F13: 35732.286 | G13: 35732.286
A14: 广州长晟物流有限公司 | B14: 玉米 | C14: 1 | D14: 1395.66 | E14: 58150.13 | F14: 1297.83 | G14: 1297.83
A15: 深圳市福加德谷物有限公司 | B15: 小麦 | C15: 1 | D15: 1495.041 | E15: 28404.74 | F15: 1058 | G15: 1058
A16: 肇庆市福加德面粉有限公司 | B16: 小麦 | C16: 11 | D16: 15179.899 | E16: 335746.75 | F16: 17939.22 | G16: 17939.22
C17: =SUM(C2:C16) -> 76 | D17: =SUM(D2:D16) -> 105693.222 | E17: 2430616.46 | F17: 163065.2733 | G17: 157990.1787
